Body Name,Body,Date,Department,Beneficiary,Summary of Purpose (SeRCOP),Amount SUM,Merchant Code,Transaction Number,Supplier ID
Sandwell Metropolitan Borough Council,http://www.sandwell.gov.uk/info/200202/performance_and_spending/1079/payments_over_500,01-Jan-2023,Adults Social Care Capital,AXIS EUROPE PLC ,Adults Social Care Capital,5126.97,Deferred Charges/Grant Payments,2223P10_CR00001,64946
Sandwell Metropolitan Borough Council,http://www.sandwell.gov.uk/info/200202/performance_and_spending/1079/payments_over_500,01-Jan-2023,Adults Social Care Capital,AXIS EUROPE PLC ,Adults Social Care Capital,5303.18,Deferred Charges/Grant Payments,2223P10_CR00002,64946
Sandwell Metropolitan Borough Council,http://www.sandwell.gov.uk/info/200202/performance_and_spending/1079/payments_over_500,01-Jan-2023,Adults Social Care Capital,AXIS EUROPE PLC ,Adults Social Care Capital,7037.55,Deferred Charges/Grant Payments,2223P10_CR00003,64946
Sandwell Metropolitan Borough Council,http://www.sandwell.gov.uk/info/200202/performance_and_spending/1079/payments_over_500,01-Jan-2023,Adults Social Care Capital,AXIS EUROPE PLC ,Adults Social Care Capital,22556.52,Deferred Charges/Grant Payments,2223P10_CR00004,64946
Sandwell Metropolitan Borough Council,http://www.sandwell.gov.uk/info/200202/performance_and_spending/1079/payments_over_500,01-Jan-2023,Adults Social Care Capital,DLM BUILDING & MAINTENANCE LTD,Adults Social Care Capital,5990.53,Deferred Charges/Grant Payments,2223P10_CR00005,137596
Sandwell Metropolitan Borough Council,http://www.sandwell.gov.uk/info/200202/performance_and_spending/1079/payments_over_500,01-Jan-2023,Adults Social Care Capital,DOLPHIN LIFTS MIDLANDS LTD,Adults Social Care Capital,4006.66,Deferred Charges/Grant Payments,2223P10_CR00006,123852
Sandwell Metropolitan Borough Council,http://www.sandwell.gov.uk/info/200202/performance_and_spending/1079/payments_over_500,01-Jan-2023,Adults Social Care Capital,J A BEDWARD & SON                  ,Adults Social Care Capital,1240.00,Deferred Charges/Grant Payments,2223P10_CR00007,77001727
Sandwell Metropolitan Borough Council,http://www.sandwell.gov.uk/info/200202/performance_and_spending/1079/payments_over_500,01-Jan-2023,Adults Social Care Capital,LIFT & ENGINEERING SERVICES LTD,Adults Social Care Capital,1502.26,CIP - Fixtures & Fittings,2223P10_CR00008,77003962
Sandwell Metropolitan Borough Council,http://www.sandwell.gov.uk/info/200202/performance_and_spending/1079/payments_over_500,16-Jan-2023,Adults Social Care Capital,LONDON BOROUGH OF CROYDON COMMUNITY EQUIPMENT SERVICES,Adults Social Care Capital,8602.69,Equipment & Furniture ,2223P10_CR00009,128573
Sandwell Metropolitan Borough Council,http://www.sandwell.gov.uk/info/200202/performance_and_spending/1079/payments_over_500,01-Jan-2023,Adults Social Care Capital,MEDIPOST (UK) LTD,Adults Social Care Capital,503.40,CIP - Fixtures & Fittings,2223P10_CR00010,84875
Sandwell Metropolitan Borough Council,http://www.sandwell.gov.uk/info/200202/performance_and_spending/1079/payments_over_500,01-Jan-2023,Adults Social Care Capital,NOTTINGHAM REHAB LIMITED T/A NRS HEALTHCARE,Adults Social Care Capital,1232.00,Externally Purchased Professional Services ,2223P10_CR00011,01700495
Sandwell Metropolitan Borough Council,http://www.sandwell.gov.uk/info/200202/performance_and_spending/1079/payments_over_500,01-Jan-2023,Adults Social Care Capital,NOTTINGHAM REHAB LIMITED T/A NRS HEALTHCARE,Adults Social Care Capital,5908.00,Externally Purchased Professional Services ,2223P10_CR00012,01700495
Sandwell Metropolitan Borough Council,http://www.sandwell.gov.uk/info/200202/performance_and_spending/1079/payments_over_500,01-Jan-2023,Adults Social Care Capital,PR PROPERTY MAINTENANCE,Adults Social Care Capital,7974.99,Deferred Charges/Grant Payments,2223P10_CR00013,33836
Sandwell Metropolitan Borough Council,http://www.sandwell.gov.uk/info/200202/performance_and_spending/1079/payments_over_500,01-Jan-2023,Adults Social Care Capital,PR PROPERTY MAINTENANCE,Adults Social Care Capital,11532.65,Deferred Charges/Grant Payments,2223P10_CR00014,33836
Sandwell Metropolitan Borough Council,http://www.sandwell.gov.uk/info/200202/performance_and_spending/1079/payments_over_500,01-Jan-2023,Adults Social Care Capital,PR PROPERTY MAINTENANCE,Adults Social Care Capital,21046.49,Deferred Charges/Grant Payments,2223P10_CR00015,33836
Sandwell Metropolitan Borough Council,http://www.sandwell.gov.uk/info/200202/performance_and_spending/1079/payments_over_500,30-Jan-2023,Adults Social Care Capital,SEDDON CONSTRUCTION LIMITED,Adults Social Care Capital,193829.52,"CIP - New Construction,Conversion, Enhancement & Reno",2223P10_CR00016,132999
Sandwell Metropolitan Borough Council,http://www.sandwell.gov.uk/info/200202/performance_and_spending/1079/payments_over_500,01-Jan-2023,Adults Social Care Capital,INTEGRATED DESIGNS & ASSOCIATES LTD,Adults Social Care Capital,3398.75,Deferred Charges/Grant Payments,2223P10_CR00017,22339
Sandwell Metropolitan Borough Council,http://www.sandwell.gov.uk/info/200202/performance_and_spending/1079/payments_over_500,01-Jan-2023,Adults Social Care Capital,READE BURAY LIMITED,Adults Social Care Capital,1080.00,Deferred Charges/Grant Payments,2223P10_CR00018,130928
Sandwell Metropolitan Borough Council,http://www.sandwell.gov.uk/info/200202/performance_and_spending/1079/payments_over_500,01-Jan-2023,Adults Social Care Capital,PARVINDER SINGH.,Adults Social Care Capital,12149.20,Deferred Charges/Grant Payments,2223P10_CR00019,164062
Sandwell Metropolitan Borough Council,http://www.sandwell.gov.uk/info/200202/performance_and_spending/1079/payments_over_500,01-Jan-2023,Childrens Services,JAMES PYCRAFT T/A TRAIN TIME UK,Childrens Services,-1950.00,Externally Purchased Professional Services ,2223P10_CR00020,164626
Sandwell Metropolitan Borough Council,http://www.sandwell.gov.uk/info/200202/performance_and_spending/1079/payments_over_500,01-Jan-2023,Childrens Services,ACCESS UK LTD,Childrens Services,60268.58,ICT ,2223P10_CR00021,133607
Sandwell Metropolitan Borough Council,http://www.sandwell.gov.uk/info/200202/performance_and_spending/1079/payments_over_500,26-Jan-2023,Childrens Services,AMP BIOMASS FUEL LTD T/A AMP CLEAN ENERGY,Childrens Services,3941.07,Energy Costs-Bio Energy Costs.Bio Mass Fuel.0.0.Sandwell MBC,2223P10_CR00022,128761
Sandwell Metropolitan Borough Council,http://www.sandwell.gov.uk/info/200202/performance_and_spending/1079/payments_over_500,09-Jan-2023,Childrens Services,AMP BIOMASS FUEL LTD T/A AMP CLEAN ENERGY,Childrens Services,5767.14,Energy Costs-Bio Energy Costs.Bio Mass Fuel.0.0.Sandwell MBC,2223P10_CR00023,128761
Sandwell Metropolitan Borough Council,http://www.sandwell.gov.uk/info/200202/performance_and_spending/1079/payments_over_500,03-Jan-2023,Childrens Services,ANGEL SOLUTIONS LTD,Childrens Services,4995.00,ICT ,2223P10_CR00024,103743
Sandwell Metropolitan Borough Council,http://www.sandwell.gov.uk/info/200202/performance_and_spending/1079/payments_over_500,11-Jan-2023,Childrens Services,APD PRINT & DESIGN,Childrens Services,3320.00,Advertising & Publicity,2223P10_CR00025,49454
Sandwell Metropolitan Borough Council,http://www.sandwell.gov.uk/info/200202/performance_and_spending/1079/payments_over_500,01-Jan-2023,Childrens Services,APD PRINT & DESIGN,Childrens Services,4815.00,"Printing, Stationery & General Office Expenses",2223P10_CR00026,49454
Sandwell Metropolitan Borough Council,http://www.sandwell.gov.uk/info/200202/performance_and_spending/1079/payments_over_500,01-Jan-2023,Childrens Services,AVANTI GAS LIMITED,Childrens Services,2384.71,Gas,2223P10_CR00027,60069
Sandwell Metropolitan Borough Council,http://www.sandwell.gov.uk/info/200202/performance_and_spending/1079/payments_over_500,13-Jan-2023,Childrens Services,BARNARDO SERVICES LIMITED,Childrens Services,671868.36,Contract Payments,2223P10_CR00028,9330
Sandwell Metropolitan Borough Council,http://www.sandwell.gov.uk/info/200202/performance_and_spending/1079/payments_over_500,01-Jan-2023,Childrens Services,BETHEL CONVENTION CENTRE,Childrens Services,2137.50,Hire of Facilities,2223P10_CR00029,01719624
Sandwell Metropolitan Borough Council,http://www.sandwell.gov.uk/info/200202/performance_and_spending/1079/payments_over_500,11-Jan-2023,Childrens Services,BIDFOOD,Childrens Services,633.57,Catering Provisions,2223P10_CR00030,164984
Sandwell Metropolitan Borough Council,http://www.sandwell.gov.uk/info/200202/performance_and_spending/1079/payments_over_500,01-Jan-2023,Childrens Services,BLAKEMORE FOOD SERVICE LTD,Childrens Services,591.41,Catering Provisions,2223P10_CR00031,2518
Sandwell Metropolitan Borough Council,http://www.sandwell.gov.uk/info/200202/performance_and_spending/1079/payments_over_500,01-Jan-2023,Childrens Services,CERTAS ENERGY LIMITED,Childrens Services,724.37,Oil,2223P10_CR00032,80421
Sandwell Metropolitan Borough Council,http://www.sandwell.gov.uk/info/200202/performance_and_spending/1079/payments_over_500,01-Jan-2023,Childrens Services,CERTAS ENERGY LIMITED,Childrens Services,725.10,Oil,2223P10_CR00033,80421
Sandwell Metropolitan Borough Council,http://www.sandwell.gov.uk/info/200202/performance_and_spending/1079/payments_over_500,10-Jan-2023,Childrens Services,CERTAS ENERGY LIMITED,Childrens Services,2271.96,Energy Costs-Bio Energy Costs.Bio Mass Fuel.0.0.Sandwell MBC,2223P10_CR00034,80421
Sandwell Metropolitan Borough Council,http://www.sandwell.gov.uk/info/200202/performance_and_spending/1079/payments_over_500,04-Jan-2023,Childrens Services,CHRIST CHURCH C OF E PRIMARY SCHOOL,Childrens Services,15358.00,Grant Payments,2223P10_CR00035,1705
Sandwell Metropolitan Borough Council,http://www.sandwell.gov.uk/info/200202/performance_and_spending/1079/payments_over_500,11-Jan-2023,Childrens Services,CHUBB FIRE & SECURITY LIMITED t/a CHUBB ELECTRONIC SECURITY,Childrens Services,804.00,Security,2223P10_CR00036,81343
Sandwell Metropolitan Borough Council,http://www.sandwell.gov.uk/info/200202/performance_and_spending/1079/payments_over_500,01-Jan-2023,Childrens Services,CHUBB FIRE & SECURITY LIMITED t/a CHUBB ELECTRONIC SECURITY,Childrens Services,970.20,Security,2223P10_CR00037,81343
Sandwell Metropolitan Borough Council,http://www.sandwell.gov.uk/info/200202/performance_and_spending/1079/payments_over_500,12-Jan-2023,Childrens Services,COGNISOFT LTD,Childrens Services,1000.00,Externally Purchased Professional Services ,2223P10_CR00038,134201
Sandwell Metropolitan Borough Council,http://www.sandwell.gov.uk/info/200202/performance_and_spending/1079/payments_over_500,04-Jan-2023,Childrens Services,CORONA ENERGY RETAIL 2 LIMITED,Childrens Services,1228.54,Gas,2223P10_CR00039,118395
Sandwell Metropolitan Borough Council,http://www.sandwell.gov.uk/info/200202/performance_and_spending/1079/payments_over_500,01-Jan-2023,Childrens Services,DEBORAH UDAKIS CONSULTANCY LTD,Childrens Services,950.00,Externally Purchased Professional Services ,2223P10_CR00040,139858
Sandwell Metropolitan Borough Council,http://www.sandwell.gov.uk/info/200202/performance_and_spending/1079/payments_over_500,05-Jan-2023,Childrens Services,DEBORAH UDAKIS CONSULTANCY LTD,Childrens Services,1000.00,Externally Purchased Professional Services ,2223P10_CR00041,139858
Sandwell Metropolitan Borough Council,http://www.sandwell.gov.uk/info/200202/performance_and_spending/1079/payments_over_500,17-Jan-2023,Childrens Services,DIRECTION TRAINING & MANAGEMENT,Childrens Services,1000.00,Externally Purchased Professional Services ,2223P10_CR00042,01727395
Sandwell Metropolitan Borough Council,http://www.sandwell.gov.uk/info/200202/performance_and_spending/1079/payments_over_500,01-Jan-2023,Childrens Services,EON NEXT ENERGY LTD,Childrens Services,753.94,Electricity,2223P10_CR00043,149566
Sandwell Metropolitan Borough Council,http://www.sandwell.gov.uk/info/200202/performance_and_spending/1079/payments_over_500,01-Jan-2023,Childrens Services,EON NEXT ENERGY LTD,Childrens Services,2004.84,Electricity,2223P10_CR00044,149566
Sandwell Metropolitan Borough Council,http://www.sandwell.gov.uk/info/200202/performance_and_spending/1079/payments_over_500,01-Jan-2023,Childrens Services,EURO SHAF TRAINING SERVICES LIMITED,Childrens Services,875.00,Externally Purchased Professional Services ,2223P10_CR00045,76260
Sandwell Metropolitan Borough Council,http://www.sandwell.gov.uk/info/200202/performance_and_spending/1079/payments_over_500,01-Jan-2023,Childrens Services,GEL DATA SOLUTIONS LIMITED,Childrens Services,828.00,Licences,2223P10_CR00046,88332
Sandwell Metropolitan Borough Council,http://www.sandwell.gov.uk/info/200202/performance_and_spending/1079/payments_over_500,01-Jan-2023,Childrens Services,GEL DATA SOLUTIONS LIMITED,Childrens Services,828.00,Licences,2223P10_CR00047,88332
Sandwell Metropolitan Borough Council,http://www.sandwell.gov.uk/info/200202/performance_and_spending/1079/payments_over_500,13-Jan-2023,Childrens Services,GL EDUCATION GROUP LIMITED,Childrens Services,5348.65,Externally Purchased Professional Services ,2223P10_CR00048,01447883
Sandwell Metropolitan Borough Council,http://www.sandwell.gov.uk/info/200202/performance_and_spending/1079/payments_over_500,09-Jan-2023,Childrens Services,GREEN NEW DEAL UK LTD,Childrens Services,3475.00,Ingestre Hall Arts Centre.Residential Centres.Weekends functions/self catering.0.0.Sandwell MBC,2223P10_CR00049,147701
Sandwell Metropolitan Borough Council,http://www.sandwell.gov.uk/info/200202/performance_and_spending/1079/payments_over_500,01-Jan-2023,Childrens Services,HANBURY PRIMARY SCHOOL,Childrens Services,1085.21,Externally Purchased Professional Services ,2223P10_CR00050,01734408
Sandwell Metropolitan Borough Council,http://www.sandwell.gov.uk/info/200202/performance_and_spending/1079/payments_over_500,01-Jan-2023,Childrens Services,HANBURY PRIMARY SCHOOL,Childrens Services,1085.21,Externally Purchased Professional Services ,2223P10_CR00051,01734408
Sandwell Metropolitan Borough Council,http://www.sandwell.gov.uk/info/200202/performance_and_spending/1079/payments_over_500,01-Jan-2023,Childrens Services,HANBURY PRIMARY SCHOOL,Childrens Services,1085.21,Externally Purchased Professional Services ,2223P10_CR00052,01734408
Sandwell Metropolitan Borough Council,http://www.sandwell.gov.uk/info/200202/performance_and_spending/1079/payments_over_500,01-Jan-2023,Childrens Services,HANBURY PRIMARY SCHOOL,Childrens Services,1085.21,Externally Purchased Professional Services ,2223P10_CR00053,01734408
Sandwell Metropolitan Borough Council,http://www.sandwell.gov.uk/info/200202/performance_and_spending/1079/payments_over_500,01-Jan-2023,Childrens Services,HEART OF ENGLAND COMMUNITY FOUNDATION,Childrens Services,3000.00,Grant Payments,2223P10_CR00054,133427
Sandwell Metropolitan Borough Council,http://www.sandwell.gov.uk/info/200202/performance_and_spending/1079/payments_over_500,12-Jan-2023,Childrens Services,HOPE EDUCATION LTD,Childrens Services,843.24,"Printing, Stationery & General Office Expenses",2223P10_CR00055,01777295
Sandwell Metropolitan Borough Council,http://www.sandwell.gov.uk/info/200202/performance_and_spending/1079/payments_over_500,01-Jan-2023,Childrens Services,INGESTRE ORANGERY AND GARDENS,Childrens Services,650.00,Materials & Consumables,2223P10_CR00056,127331
Sandwell Metropolitan Borough Council,http://www.sandwell.gov.uk/info/200202/performance_and_spending/1079/payments_over_500,01-Jan-2023,Childrens Services,IRON MAIDENS COMMERCIAL LAUNDRY LIMITED,Childrens Services,646.64,Laundry,2223P10_CR00057,124628
Sandwell Metropolitan Borough Council,http://www.sandwell.gov.uk/info/200202/performance_and_spending/1079/payments_over_500,03-Jan-2023,Childrens Services,ITS TRAINING (UK) LTD,Childrens Services,729.00,Externally Purchased Professional Services ,2223P10_CR00058,17157
Sandwell Metropolitan Borough Council,http://www.sandwell.gov.uk/info/200202/performance_and_spending/1079/payments_over_500,01-Jan-2023,Childrens Services,JUBILEE PARK COMMUNITY CENTRE,Childrens Services,720.00,Hire of Facilities,2223P10_CR00059,13048
Sandwell Metropolitan Borough Council,http://www.sandwell.gov.uk/info/200202/performance_and_spending/1079/payments_over_500,06-Jan-2023,Childrens Services,LEARNING INTO EMPLOYMENT ACADEMY LTD,Childrens Services,711.89,Externally Purchased Professional Services ,2223P10_CR00060,147427
Sandwell Metropolitan Borough Council,http://www.sandwell.gov.uk/info/200202/performance_and_spending/1079/payments_over_500,01-Jan-2023,Childrens Services,LEARNING INTO EMPLOYMENT ACADEMY LTD,Childrens Services,1242.99,Externally Purchased Professional Services ,2223P10_CR00061,147427
Sandwell Metropolitan Borough Council,http://www.sandwell.gov.uk/info/200202/performance_and_spending/1079/payments_over_500,01-Jan-2023,Childrens Services,LEARNING INTO EMPLOYMENT ACADEMY LTD,Childrens Services,1242.99,Externally Purchased Professional Services ,2223P10_CR00062,147427
Sandwell Metropolitan Borough Council,http://www.sandwell.gov.uk/info/200202/performance_and_spending/1079/payments_over_500,06-Jan-2023,Childrens Services,LEARNING INTO EMPLOYMENT ACADEMY LTD,Childrens Services,1242.99,Externally Purchased Professional Services ,2223P10_CR00063,147427
Sandwell Metropolitan Borough Council,http://www.sandwell.gov.uk/info/200202/performance_and_spending/1079/payments_over_500,16-Jan-2023,Childrens Services,LOCAL EDUCATION AND DEVELOPMENT,Childrens Services,3016.00,Discretionary Awards,2223P10_CR00064,148259
Sandwell Metropolitan Borough Council,http://www.sandwell.gov.uk/info/200202/performance_and_spending/1079/payments_over_500,04-Jan-2023,Childrens Services,MAJOR COACHWAYS LIMITED,Childrens Services,900.00,Equipment & Furniture ,2223P10_CR00065,06003722
Sandwell Metropolitan Borough Council,http://www.sandwell.gov.uk/info/200202/performance_and_spending/1079/payments_over_500,01-Jan-2023,Childrens Services,NET BUILDER LIMITED,Childrens Services,12500.00,Externally Purchased Professional Services ,2223P10_CR00066,139019
Sandwell Metropolitan Borough Council,http://www.sandwell.gov.uk/info/200202/performance_and_spending/1079/payments_over_500,01-Jan-2023,Childrens Services,NEWAVE LTD,Childrens Services,959.92,Agency Staff,2223P10_CR00067,101666
Sandwell Metropolitan Borough Council,http://www.sandwell.gov.uk/info/200202/performance_and_spending/1079/payments_over_500,01-Jan-2023,Childrens Services,NEWAVE LTD,Childrens Services,1942.86,Agency Staff,2223P10_CR00068,101666
Sandwell Metropolitan Borough Council,http://www.sandwell.gov.uk/info/200202/performance_and_spending/1079/payments_over_500,01-Jan-2023,Childrens Services,NEWAVE LTD,Childrens Services,2196.24,Agency Staff,2223P10_CR00069,101666
Sandwell Metropolitan Borough Council,http://www.sandwell.gov.uk/info/200202/performance_and_spending/1079/payments_over_500,01-Jan-2023,Childrens Services,NEWAVE LTD,Childrens Services,2436.71,Agency Staff,2223P10_CR00070,101666
Sandwell Metropolitan Borough Council,http://www.sandwell.gov.uk/info/200202/performance_and_spending/1079/payments_over_500,01-Jan-2023,Childrens Services,NORTH BIRMINGHAM TRAVEL LTD,Childrens Services,105530.98,Public Transport,2223P10_CR00071,72112
Sandwell Metropolitan Borough Council,http://www.sandwell.gov.uk/info/200202/performance_and_spending/1079/payments_over_500,01-Jan-2023,Childrens Services,NORTH BIRMINGHAM TRAVEL LTD,Childrens Services,105530.98,Public Transport,2223P10_CR00072,72112
Sandwell Metropolitan Borough Council,http://www.sandwell.gov.uk/info/200202/performance_and_spending/1079/payments_over_500,03-Jan-2023,Childrens Services,NOTTINGHAMSHIRE COUNTY COUNCIL,Childrens Services,1123.20,External Contract Hire,2223P10_CR00073,01218759
Sandwell Metropolitan Borough Council,http://www.sandwell.gov.uk/info/200202/performance_and_spending/1079/payments_over_500,03-Jan-2023,Childrens Services,NOTTINGHAMSHIRE COUNTY COUNCIL,Childrens Services,1910.70,External Contract Hire,2223P10_CR00074,01218759
Sandwell Metropolitan Borough Council,http://www.sandwell.gov.uk/info/200202/performance_and_spending/1079/payments_over_500,26-Jan-2023,Childrens Services,OPEN AWARDS,Childrens Services,550.00,Conference Expenses,2223P10_CR00075,124650
Sandwell Metropolitan Borough Council,http://www.sandwell.gov.uk/info/200202/performance_and_spending/1079/payments_over_500,15-Jan-2023,Childrens Services,PLACES FOR PEOPLE LEISURE LIMITED,Childrens Services,525.00,Hire of Facilities,2223P10_CR00076,119069
Sandwell Metropolitan Borough Council,http://www.sandwell.gov.uk/info/200202/performance_and_spending/1079/payments_over_500,03-Jan-2023,Childrens Services,PROSPECTS SERVICES LIMITED,Childrens Services,4089.92,Grant Payments,2223P10_CR00077,01721288
Sandwell Metropolitan Borough Council,http://www.sandwell.gov.uk/info/200202/performance_and_spending/1079/payments_over_500,01-Jan-2023,Childrens Services,REPOSE FURNITURE LTD,Childrens Services,716.39,Externally Purchased Professional Services ,2223P10_CR00078,159480
Sandwell Metropolitan Borough Council,http://www.sandwell.gov.uk/info/200202/performance_and_spending/1079/payments_over_500,01-Jan-2023,Childrens Services,ROYALE TRAINING LTD,Childrens Services,1579.30,Externally Purchased Professional Services ,2223P10_CR00079,133604
Sandwell Metropolitan Borough Council,http://www.sandwell.gov.uk/info/200202/performance_and_spending/1079/payments_over_500,01-Jan-2023,Childrens Services,ROYALE TRAINING LTD,Childrens Services,1579.30,Externally Purchased Professional Services ,2223P10_CR00080,133604
Sandwell Metropolitan Borough Council,http://www.sandwell.gov.uk/info/200202/performance_and_spending/1079/payments_over_500,17-Jan-2023,Childrens Services,ROYALE TRAINING LTD,Childrens Services,1579.30,Externally Purchased Professional Services ,2223P10_CR00081,133604
Sandwell Metropolitan Borough Council,http://www.sandwell.gov.uk/info/200202/performance_and_spending/1079/payments_over_500,17-Jan-2023,Childrens Services,ROYALE TRAINING LTD,Childrens Services,1579.30,Externally Purchased Professional Services ,2223P10_CR00082,133604
Sandwell Metropolitan Borough Council,http://www.sandwell.gov.uk/info/200202/performance_and_spending/1079/payments_over_500,01-Jan-2023,Childrens Services,SANDWELL CHILDREN'S TRUST,Childrens Services,5421071.00,Other Establishments,2223P10_CR00083,133302
Sandwell Metropolitan Borough Council,http://www.sandwell.gov.uk/info/200202/performance_and_spending/1079/payments_over_500,16-Jan-2023,Childrens Services,SHRED-IT LIMITED,Childrens Services,525.53,Waste Disposal Charges,2223P10_CR00084,01754926
Sandwell Metropolitan Borough Council,http://www.sandwell.gov.uk/info/200202/performance_and_spending/1079/payments_over_500,01-Jan-2023,Childrens Services,SHRED-IT LIMITED,Childrens Services,1173.25,Waste Disposal Charges,2223P10_CR00085,01754926
Sandwell Metropolitan Borough Council,http://www.sandwell.gov.uk/info/200202/performance_and_spending/1079/payments_over_500,01-Jan-2023,Childrens Services,SKILLS WORK AND ENTERPRISE DEVELOPMENT AGENCY LTD,Childrens Services,575.00,Hire of Facilities,2223P10_CR00086,5092
Sandwell Metropolitan Borough Council,http://www.sandwell.gov.uk/info/200202/performance_and_spending/1079/payments_over_500,01-Jan-2023,Childrens Services,SSE ENERGY SUPPLY LIMITED,Childrens Services,7217.12,Electricity,2223P10_CR00087,116134
Sandwell Metropolitan Borough Council,http://www.sandwell.gov.uk/info/200202/performance_and_spending/1079/payments_over_500,01-Jan-2023,Childrens Services,TELFORD & WREKIN COUNCIL,Childrens Services,1379.47,Business Rates,2223P10_CR00088,01586981
Sandwell Metropolitan Borough Council,http://www.sandwell.gov.uk/info/200202/performance_and_spending/1079/payments_over_500,01-Jan-2023,Childrens Services,THE ALBION FOUNDATION,Childrens Services,1260.00,Hire of Facilities,2223P10_CR00089,21026659
Sandwell Metropolitan Borough Council,http://www.sandwell.gov.uk/info/200202/performance_and_spending/1079/payments_over_500,01-Jan-2023,Childrens Services,THE ALBION FOUNDATION,Childrens Services,1298.08,Hire of Facilities,2223P10_CR00090,21026659
Sandwell Metropolitan Borough Council,http://www.sandwell.gov.uk/info/200202/performance_and_spending/1079/payments_over_500,04-Jan-2023,Childrens Services,THOMAS CHARLES FACILITIES & MAINTENANCE LTD,Childrens Services,720.00,Contract Cleaning,2223P10_CR00091,114170
Sandwell Metropolitan Borough Council,http://www.sandwell.gov.uk/info/200202/performance_and_spending/1079/payments_over_500,04-Jan-2023,Childrens Services,THOMAS CHARLES FACILITIES & MAINTENANCE LTD,Childrens Services,810.00,Contract Cleaning,2223P10_CR00092,114170
Sandwell Metropolitan Borough Council,http://www.sandwell.gov.uk/info/200202/performance_and_spending/1079/payments_over_500,04-Jan-2023,Childrens Services,THOMAS CHARLES FACILITIES & MAINTENANCE LTD,Childrens Services,960.00,Building Maintenance & Improvements,2223P10_CR00093,114170
Sandwell Metropolitan Borough Council,http://www.sandwell.gov.uk/info/200202/performance_and_spending/1079/payments_over_500,04-Jan-2023,Childrens Services,THOMAS CHARLES FACILITIES & MAINTENANCE LTD,Childrens Services,1080.00,Contract Cleaning,2223P10_CR00094,114170
Sandwell Metropolitan Borough Council,http://www.sandwell.gov.uk/info/200202/performance_and_spending/1079/payments_over_500,04-Jan-2023,Childrens Services,THOMAS CHARLES FACILITIES & MAINTENANCE LTD,Childrens Services,1575.00,Security,2223P10_CR00095,114170
Sandwell Metropolitan Borough Council,http://www.sandwell.gov.uk/info/200202/performance_and_spending/1079/payments_over_500,04-Jan-2023,Childrens Services,THOMAS CHARLES FACILITIES & MAINTENANCE LTD,Childrens Services,1800.00,Contract Cleaning,2223P10_CR00096,114170
Sandwell Metropolitan Borough Council,http://www.sandwell.gov.uk/info/200202/performance_and_spending/1079/payments_over_500,04-Jan-2023,Childrens Services,THOMAS CHARLES FACILITIES & MAINTENANCE LTD,Childrens Services,1890.00,Contract Cleaning,2223P10_CR00097,114170
Sandwell Metropolitan Borough Council,http://www.sandwell.gov.uk/info/200202/performance_and_spending/1079/payments_over_500,04-Jan-2023,Childrens Services,THOMAS CHARLES FACILITIES & MAINTENANCE LTD,Childrens Services,1890.00,Contract Cleaning,2223P10_CR00098,114170
Sandwell Metropolitan Borough Council,http://www.sandwell.gov.uk/info/200202/performance_and_spending/1079/payments_over_500,04-Jan-2023,Childrens Services,THOMAS CHARLES FACILITIES & MAINTENANCE LTD,Childrens Services,2835.00,Contract Cleaning,2223P10_CR00099,114170
Sandwell Metropolitan Borough Council,http://www.sandwell.gov.uk/info/200202/performance_and_spending/1079/payments_over_500,01-Jan-2023,Childrens Services,TOPPS MANAGEMENT & SUPPORT SERVICES LTD,Childrens Services,996.94,Externally Purchased Professional Services ,2223P10_CR00100,68846
Sandwell Metropolitan Borough Council,http://www.sandwell.gov.uk/info/200202/performance_and_spending/1079/payments_over_500,09-Jan-2023,Childrens Services,TOPPS MANAGEMENT & SUPPORT SERVICES LTD,Childrens Services,3214.26,Discretionary Awards,2223P10_CR00101,68846
Sandwell Metropolitan Borough Council,http://www.sandwell.gov.uk/info/200202/performance_and_spending/1079/payments_over_500,14-Jan-2023,Childrens Services,TOTALENERGIES GAS & POWER LTD,Childrens Services,506.94,Electricity,2223P10_CR00102,107605
Sandwell Metropolitan Borough Council,http://www.sandwell.gov.uk/info/200202/performance_and_spending/1079/payments_over_500,13-Jan-2023,Childrens Services,TOTALENERGIES GAS & POWER LTD,Childrens Services,517.38,Gas,2223P10_CR00103,107605
Sandwell Metropolitan Borough Council,http://www.sandwell.gov.uk/info/200202/performance_and_spending/1079/payments_over_500,11-Jan-2023,Childrens Services,TOTALENERGIES GAS & POWER LTD,Childrens Services,532.48,Electricity,2223P10_CR00104,107605
Sandwell Metropolitan Borough Council,http://www.sandwell.gov.uk/info/200202/performance_and_spending/1079/payments_over_500,14-Jan-2023,Childrens Services,TOTALENERGIES GAS & POWER LTD,Childrens Services,539.89,Electricity,2223P10_CR00105,107605
Sandwell Metropolitan Borough Council,http://www.sandwell.gov.uk/info/200202/performance_and_spending/1079/payments_over_500,14-Jan-2023,Childrens Services,TOTALENERGIES GAS & POWER LTD,Childrens Services,545.57,Electricity,2223P10_CR00106,107605
Sandwell Metropolitan Borough Council,http://www.sandwell.gov.uk/info/200202/performance_and_spending/1079/payments_over_500,10-Jan-2023,Childrens Services,TOTALENERGIES GAS & POWER LTD,Childrens Services,558.74,Gas,2223P10_CR00107,107605
Sandwell Metropolitan Borough Council,http://www.sandwell.gov.uk/info/200202/performance_and_spending/1079/payments_over_500,14-Jan-2023,Childrens Services,TOTALENERGIES GAS & POWER LTD,Childrens Services,576.10,Electricity,2223P10_CR00108,107605
Sandwell Metropolitan Borough Council,http://www.sandwell.gov.uk/info/200202/performance_and_spending/1079/payments_over_500,10-Jan-2023,Childrens Services,TOTALENERGIES GAS & POWER LTD,Childrens Services,602.08,Gas,2223P10_CR00109,107605
Sandwell Metropolitan Borough Council,http://www.sandwell.gov.uk/info/200202/performance_and_spending/1079/payments_over_500,01-Jan-2023,Childrens Services,TOTALENERGIES GAS & POWER LTD,Childrens Services,682.77,Electricity,2223P10_CR00110,107605
Sandwell Metropolitan Borough Council,http://www.sandwell.gov.uk/info/200202/performance_and_spending/1079/payments_over_500,14-Jan-2023,Childrens Services,TOTALENERGIES GAS & POWER LTD,Childrens Services,810.37,Electricity,2223P10_CR00111,107605
Sandwell Metropolitan Borough Council,http://www.sandwell.gov.uk/info/200202/performance_and_spending/1079/payments_over_500,01-Jan-2023,Childrens Services,TOTALENERGIES GAS & POWER LTD,Childrens Services,899.01,Electricity,2223P10_CR00112,107605
Sandwell Metropolitan Borough Council,http://www.sandwell.gov.uk/info/200202/performance_and_spending/1079/payments_over_500,14-Jan-2023,Childrens Services,TOTALENERGIES GAS & POWER LTD,Childrens Services,1008.61,Electricity,2223P10_CR00113,107605
Sandwell Metropolitan Borough Council,http://www.sandwell.gov.uk/info/200202/performance_and_spending/1079/payments_over_500,14-Jan-2023,Childrens Services,TOTALENERGIES GAS & POWER LTD,Childrens Services,1346.56,Electricity,2223P10_CR00114,107605
Sandwell Metropolitan Borough Council,http://www.sandwell.gov.uk/info/200202/performance_and_spending/1079/payments_over_500,14-Jan-2023,Childrens Services,TOTALENERGIES GAS & POWER LTD,Childrens Services,1770.81,Electricity,2223P10_CR00115,107605
Sandwell Metropolitan Borough Council,http://www.sandwell.gov.uk/info/200202/performance_and_spending/1079/payments_over_500,01-Jan-2023,Childrens Services,TOTALENERGIES GAS & POWER LTD,Childrens Services,1816.38,Electricity,2223P10_CR00116,107605
Sandwell Metropolitan Borough Council,http://www.sandwell.gov.uk/info/200202/performance_and_spending/1079/payments_over_500,10-Jan-2023,Childrens Services,TOTALENERGIES GAS & POWER LTD,Childrens Services,2119.15,Gas,2223P10_CR00117,107605
Sandwell Metropolitan Borough Council,http://www.sandwell.gov.uk/info/200202/performance_and_spending/1079/payments_over_500,01-Jan-2023,Childrens Services,TOTALENERGIES GAS & POWER LTD,Childrens Services,2349.59,Electricity,2223P10_CR00118,107605
Sandwell Metropolitan Borough Council,http://www.sandwell.gov.uk/info/200202/performance_and_spending/1079/payments_over_500,14-Jan-2023,Childrens Services,TOTALENERGIES GAS & POWER LTD,Childrens Services,2414.69,Electricity,2223P10_CR00119,107605
Sandwell Metropolitan Borough Council,http://www.sandwell.gov.uk/info/200202/performance_and_spending/1079/payments_over_500,01-Jan-2023,Childrens Services,TOTALENERGIES GAS & POWER LTD,Childrens Services,2800.03,Electricity,2223P10_CR00120,107605
Sandwell Metropolitan Borough Council,http://www.sandwell.gov.uk/info/200202/performance_and_spending/1079/payments_over_500,05-Jan-2023,Childrens Services,WATER PLUS SELECT LIMITED,Childrens Services,521.91,Water Services,2223P10_CR00121,129644
Sandwell Metropolitan Borough Council,http://www.sandwell.gov.uk/info/200202/performance_and_spending/1079/payments_over_500,04-Jan-2023,Childrens Services,WATER PLUS SELECT LIMITED,Childrens Services,1152.18,Water Services,2223P10_CR00122,129644
Sandwell Metropolitan Borough Council,http://www.sandwell.gov.uk/info/200202/performance_and_spending/1079/payments_over_500,01-Jan-2023,Childrens Services,WEST BROMWICH ALBION FC LTD,Childrens Services,1167.60,Hire of Facilities,2223P10_CR00123,01606624
Sandwell Metropolitan Borough Council,http://www.sandwell.gov.uk/info/200202/performance_and_spending/1079/payments_over_500,01-Jan-2023,Childrens Services,WOLVERHAMPTON VOLUNTARY SECTOR COUNCIL,Childrens Services,1929.00,Grants,2223P10_CR00124,43383
Sandwell Metropolitan Borough Council,http://www.sandwell.gov.uk/info/200202/performance_and_spending/1079/payments_over_500,01-Jan-2023,Childrens Services,BEN SEMP,Childrens Services,2500.00,Externally Purchased Professional Services ,2223P10_CR00125,107250
Sandwell Metropolitan Borough Council,http://www.sandwell.gov.uk/info/200202/performance_and_spending/1079/payments_over_500,16-Jan-2023,Childrens Services,"RACHEL SMITH,",Childrens Services,1000.00,Externally Purchased Professional Services ,2223P10_CR00126,162210
Sandwell Metropolitan Borough Council,http://www.sandwell.gov.uk/info/200202/performance_and_spending/1079/payments_over_500,10-Jan-2023,Childrens Services,REDACTED PERSONAL DATA,Childrens Services,727.27,External Contract Hire,2223P10_CR00127,REDACTED PERSONAL DATA
Sandwell Metropolitan Borough Council,http://www.sandwell.gov.uk/info/200202/performance_and_spending/1079/payments_over_500,10-Jan-2023,Childrens Services,REDACTED PERSONAL DATA,Childrens Services,545.45,External Contract Hire,2223P10_CR00128,REDACTED PERSONAL DATA
Sandwell Metropolitan Borough Council,http://www.sandwell.gov.uk/info/200202/performance_and_spending/1079/payments_over_500,10-Jan-2023,Childrens Services,REDACTED PERSONAL DATA,Childrens Services,1090.90,External Contract Hire,2223P10_CR00129,REDACTED PERSONAL DATA
Sandwell Metropolitan Borough Council,http://www.sandwell.gov.uk/info/200202/performance_and_spending/1079/payments_over_500,10-Jan-2023,Childrens Services,REDACTED PERSONAL DATA,Childrens Services,727.27,External Contract Hire,2223P10_CR00130,REDACTED PERSONAL DATA
Sandwell Metropolitan Borough Council,http://www.sandwell.gov.uk/info/200202/performance_and_spending/1079/payments_over_500,10-Jan-2023,Childrens Services,REDACTED PERSONAL DATA,Childrens Services,727.27,External Contract Hire,2223P10_CR00131,REDACTED PERSONAL DATA
Sandwell Metropolitan Borough Council,http://www.sandwell.gov.uk/info/200202/performance_and_spending/1079/payments_over_500,10-Jan-2023,Childrens Services,REDACTED PERSONAL DATA,Childrens Services,727.27,External Contract Hire,2223P10_CR00132,REDACTED PERSONAL DATA
Sandwell Metropolitan Borough Council,http://www.sandwell.gov.uk/info/200202/performance_and_spending/1079/payments_over_500,10-Jan-2023,Childrens Services,REDACTED PERSONAL DATA,Childrens Services,545.45,External Contract Hire,2223P10_CR00133,REDACTED PERSONAL DATA
Sandwell Metropolitan Borough Council,http://www.sandwell.gov.uk/info/200202/performance_and_spending/1079/payments_over_500,10-Jan-2023,Childrens Services,REDACTED PERSONAL DATA,Childrens Services,545.45,External Contract Hire,2223P10_CR00134,REDACTED PERSONAL DATA
Sandwell Metropolitan Borough Council,http://www.sandwell.gov.uk/info/200202/performance_and_spending/1079/payments_over_500,10-Jan-2023,Childrens Services,REDACTED PERSONAL DATA,Childrens Services,727.27,External Contract Hire,2223P10_CR00135,REDACTED PERSONAL DATA
Sandwell Metropolitan Borough Council,http://www.sandwell.gov.uk/info/200202/performance_and_spending/1079/payments_over_500,10-Jan-2023,Childrens Services,REDACTED PERSONAL DATA,Childrens Services,545.45,External Contract Hire,2223P10_CR00136,REDACTED PERSONAL DATA
Sandwell Metropolitan Borough Council,http://www.sandwell.gov.uk/info/200202/performance_and_spending/1079/payments_over_500,10-Jan-2023,Childrens Services,REDACTED PERSONAL DATA,Childrens Services,909.09,External Contract Hire,2223P10_CR00137,REDACTED PERSONAL DATA
Sandwell Metropolitan Borough Council,http://www.sandwell.gov.uk/info/200202/performance_and_spending/1079/payments_over_500,10-Jan-2023,Childrens Services,REDACTED PERSONAL DATA,Childrens Services,727.27,External Contract Hire,2223P10_CR00138,REDACTED PERSONAL DATA
Sandwell Metropolitan Borough Council,http://www.sandwell.gov.uk/info/200202/performance_and_spending/1079/payments_over_500,10-Jan-2023,Childrens Services,REDACTED PERSONAL DATA,Childrens Services,545.45,External Contract Hire,2223P10_CR00139,REDACTED PERSONAL DATA
Sandwell Metropolitan Borough Council,http://www.sandwell.gov.uk/info/200202/performance_and_spending/1079/payments_over_500,10-Jan-2023,Childrens Services,REDACTED PERSONAL DATA,Childrens Services,545.45,External Contract Hire,2223P10_CR00140,REDACTED PERSONAL DATA
Sandwell Metropolitan Borough Council,http://www.sandwell.gov.uk/info/200202/performance_and_spending/1079/payments_over_500,10-Jan-2023,Childrens Services,REDACTED PERSONAL DATA,Childrens Services,800.00,External Contract Hire,2223P10_CR00141,REDACTED PERSONAL DATA
Sandwell Metropolitan Borough Council,http://www.sandwell.gov.uk/info/200202/performance_and_spending/1079/payments_over_500,10-Jan-2023,Childrens Services,REDACTED PERSONAL DATA,Childrens Services,727.27,External Contract Hire,2223P10_CR00142,REDACTED PERSONAL DATA
Sandwell Metropolitan Borough Council,http://www.sandwell.gov.uk/info/200202/performance_and_spending/1079/payments_over_500,10-Jan-2023,Childrens Services,REDACTED PERSONAL DATA,Childrens Services,545.45,External Contract Hire,2223P10_CR00143,REDACTED PERSONAL DATA
Sandwell Metropolitan Borough Council,http://www.sandwell.gov.uk/info/200202/performance_and_spending/1079/payments_over_500,10-Jan-2023,Childrens Services,REDACTED PERSONAL DATA,Childrens Services,727.28,External Contract Hire,2223P10_CR00144,REDACTED PERSONAL DATA
Sandwell Metropolitan Borough Council,http://www.sandwell.gov.uk/info/200202/performance_and_spending/1079/payments_over_500,10-Jan-2023,Childrens Services,REDACTED PERSONAL DATA,Childrens Services,727.27,External Contract Hire,2223P10_CR00145,REDACTED PERSONAL DATA
Sandwell Metropolitan Borough Council,http://www.sandwell.gov.uk/info/200202/performance_and_spending/1079/payments_over_500,10-Jan-2023,Childrens Services,REDACTED PERSONAL DATA,Childrens Services,727.27,External Contract Hire,2223P10_CR00146,REDACTED PERSONAL DATA
Sandwell Metropolitan Borough Council,http://www.sandwell.gov.uk/info/200202/performance_and_spending/1079/payments_over_500,10-Jan-2023,Childrens Services,REDACTED PERSONAL DATA,Childrens Services,545.45,External Contract Hire,2223P10_CR00147,REDACTED PERSONAL DATA
Sandwell Metropolitan Borough Council,http://www.sandwell.gov.uk/info/200202/performance_and_spending/1079/payments_over_500,10-Jan-2023,Childrens Services,REDACTED PERSONAL DATA,Childrens Services,727.27,External Contract Hire,2223P10_CR00148,REDACTED PERSONAL DATA
Sandwell Metropolitan Borough Council,http://www.sandwell.gov.uk/info/200202/performance_and_spending/1079/payments_over_500,10-Jan-2023,Childrens Services,REDACTED PERSONAL DATA,Childrens Services,545.45,External Contract Hire,2223P10_CR00149,REDACTED PERSONAL DATA
Sandwell Metropolitan Borough Council,http://www.sandwell.gov.uk/info/200202/performance_and_spending/1079/payments_over_500,10-Jan-2023,Childrens Services,REDACTED PERSONAL DATA,Childrens Services,545.45,External Contract Hire,2223P10_CR00150,REDACTED PERSONAL DATA
Sandwell Metropolitan Borough Council,http://www.sandwell.gov.uk/info/200202/performance_and_spending/1079/payments_over_500,10-Jan-2023,Childrens Services,REDACTED PERSONAL DATA,Childrens Services,545.45,External Contract Hire,2223P10_CR00151,REDACTED PERSONAL DATA
Sandwell Metropolitan Borough Council,http://www.sandwell.gov.uk/info/200202/performance_and_spending/1079/payments_over_500,10-Jan-2023,Childrens Services,REDACTED PERSONAL DATA,Childrens Services,545.45,External Contract Hire,2223P10_CR00152,REDACTED PERSONAL DATA
Sandwell Metropolitan Borough Council,http://www.sandwell.gov.uk/info/200202/performance_and_spending/1079/payments_over_500,10-Jan-2023,Childrens Services,REDACTED PERSONAL DATA,Childrens Services,545.45,External Contract Hire,2223P10_CR00153,REDACTED PERSONAL DATA
Sandwell Metropolitan Borough Council,http://www.sandwell.gov.uk/info/200202/performance_and_spending/1079/payments_over_500,10-Jan-2023,Childrens Services,REDACTED PERSONAL DATA,Childrens Services,545.45,External Contract Hire,2223P10_CR00154,REDACTED PERSONAL DATA
Sandwell Metropolitan Borough Council,http://www.sandwell.gov.uk/info/200202/performance_and_spending/1079/payments_over_500,10-Jan-2023,Childrens Services,REDACTED PERSONAL DATA,Childrens Services,545.45,External Contract Hire,2223P10_CR00155,REDACTED PERSONAL DATA
Sandwell Metropolitan Borough Council,http://www.sandwell.gov.uk/info/200202/performance_and_spending/1079/payments_over_500,10-Jan-2023,Childrens Services,REDACTED PERSONAL DATA,Childrens Services,545.45,External Contract Hire,2223P10_CR00156,REDACTED PERSONAL DATA
Sandwell Metropolitan Borough Council,http://www.sandwell.gov.uk/info/200202/performance_and_spending/1079/payments_over_500,10-Jan-2023,Childrens Services,REDACTED PERSONAL DATA,Childrens Services,545.45,External Contract Hire,2223P10_CR00157,REDACTED PERSONAL DATA
Sandwell Metropolitan Borough Council,http://www.sandwell.gov.uk/info/200202/performance_and_spending/1079/payments_over_500,10-Jan-2023,Childrens Services,REDACTED PERSONAL DATA,Childrens Services,545.45,External Contract Hire,2223P10_CR00158,REDACTED PERSONAL DATA
Sandwell Metropolitan Borough Council,http://www.sandwell.gov.uk/info/200202/performance_and_spending/1079/payments_over_500,10-Jan-2023,Childrens Services,REDACTED PERSONAL DATA,Childrens Services,727.27,External Contract Hire,2223P10_CR00159,REDACTED PERSONAL DATA
Sandwell Metropolitan Borough Council,http://www.sandwell.gov.uk/info/200202/performance_and_spending/1079/payments_over_500,10-Jan-2023,Childrens Services,REDACTED PERSONAL DATA,Childrens Services,545.45,External Contract Hire,2223P10_CR00160,REDACTED PERSONAL DATA
Sandwell Metropolitan Borough Council,http://www.sandwell.gov.uk/info/200202/performance_and_spending/1079/payments_over_500,06-Jan-2023,Childrens Services,REDACTED PERSONAL DATA,Childrens Services,828.36,External Contract Hire,2223P10_CR00161,REDACTED PERSONAL DATA
Sandwell Metropolitan Borough Council,http://www.sandwell.gov.uk/info/200202/performance_and_spending/1079/payments_over_500,06-Jan-2023,Childrens Services,REDACTED PERSONAL DATA,Childrens Services,915.30,External Contract Hire,2223P10_CR00162,REDACTED PERSONAL DATA
Sandwell Metropolitan Borough Council,http://www.sandwell.gov.uk/info/200202/performance_and_spending/1079/payments_over_500,04-Jan-2023,Childrens Services,S.C.V.O.,Childrens Services,550000.00,Grant Payments,2223P10_CR00163,109813
Sandwell Metropolitan Borough Council,http://www.sandwell.gov.uk/info/200202/performance_and_spending/1079/payments_over_500,10-Jan-2023,Childrens Services,SADWICA DAY NURSERY,Childrens Services,11306.25,Grant Payments,2223P10_CR00164,01667892
Sandwell Metropolitan Borough Council,http://www.sandwell.gov.uk/info/200202/performance_and_spending/1079/payments_over_500,10-Jan-2023,Childrens Services,THE BRANCH,Childrens Services,11658.00,Grant Payments,2223P10_CR00165,08588514
Sandwell Metropolitan Borough Council,http://www.sandwell.gov.uk/info/200202/performance_and_spending/1079/payments_over_500,11-Jan-2023,Childrens Services Capital,D P DESIGN PARTNERSHIP,Childrens Services Capital,1750.00,"CIP - New Construction,Conversion, Enhancement & Reno",2223P10_CR00166,145811
Sandwell Metropolitan Borough Council,http://www.sandwell.gov.uk/info/200202/performance_and_spending/1079/payments_over_500,26-Jan-2023,Childrens Services Capital,D P DESIGN PARTNERSHIP,Childrens Services Capital,4000.00,"CIP - New Construction,Conversion, Enhancement & Reno",2223P10_CR00167,145811
Sandwell Metropolitan Borough Council,http://www.sandwell.gov.uk/info/200202/performance_and_spending/1079/payments_over_500,26-Jan-2023,Childrens Services Capital,GVAV LTD,Childrens Services Capital,5197.04,"CIP - New Construction,Conversion, Enhancement & Reno",2223P10_CR00168,152431
Sandwell Metropolitan Borough Council,http://www.sandwell.gov.uk/info/200202/performance_and_spending/1079/payments_over_500,01-Jan-2023,Childrens Services Capital,MEADOWS SCHOOL,Childrens Services Capital,601.63,"CIP - New Construction,Conversion, Enhancement & Reno",2223P10_CR00169,60955
Sandwell Metropolitan Borough Council,http://www.sandwell.gov.uk/info/200202/performance_and_spending/1079/payments_over_500,01-Jan-2023,Childrens Services Capital,RHINO SENSORY UK LTD,Childrens Services Capital,14133.97,"CIP - New Construction,Conversion, Enhancement & Reno",2223P10_CR00170,163857
Sandwell Metropolitan Borough Council,http://www.sandwell.gov.uk/info/200202/performance_and_spending/1079/payments_over_500,01-Jan-2023,Childrens Services Capital,SANDWELL FUTURES LTD,Childrens Services Capital,3622.04,"CIP - New Construction,Conversion, Enhancement & Reno",2223P10_CR00171,88151
Sandwell Metropolitan Borough Council,http://www.sandwell.gov.uk/info/200202/performance_and_spending/1079/payments_over_500,11-Jan-2023,Childrens Services Capital,SANDWELL FUTURES LTD,Childrens Services Capital,91759.15,"CIP - New Construction,Conversion, Enhancement & Reno",2223P10_CR00172,88151
Sandwell Metropolitan Borough Council,http://www.sandwell.gov.uk/info/200202/performance_and_spending/1079/payments_over_500,01-Jan-2023,Childrens Services Capital,SEDDON CONSTRUCTION LIMITED,Childrens Services Capital,49537.79,"CIP - New Construction,Conversion, Enhancement & Reno",2223P10_CR00173,132999
Sandwell Metropolitan Borough Council,http://www.sandwell.gov.uk/info/200202/performance_and_spending/1079/payments_over_500,01-Jan-2023,Childrens Services Capital,SHENSTONE LODGE SCHOOL,Childrens Services Capital,39995.00,CIP - Acquisition of Land & Existing Buildings,2223P10_CR00174,164924
Sandwell Metropolitan Borough Council,http://www.sandwell.gov.uk/info/200202/performance_and_spending/1079/payments_over_500,03-Jan-2023,Childrens Services Capital,WEST BROMWICH COLLEGIATE ACADEMY,Childrens Services Capital,9551.37,"CIP - New Construction,Conversion, Enhancement & Reno",2223P10_CR00175,137780
Sandwell Metropolitan Borough Council,http://www.sandwell.gov.uk/info/200202/performance_and_spending/1079/payments_over_500,05-Jan-2023,Childrens Services Capital,WILLMOTT DIXON CONSTRUCTION LIMITED,Childrens Services Capital,184227.87,"CIP - New Construction,Conversion, Enhancement & Reno",2223P10_CR00176,34081
Sandwell Metropolitan Borough Council,http://www.sandwell.gov.uk/info/200202/performance_and_spending/1079/payments_over_500,12-Jan-2023,Corporate Management,VALENCIA FINE FOODS LIMITED,Corporate Management,1287.00,Catering Provisions,2223P10_CR00177,131572
Sandwell Metropolitan Borough Council,http://www.sandwell.gov.uk/info/200202/performance_and_spending/1079/payments_over_500,01-Jan-2023,Director of Law & Governance,ALLSTAR BUSINESS SOLUTIONS LIMITED,Assistant Chief Executive (Excl SIU),697.88,Fuel ,2223P10_CR00178,104057
Sandwell Metropolitan Borough Council,http://www.sandwell.gov.uk/info/200202/performance_and_spending/1079/payments_over_500,15-Jan-2023,Director of Law & Governance,ALLSTAR BUSINESS SOLUTIONS LIMITED,Assistant Chief Executive (Excl SIU),776.89,Fuel ,2223P10_CR00179,104057
Sandwell Metropolitan Borough Council,http://www.sandwell.gov.uk/info/200202/performance_and_spending/1079/payments_over_500,04-Jan-2023,Director of Law & Governance,ASSOCIATION OF ELECTORAL ADMINISTRATORS LTD,Assistant Chief Executive (Excl SIU),869.55,Externally Purchased Professional Services ,2223P10_CR00180,01693286
Sandwell Metropolitan Borough Council,http://www.sandwell.gov.uk/info/200202/performance_and_spending/1079/payments_over_500,01-Jan-2023,Director of Law & Governance,ASSOCIATION OF ELECTORAL ADMINISTRATORS LTD,Assistant Chief Executive (Excl SIU),1350.00,Externally Purchased Professional Services ,2223P10_CR00181,01693286
Sandwell Metropolitan Borough Council,http://www.sandwell.gov.uk/info/200202/performance_and_spending/1079/payments_over_500,01-Jan-2023,Director of Law & Governance,BACHES SOLICITORS    ,Assistant Chief Executive (Excl SIU),1554.87,Externally Purchased Professional Services ,2223P10_CR00182,01643644
Sandwell Metropolitan Borough Council,http://www.sandwell.gov.uk/info/200202/performance_and_spending/1079/payments_over_500,01-Jan-2023,Director of Law & Governance,BEVAN BRITTAN LLP,Director of Law & Governance,512.35,Externally Purchased Professional Services ,2223P10_CR00183,55036
Sandwell Metropolitan Borough Council,http://www.sandwell.gov.uk/info/200202/performance_and_spending/1079/payments_over_500,01-Jan-2023,Director of Law & Governance,BEVAN BRITTAN LLP,Director of Law & Governance,543.80,Externally Purchased Professional Services ,2223P10_CR00184,55036
Sandwell Metropolitan Borough Council,http://www.sandwell.gov.uk/info/200202/performance_and_spending/1079/payments_over_500,01-Jan-2023,Director of Law & Governance,BEVAN BRITTAN LLP,Director of Law & Governance,721.50,Externally Purchased Professional Services ,2223P10_CR00185,55036
Sandwell Metropolitan Borough Council,http://www.sandwell.gov.uk/info/200202/performance_and_spending/1079/payments_over_500,01-Jan-2023,Director of Law & Governance,BEVAN BRITTAN LLP,Assistant Chief Executive (Excl SIU),982.00,Externally Purchased Professional Services ,2223P10_CR00186,55036
Sandwell Metropolitan Borough Council,http://www.sandwell.gov.uk/info/200202/performance_and_spending/1079/payments_over_500,01-Jan-2023,Director of Law & Governance,BEVAN BRITTAN LLP,Director of Law & Governance,1001.20,Externally Purchased Professional Services ,2223P10_CR00187,55036
Sandwell Metropolitan Borough Council,http://www.sandwell.gov.uk/info/200202/performance_and_spending/1079/payments_over_500,01-Jan-2023,Director of Law & Governance,BEVAN BRITTAN LLP,Director of Law & Governance,1602.20,Externally Purchased Professional Services ,2223P10_CR00188,55036
Sandwell Metropolitan Borough Council,http://www.sandwell.gov.uk/info/200202/performance_and_spending/1079/payments_over_500,01-Jan-2023,Director of Law & Governance,BEVAN BRITTAN LLP,Director of Law & Governance,5110.70,Externally Purchased Professional Services ,2223P10_CR00189,55036
Sandwell Metropolitan Borough Council,http://www.sandwell.gov.uk/info/200202/performance_and_spending/1079/payments_over_500,01-Jan-2023,Director of Law & Governance,CARTER BROWN - THE EXPERT SERVICE LTD,Assistant Chief Executive (Excl SIU),916.17,Externally Purchased Professional Services ,2223P10_CR00190,61555
Sandwell Metropolitan Borough Council,http://www.sandwell.gov.uk/info/200202/performance_and_spending/1079/payments_over_500,05-Jan-2023,Director of Law & Governance,CARTLIDGE AND STEWART LTD,Assistant Chief Executive (Excl SIU),2340.00,Externally Purchased Professional Services ,2223P10_CR00191,139617
Sandwell Metropolitan Borough Council,http://www.sandwell.gov.uk/info/200202/performance_and_spending/1079/payments_over_500,01-Jan-2023,Director of Law & Governance,CFH DOCMAIIL LTD,Assistant Chief Executive (Excl SIU),3618.53,"Printing, Stationery & General Office Expenses",2223P10_CR00192,140107
Sandwell Metropolitan Borough Council,http://www.sandwell.gov.uk/info/200202/performance_and_spending/1079/payments_over_500,16-Jan-2023,Director of Law & Governance,CIVICA ELECTION SERVICES LTD,Assistant Chief Executive (Excl SIU),7341.59,Licences,2223P10_CR00193,26955
Sandwell Metropolitan Borough Council,http://www.sandwell.gov.uk/info/200202/performance_and_spending/1079/payments_over_500,01-Jan-2023,Director of Law & Governance,CIVICA UK LTD,Assistant Chief Executive (Excl SIU),2750.00,Licences,2223P10_CR00194,26200
Sandwell Metropolitan Borough Council,http://www.sandwell.gov.uk/info/200202/performance_and_spending/1079/payments_over_500,01-Jan-2023,Director of Law & Governance,CIVICA UK LTD,Assistant Chief Executive (Excl SIU),8800.00,Licences,2223P10_CR00195,26200
Sandwell Metropolitan Borough Council,http://www.sandwell.gov.uk/info/200202/performance_and_spending/1079/payments_over_500,01-Jan-2023,Director of Law & Governance,CIVICA UK LTD,Assistant Chief Executive (Excl SIU),41500.00,Licences,2223P10_CR00196,26200
Sandwell Metropolitan Borough Council,http://www.sandwell.gov.uk/info/200202/performance_and_spending/1079/payments_over_500,12-Jan-2023,Director of Law & Governance,DATA POWER LTD,Assistant Chief Executive (Excl SIU),804.00,ICT ,2223P10_CR00197,78780
Sandwell Metropolitan Borough Council,http://www.sandwell.gov.uk/info/200202/performance_and_spending/1079/payments_over_500,01-Jan-2023,Director of Law & Governance,EE LIMITED,Assistant Chief Executive (Excl SIU),1914.96,Telephones,2223P10_CR00198,117168
Sandwell Metropolitan Borough Council,http://www.sandwell.gov.uk/info/200202/performance_and_spending/1079/payments_over_500,01-Jan-2023,Director of Law & Governance,EE LIMITED,Assistant Chief Executive (Excl SIU),2159.85,Telephones,2223P10_CR00199,117168
Sandwell Metropolitan Borough Council,http://www.sandwell.gov.uk/info/200202/performance_and_spending/1079/payments_over_500,01-Jan-2023,Director of Law & Governance,ENVIRONMENTAL CONTRACTS LTD,Assistant Chief Executive (Excl SIU),1162.50,Materials & Consumables,2223P10_CR00200,2572
Sandwell Metropolitan Borough Council,http://www.sandwell.gov.uk/info/200202/performance_and_spending/1079/payments_over_500,01-Jan-2023,Director of Law & Governance,FACULTATIEVE TECHNOLOGIES LTD,Assistant Chief Executive (Excl SIU),1990.59,Building Maintenance & Improvements,2223P10_CR00201,89268
Sandwell Metropolitan Borough Council,http://www.sandwell.gov.uk/info/200202/performance_and_spending/1079/payments_over_500,01-Jan-2023,Director of Law & Governance,FACULTATIEVE TECHNOLOGIES LTD,Assistant Chief Executive (Excl SIU),3635.75,Building Maintenance & Improvements,2223P10_CR00202,89268
Sandwell Metropolitan Borough Council,http://www.sandwell.gov.uk/info/200202/performance_and_spending/1079/payments_over_500,01-Jan-2023,Director of Law & Governance,FACULTATIEVE TECHNOLOGIES LTD,Assistant Chief Executive (Excl SIU),4397.49,Building Maintenance & Improvements,2223P10_CR00203,89268
Sandwell Metropolitan Borough Council,http://www.sandwell.gov.uk/info/200202/performance_and_spending/1079/payments_over_500,10-Jan-2023,Director of Law & Governance,FUTURE GARMENTS LTD,Assistant Chief Executive (Excl SIU),1136.80,Protective Clothing & Uniforms,2223P10_CR00204,17305
Sandwell Metropolitan Borough Council,http://www.sandwell.gov.uk/info/200202/performance_and_spending/1079/payments_over_500,13-Jan-2023,Director of Law & Governance,HAYSTOUN CONSTRUCTION LTD,Assistant Chief Executive (Excl SIU),13213.92,Advertising & Publicity,2223P10_CR00205,11849
Sandwell Metropolitan Borough Council,http://www.sandwell.gov.uk/info/200202/performance_and_spending/1079/payments_over_500,10-Jan-2023,Director of Law & Governance,KATHRYN WILLIETS SOLICITOR,Assistant Chief Executive (Excl SIU),1670.00,Externally Purchased Professional Services ,2223P10_CR00206,130946
Sandwell Metropolitan Borough Council,http://www.sandwell.gov.uk/info/200202/performance_and_spending/1079/payments_over_500,01-Jan-2023,Director of Law & Governance,LEEC LIMITED,Assistant Chief Executive (Excl SIU),648.00,Building Maintenance & Improvements,2223P10_CR00207,120114
Sandwell Metropolitan Borough Council,http://www.sandwell.gov.uk/info/200202/performance_and_spending/1079/payments_over_500,01-Jan-2023,Director of Law & Governance,MEDICAL EXPERT WITNESS ALLIANCE,Assistant Chief Executive (Excl SIU),851.05,Externally Purchased Professional Services ,2223P10_CR00208,134580
Sandwell Metropolitan Borough Council,http://www.sandwell.gov.uk/info/200202/performance_and_spending/1079/payments_over_500,01-Jan-2023,Director of Law & Governance,MEDICAL EXPERT WITNESS ALLIANCE,Assistant Chief Executive (Excl SIU),2340.00,Externally Purchased Professional Services ,2223P10_CR00209,134580
Sandwell Metropolitan Borough Council,http://www.sandwell.gov.uk/info/200202/performance_and_spending/1079/payments_over_500,11-Jan-2023,Director of Law & Governance,MEDICAL EXPERT WITNESS ALLIANCE,Assistant Chief Executive (Excl SIU),3454.00,Externally Purchased Professional Services ,2223P10_CR00210,134580
Sandwell Metropolitan Borough Council,http://www.sandwell.gov.uk/info/200202/performance_and_spending/1079/payments_over_500,01-Jan-2023,Director of Law & Governance,MEDSERV,Assistant Chief Executive (Excl SIU),2619.00,Externally Purchased Professional Services ,2223P10_CR00211,134098
Sandwell Metropolitan Borough Council,http://www.sandwell.gov.uk/info/200202/performance_and_spending/1079/payments_over_500,05-Jan-2023,Director of Law & Governance,NATIONAL WESTMINSTER BANK PLC,Assistant Chief Executive (Excl SIU),1654.00,Externally Purchased Professional Services ,2223P10_CR00212,120965
Sandwell Metropolitan Borough Council,http://www.sandwell.gov.uk/info/200202/performance_and_spending/1079/payments_over_500,01-Jan-2023,Director of Law & Governance,NOMIX ENVIRO LTD,Assistant Chief Executive (Excl SIU),12663.20,Materials & Consumables,2223P10_CR00213,37313
Sandwell Metropolitan Borough Council,http://www.sandwell.gov.uk/info/200202/performance_and_spending/1079/payments_over_500,01-Jan-2023,Director of Law & Governance,SERCO LIMITED,Assistant Chief Executive (Excl SIU),740.60,Externally Purchased Professional Services ,2223P10_CR00214,53771
Sandwell Metropolitan Borough Council,http://www.sandwell.gov.uk/info/200202/performance_and_spending/1079/payments_over_500,01-Jan-2023,Director of Law & Governance,SERCO LIMITED,Assistant Chief Executive (Excl SIU),749.30,Externally Purchased Professional Services ,2223P10_CR00215,53771
Sandwell Metropolitan Borough Council,http://www.sandwell.gov.uk/info/200202/performance_and_spending/1079/payments_over_500,01-Jan-2023,Director of Law & Governance,SERCO LIMITED,Assistant Chief Executive (Excl SIU),752.24,Externally Purchased Professional Services ,2223P10_CR00216,53771
Sandwell Metropolitan Borough Council,http://www.sandwell.gov.uk/info/200202/performance_and_spending/1079/payments_over_500,01-Jan-2023,Director of Law & Governance,SERCO LIMITED,Assistant Chief Executive (Excl SIU),897.42,Externally Purchased Professional Services ,2223P10_CR00217,53771
Sandwell Metropolitan Borough Council,http://www.sandwell.gov.uk/info/200202/performance_and_spending/1079/payments_over_500,01-Jan-2023,Director of Law & Governance,SERCO LIMITED,Assistant Chief Executive (Excl SIU),1031.50,Externally Purchased Professional Services ,2223P10_CR00218,53771
Sandwell Metropolitan Borough Council,http://www.sandwell.gov.uk/info/200202/performance_and_spending/1079/payments_over_500,01-Jan-2023,Director of Law & Governance,SERCO LIMITED,Assistant Chief Executive (Excl SIU),1490.89,Externally Purchased Professional Services ,2223P10_CR00219,53771
Sandwell Metropolitan Borough Council,http://www.sandwell.gov.uk/info/200202/performance_and_spending/1079/payments_over_500,13-Jan-2023,Director of Law & Governance,THORNES THE SOLICITORS,Assistant Chief Executive (Excl SIU),1805.48,Externally Purchased Professional Services ,2223P10_CR00220,137982
Sandwell Metropolitan Borough Council,http://www.sandwell.gov.uk/info/200202/performance_and_spending/1079/payments_over_500,13-Jan-2023,Director of Law & Governance,TREASURED MEMORIES LTD,Assistant Chief Executive (Excl SIU),643.50,Bereavement Expenses,2223P10_CR00221,91211
Sandwell Metropolitan Borough Council,http://www.sandwell.gov.uk/info/200202/performance_and_spending/1079/payments_over_500,01-Jan-2023,Director of Law & Governance,UBIQUS UK LTD,Assistant Chief Executive (Excl SIU),1220.00,Externally Purchased Professional Services ,2223P10_CR00222,76474
Sandwell Metropolitan Borough Council,http://www.sandwell.gov.uk/info/200202/performance_and_spending/1079/payments_over_500,01-Jan-2023,Director of Law & Governance,VEREPHI LTD,Director of Law & Governance,709.35,Externally Purchased Professional Services ,2223P10_CR00223,164714
Sandwell Metropolitan Borough Council,http://www.sandwell.gov.uk/info/200202/performance_and_spending/1079/payments_over_500,01-Jan-2023,Director of Law & Governance,VIVEDIA LTD,Assistant Chief Executive (Excl SIU),1076.00,Building Maintenance & Improvements,2223P10_CR00224,141990
Sandwell Metropolitan Borough Council,http://www.sandwell.gov.uk/info/200202/performance_and_spending/1079/payments_over_500,01-Jan-2023,Director of Law & Governance,VIVEDIA LTD,Assistant Chief Executive (Excl SIU),2805.00,Building Maintenance & Improvements,2223P10_CR00225,141990
Sandwell Metropolitan Borough Council,http://www.sandwell.gov.uk/info/200202/performance_and_spending/1079/payments_over_500,01-Jan-2023,Director of Law & Governance,WATER PLUS SELECT LIMITED,Assistant Chief Executive (Excl SIU),529.70,Water Services,2223P10_CR00226,129644
Sandwell Metropolitan Borough Council,http://www.sandwell.gov.uk/info/200202/performance_and_spending/1079/payments_over_500,31-Jan-2023,Director of Law & Governance,REDACTED PERSONAL DATA,Director of Law & Governance,13000.00,Legal,2223P10_CR00227,REDACTED PERSONAL DATA
Sandwell Metropolitan Borough Council,http://www.sandwell.gov.uk/info/200202/performance_and_spending/1079/payments_over_500,01-Jan-2023,Director of Law & Governance,ALEXANDER BARNFIELD,Assistant Chief Executive (Excl SIU),750.00,Externally Purchased Professional Services ,2223P10_CR00228,122304
Sandwell Metropolitan Borough Council,http://www.sandwell.gov.uk/info/200202/performance_and_spending/1079/payments_over_500,01-Jan-2023,Director of Law & Governance,DR B A ANDREOU,Assistant Chief Executive (Excl SIU),1824.00,Externally Purchased Professional Services ,2223P10_CR00229,13025425
Sandwell Metropolitan Borough Council,http://www.sandwell.gov.uk/info/200202/performance_and_spending/1079/payments_over_500,01-Jan-2023,Director of Law & Governance,DR JOHN DUNCAN MIDDLETON,Assistant Chief Executive (Excl SIU),988.00,Externally Purchased Professional Services ,2223P10_CR00230,118186
Sandwell Metropolitan Borough Council,http://www.sandwell.gov.uk/info/200202/performance_and_spending/1079/payments_over_500,27-Jan-2023,Director of Law & Governance,DR SIAN ALLEN,Assistant Chief Executive (Excl SIU),770.00,Externally Purchased Professional Services ,2223P10_CR00231,165101
Sandwell Metropolitan Borough Council,http://www.sandwell.gov.uk/info/200202/performance_and_spending/1079/payments_over_500,01-Jan-2023,Director of Law & Governance,DR TONY COLLINS,Assistant Chief Executive (Excl SIU),1615.00,Externally Purchased Professional Services ,2223P10_CR00232,119994
Sandwell Metropolitan Borough Council,http://www.sandwell.gov.uk/info/200202/performance_and_spending/1079/payments_over_500,01-Jan-2023,Director of Law & Governance,JONATHAN BOTT,Assistant Chief Executive (Excl SIU),850.00,Externally Purchased Professional Services ,2223P10_CR00233,125485
Sandwell Metropolitan Borough Council,http://www.sandwell.gov.uk/info/200202/performance_and_spending/1079/payments_over_500,13-Jan-2023,Director of Law & Governance,JONATHAN BOTT,Assistant Chief Executive (Excl SIU),1040.00,Externally Purchased Professional Services ,2223P10_CR00234,125485
Sandwell Metropolitan Borough Council,http://www.sandwell.gov.uk/info/200202/performance_and_spending/1079/payments_over_500,01-Jan-2023,Director of Law & Governance,JONATHAN BOTT,Assistant Chief Executive (Excl SIU),9250.00,Externally Purchased Professional Services ,2223P10_CR00235,125485
Sandwell Metropolitan Borough Council,http://www.sandwell.gov.uk/info/200202/performance_and_spending/1079/payments_over_500,06-Jan-2023,Director of Law & Governance,MARK JACKSON,Assistant Chief Executive (Excl SIU),2750.00,Externally Purchased Professional Services ,2223P10_CR00236,79150
Sandwell Metropolitan Borough Council,http://www.sandwell.gov.uk/info/200202/performance_and_spending/1079/payments_over_500,03-Jan-2023,Director of Law & Governance,MARK JACKSON,Assistant Chief Executive (Excl SIU),10687.50,Externally Purchased Professional Services ,2223P10_CR00237,79150
Sandwell Metropolitan Borough Council,http://www.sandwell.gov.uk/info/200202/performance_and_spending/1079/payments_over_500,01-Jan-2023,Director of Law & Governance,MICHAEL RHIMES,Assistant Chief Executive (Excl SIU),3245.00,Externally Purchased Professional Services ,2223P10_CR00238,164875
Sandwell Metropolitan Borough Council,http://www.sandwell.gov.uk/info/200202/performance_and_spending/1079/payments_over_500,01-Jan-2023,Director of Law & Governance,RHIANNA MANANI,Assistant Chief Executive (Excl SIU),650.00,Externally Purchased Professional Services ,2223P10_CR00239,162704
Sandwell Metropolitan Borough Council,http://www.sandwell.gov.uk/info/200202/performance_and_spending/1079/payments_over_500,01-Jan-2023,FINANCE (Inc SIU),BROWNE JACOBSON LLP,Assistant Chief Executive (Excl SIU),591.50,Externally Purchased Professional Services ,2223P10_CR00240,109574
Sandwell Metropolitan Borough Council,http://www.sandwell.gov.uk/info/200202/performance_and_spending/1079/payments_over_500,01-Jan-2023,FINANCE (Inc SIU),BROWNE JACOBSON LLP,Assistant Chief Executive (Excl SIU),870.10,Externally Purchased Professional Services ,2223P10_CR00241,109574
Sandwell Metropolitan Borough Council,http://www.sandwell.gov.uk/info/200202/performance_and_spending/1079/payments_over_500,01-Jan-2023,FINANCE (Inc SIU),BROWNE JACOBSON LLP,Assistant Chief Executive (Excl SIU),953.10,Externally Purchased Professional Services ,2223P10_CR00242,109574
Sandwell Metropolitan Borough Council,http://www.sandwell.gov.uk/info/200202/performance_and_spending/1079/payments_over_500,01-Jan-2023,FINANCE (Inc SIU),BROWNE JACOBSON LLP,Assistant Chief Executive (Excl SIU),963.30,Externally Purchased Professional Services ,2223P10_CR00243,109574
Sandwell Metropolitan Borough Council,http://www.sandwell.gov.uk/info/200202/performance_and_spending/1079/payments_over_500,31-Jan-2023,FINANCE (Inc SIU),BROWNE JACOBSON LLP,Assistant Chief Executive (Excl SIU),1588.60,Externally Purchased Professional Services ,2223P10_CR00244,109574
Sandwell Metropolitan Borough Council,http://www.sandwell.gov.uk/info/200202/performance_and_spending/1079/payments_over_500,31-Jan-2023,FINANCE (Inc SIU),BROWNE JACOBSON LLP,Assistant Chief Executive (Excl SIU),3177.20,Externally Purchased Professional Services ,2223P10_CR00245,109574
Sandwell Metropolitan Borough Council,http://www.sandwell.gov.uk/info/200202/performance_and_spending/1079/payments_over_500,10-Jan-2023,FINANCE (Inc SIU),CHRIST CHURCH C OF E PRIMARY SCHOOL,Assistant Chief Executive (Excl SIU),840.41,Insurance,2223P10_CR00246,1705
Sandwell Metropolitan Borough Council,http://www.sandwell.gov.uk/info/200202/performance_and_spending/1079/payments_over_500,30-Jan-2023,FINANCE (Inc SIU),CLEARWATER SOLICITORS LTD,Assistant Chief Executive (Excl SIU),500.00,Insurance,2223P10_CR00247,139808
Sandwell Metropolitan Borough Council,http://www.sandwell.gov.uk/info/200202/performance_and_spending/1079/payments_over_500,30-Jan-2023,FINANCE (Inc SIU),CLEARWATER SOLICITORS LTD,Assistant Chief Executive (Excl SIU),700.00,Insurance,2223P10_CR00248,139808
Sandwell Metropolitan Borough Council,http://www.sandwell.gov.uk/info/200202/performance_and_spending/1079/payments_over_500,09-Jan-2023,FINANCE (Inc SIU),CLEARWATER SOLICITORS LTD,Assistant Chief Executive (Excl SIU),1250.00,Insurance,2223P10_CR00249,139808
Sandwell Metropolitan Borough Council,http://www.sandwell.gov.uk/info/200202/performance_and_spending/1079/payments_over_500,26-Jan-2023,FINANCE (Inc SIU),DRISCOLL KINGSTON SOLICITORS,Assistant Chief Executive (Excl SIU),3000.00,Insurance,2223P10_CR00250,140883
Sandwell Metropolitan Borough Council,http://www.sandwell.gov.uk/info/200202/performance_and_spending/1079/payments_over_500,26-Jan-2023,FINANCE (Inc SIU),DRISCOLL KINGSTON SOLICITORS,Assistant Chief Executive (Excl SIU),7000.00,Insurance,2223P10_CR00251,140883
Sandwell Metropolitan Borough Council,http://www.sandwell.gov.uk/info/200202/performance_and_spending/1079/payments_over_500,26-Jan-2023,FINANCE (Inc SIU),DRISCOLL KINGSTON SOLICITORS,Assistant Chief Executive (Excl SIU),12000.00,Insurance,2223P10_CR00252,140883
Sandwell Metropolitan Borough Council,http://www.sandwell.gov.uk/info/200202/performance_and_spending/1079/payments_over_500,12-Jan-2023,FINANCE (Inc SIU),GOWING LAW SOLICITORS,Assistant Chief Executive (Excl SIU),500.00,Insurance,2223P10_CR00253,163069
Sandwell Metropolitan Borough Council,http://www.sandwell.gov.uk/info/200202/performance_and_spending/1079/payments_over_500,12-Jan-2023,FINANCE (Inc SIU),GOWING LAW SOLICITORS,Assistant Chief Executive (Excl SIU),1010.00,Insurance,2223P10_CR00254,163069
Sandwell Metropolitan Borough Council,http://www.sandwell.gov.uk/info/200202/performance_and_spending/1079/payments_over_500,19-Jan-2023,FINANCE (Inc SIU),GOWING LAW SOLICITORS,Assistant Chief Executive (Excl SIU),7000.00,Insurance,2223P10_CR00255,163069
Sandwell Metropolitan Borough Council,http://www.sandwell.gov.uk/info/200202/performance_and_spending/1079/payments_over_500,06-Jan-2023,FINANCE (Inc SIU),GOWING LAW SOLICITORS,Assistant Chief Executive (Excl SIU),7000.00,Insurance,2223P10_CR00256,163069
Sandwell Metropolitan Borough Council,http://www.sandwell.gov.uk/info/200202/performance_and_spending/1079/payments_over_500,09-Jan-2023,FINANCE (Inc SIU),HAWKINS & ASSOCIATES,Assistant Chief Executive (Excl SIU),4236.90,Insurance,2223P10_CR00257,93761
Sandwell Metropolitan Borough Council,http://www.sandwell.gov.uk/info/200202/performance_and_spending/1079/payments_over_500,30-Jan-2023,FINANCE (Inc SIU),MATRIX SOLICITORS,Assistant Chief Executive (Excl SIU),716.58,Insurance,2223P10_CR00258,150465
Sandwell Metropolitan Borough Council,http://www.sandwell.gov.uk/info/200202/performance_and_spending/1079/payments_over_500,04-Jan-2023,FINANCE (Inc SIU),MATRIX SOLICITORS,Assistant Chief Executive (Excl SIU),1250.00,Insurance,2223P10_CR00259,150465
Sandwell Metropolitan Borough Council,http://www.sandwell.gov.uk/info/200202/performance_and_spending/1079/payments_over_500,26-Jan-2023,FINANCE (Inc SIU),MATRIX SOLICITORS,Assistant Chief Executive (Excl SIU),1500.00,Insurance,2223P10_CR00260,150465
Sandwell Metropolitan Borough Council,http://www.sandwell.gov.uk/info/200202/performance_and_spending/1079/payments_over_500,13-Jan-2023,FINANCE (Inc SIU),MATRIX SOLICITORS,Assistant Chief Executive (Excl SIU),2750.00,Insurance,2223P10_CR00261,150465
Sandwell Metropolitan Borough Council,http://www.sandwell.gov.uk/info/200202/performance_and_spending/1079/payments_over_500,26-Jan-2023,FINANCE (Inc SIU),MATRIX SOLICITORS,Assistant Chief Executive (Excl SIU),4000.00,Insurance,2223P10_CR00262,150465
Sandwell Metropolitan Borough Council,http://www.sandwell.gov.uk/info/200202/performance_and_spending/1079/payments_over_500,13-Jan-2023,FINANCE (Inc SIU),NICHOLSON JONES SUTTON SOLICITORS,Assistant Chief Executive (Excl SIU),2000.00,Insurance,2223P10_CR00263,165032
Sandwell Metropolitan Borough Council,http://www.sandwell.gov.uk/info/200202/performance_and_spending/1079/payments_over_500,20-Jan-2023,FINANCE (Inc SIU),NORTHONE SOLICITORS,Assistant Chief Executive (Excl SIU),4000.00,Insurance,2223P10_CR00264,150690
Sandwell Metropolitan Borough Council,http://www.sandwell.gov.uk/info/200202/performance_and_spending/1079/payments_over_500,12-Jan-2023,FINANCE (Inc SIU),PROWSE PHILLIPS LAW LTD,Assistant Chief Executive (Excl SIU),1000.00,Insurance,2223P10_CR00265,151583
Sandwell Metropolitan Borough Council,http://www.sandwell.gov.uk/info/200202/performance_and_spending/1079/payments_over_500,19-Jan-2023,FINANCE (Inc SIU),SBW LAW LIMITED,Assistant Chief Executive (Excl SIU),4500.00,Insurance,2223P10_CR00266,149404
Sandwell Metropolitan Borough Council,http://www.sandwell.gov.uk/info/200202/performance_and_spending/1079/payments_over_500,01-Jan-2023,FINANCE (Inc SIU),SEDGWICK INTERNATIONAL UK ,Assistant Chief Executive (Excl SIU),595.00,Externally Purchased Professional Services ,2223P10_CR00267,136510
Sandwell Metropolitan Borough Council,http://www.sandwell.gov.uk/info/200202/performance_and_spending/1079/payments_over_500,23-Jan-2023,FINANCE (Inc SIU),SEDGWICK INTERNATIONAL UK ,Assistant Chief Executive (Excl SIU),779.00,Externally Purchased Professional Services ,2223P10_CR00268,136510
Sandwell Metropolitan Borough Council,http://www.sandwell.gov.uk/info/200202/performance_and_spending/1079/payments_over_500,11-Jan-2023,FINANCE (Inc SIU),WEIGHTMANS LLP,Assistant Chief Executive (Excl SIU),528.00,Externally Purchased Professional Services ,2223P10_CR00269,30670
Sandwell Metropolitan Borough Council,http://www.sandwell.gov.uk/info/200202/performance_and_spending/1079/payments_over_500,01-Jan-2023,FINANCE (Inc SIU),WEIGHTMANS LLP,Assistant Chief Executive (Excl SIU),537.35,Externally Purchased Professional Services ,2223P10_CR00270,30670
Sandwell Metropolitan Borough Council,http://www.sandwell.gov.uk/info/200202/performance_and_spending/1079/payments_over_500,11-Jan-2023,FINANCE (Inc SIU),WEIGHTMANS LLP,Assistant Chief Executive (Excl SIU),588.00,Externally Purchased Professional Services ,2223P10_CR00271,30670
Sandwell Metropolitan Borough Council,http://www.sandwell.gov.uk/info/200202/performance_and_spending/1079/payments_over_500,06-Jan-2023,FINANCE (Inc SIU),WEIGHTMANS LLP,Assistant Chief Executive (Excl SIU),624.00,Externally Purchased Professional Services ,2223P10_CR00272,30670
Sandwell Metropolitan Borough Council,http://www.sandwell.gov.uk/info/200202/performance_and_spending/1079/payments_over_500,06-Jan-2023,FINANCE (Inc SIU),WEIGHTMANS LLP,Assistant Chief Executive (Excl SIU),660.00,Externally Purchased Professional Services ,2223P10_CR00273,30670
Sandwell Metropolitan Borough Council,http://www.sandwell.gov.uk/info/200202/performance_and_spending/1079/payments_over_500,19-Jan-2023,FINANCE (Inc SIU),WEIGHTMANS LLP,Assistant Chief Executive (Excl SIU),708.50,Externally Purchased Professional Services ,2223P10_CR00274,30670
Sandwell Metropolitan Borough Council,http://www.sandwell.gov.uk/info/200202/performance_and_spending/1079/payments_over_500,06-Jan-2023,FINANCE (Inc SIU),WEIGHTMANS LLP,Assistant Chief Executive (Excl SIU),768.00,Externally Purchased Professional Services ,2223P10_CR00275,30670
Sandwell Metropolitan Borough Council,http://www.sandwell.gov.uk/info/200202/performance_and_spending/1079/payments_over_500,31-Jan-2023,FINANCE (Inc SIU),WEIGHTMANS LLP,Assistant Chief Executive (Excl SIU),804.00,Insurance,2223P10_CR00276,30670
Sandwell Metropolitan Borough Council,http://www.sandwell.gov.uk/info/200202/performance_and_spending/1079/payments_over_500,26-Jan-2023,FINANCE (Inc SIU),WEIGHTMANS LLP,Assistant Chief Executive (Excl SIU),830.30,Externally Purchased Professional Services ,2223P10_CR00277,30670
Sandwell Metropolitan Borough Council,http://www.sandwell.gov.uk/info/200202/performance_and_spending/1079/payments_over_500,05-Jan-2023,FINANCE (Inc SIU),WEIGHTMANS LLP,Assistant Chief Executive (Excl SIU),852.00,Externally Purchased Professional Services ,2223P10_CR00278,30670
Sandwell Metropolitan Borough Council,http://www.sandwell.gov.uk/info/200202/performance_and_spending/1079/payments_over_500,06-Jan-2023,FINANCE (Inc SIU),WEIGHTMANS LLP,Assistant Chief Executive (Excl SIU),876.00,Externally Purchased Professional Services ,2223P10_CR00279,30670
Sandwell Metropolitan Borough Council,http://www.sandwell.gov.uk/info/200202/performance_and_spending/1079/payments_over_500,11-Jan-2023,FINANCE (Inc SIU),WEIGHTMANS LLP,Assistant Chief Executive (Excl SIU),876.00,Externally Purchased Professional Services ,2223P10_CR00280,30670
Sandwell Metropolitan Borough Council,http://www.sandwell.gov.uk/info/200202/performance_and_spending/1079/payments_over_500,12-Jan-2023,FINANCE (Inc SIU),WEIGHTMANS LLP,Assistant Chief Executive (Excl SIU),889.50,Externally Purchased Professional Services ,2223P10_CR00281,30670
Sandwell Metropolitan Borough Council,http://www.sandwell.gov.uk/info/200202/performance_and_spending/1079/payments_over_500,06-Jan-2023,FINANCE (Inc SIU),WEIGHTMANS LLP,Assistant Chief Executive (Excl SIU),924.00,Externally Purchased Professional Services ,2223P10_CR00282,30670
Sandwell Metropolitan Borough Council,http://www.sandwell.gov.uk/info/200202/performance_and_spending/1079/payments_over_500,12-Jan-2023,FINANCE (Inc SIU),WEIGHTMANS LLP,Assistant Chief Executive (Excl SIU),960.00,Externally Purchased Professional Services ,2223P10_CR00283,30670
Sandwell Metropolitan Borough Council,http://www.sandwell.gov.uk/info/200202/performance_and_spending/1079/payments_over_500,11-Jan-2023,FINANCE (Inc SIU),WEIGHTMANS LLP,Assistant Chief Executive (Excl SIU),1032.00,Externally Purchased Professional Services ,2223P10_CR00284,30670
Sandwell Metropolitan Borough Council,http://www.sandwell.gov.uk/info/200202/performance_and_spending/1079/payments_over_500,12-Jan-2023,FINANCE (Inc SIU),WEIGHTMANS LLP,Assistant Chief Executive (Excl SIU),1032.00,Externally Purchased Professional Services ,2223P10_CR00285,30670
Sandwell Metropolitan Borough Council,http://www.sandwell.gov.uk/info/200202/performance_and_spending/1079/payments_over_500,06-Jan-2023,FINANCE (Inc SIU),WEIGHTMANS LLP,Assistant Chief Executive (Excl SIU),1080.00,Externally Purchased Professional Services ,2223P10_CR00286,30670
Sandwell Metropolitan Borough Council,http://www.sandwell.gov.uk/info/200202/performance_and_spending/1079/payments_over_500,12-Jan-2023,FINANCE (Inc SIU),WEIGHTMANS LLP,Assistant Chief Executive (Excl SIU),1200.00,Externally Purchased Professional Services ,2223P10_CR00287,30670
Sandwell Metropolitan Borough Council,http://www.sandwell.gov.uk/info/200202/performance_and_spending/1079/payments_over_500,11-Jan-2023,FINANCE (Inc SIU),WEIGHTMANS LLP,Assistant Chief Executive (Excl SIU),1320.00,Externally Purchased Professional Services ,2223P10_CR00288,30670
Sandwell Metropolitan Borough Council,http://www.sandwell.gov.uk/info/200202/performance_and_spending/1079/payments_over_500,04-Jan-2023,FINANCE (Inc SIU),WEIGHTMANS LLP,Assistant Chief Executive (Excl SIU),1452.00,Externally Purchased Professional Services ,2223P10_CR00289,30670
Sandwell Metropolitan Borough Council,http://www.sandwell.gov.uk/info/200202/performance_and_spending/1079/payments_over_500,31-Jan-2023,FINANCE (Inc SIU),WEIGHTMANS LLP,Assistant Chief Executive (Excl SIU),1454.00,Externally Purchased Professional Services ,2223P10_CR00290,30670
Sandwell Metropolitan Borough Council,http://www.sandwell.gov.uk/info/200202/performance_and_spending/1079/payments_over_500,19-Jan-2023,FINANCE (Inc SIU),WEIGHTMANS LLP,Assistant Chief Executive (Excl SIU),1572.00,Externally Purchased Professional Services ,2223P10_CR00291,30670
Sandwell Metropolitan Borough Council,http://www.sandwell.gov.uk/info/200202/performance_and_spending/1079/payments_over_500,12-Jan-2023,FINANCE (Inc SIU),WEIGHTMANS LLP,Assistant Chief Executive (Excl SIU),1844.15,Externally Purchased Professional Services ,2223P10_CR00292,30670
Sandwell Metropolitan Borough Council,http://www.sandwell.gov.uk/info/200202/performance_and_spending/1079/payments_over_500,06-Jan-2023,FINANCE (Inc SIU),WEIGHTMANS LLP,Assistant Chief Executive (Excl SIU),1912.00,Externally Purchased Professional Services ,2223P10_CR00293,30670
Sandwell Metropolitan Borough Council,http://www.sandwell.gov.uk/info/200202/performance_and_spending/1079/payments_over_500,04-Jan-2023,FINANCE (Inc SIU),WEIGHTMANS LLP,Assistant Chief Executive (Excl SIU),2628.00,Externally Purchased Professional Services ,2223P10_CR00294,30670
Sandwell Metropolitan Borough Council,http://www.sandwell.gov.uk/info/200202/performance_and_spending/1079/payments_over_500,06-Jan-2023,FINANCE (Inc SIU),WEIGHTMANS LLP,Assistant Chief Executive (Excl SIU),3499.50,Externally Purchased Professional Services ,2223P10_CR00295,30670
Sandwell Metropolitan Borough Council,http://www.sandwell.gov.uk/info/200202/performance_and_spending/1079/payments_over_500,26-Jan-2023,FINANCE (Inc SIU),WEIGHTMANS LLP,Assistant Chief Executive (Excl SIU),3992.00,Externally Purchased Professional Services ,2223P10_CR00296,30670
Sandwell Metropolitan Borough Council,http://www.sandwell.gov.uk/info/200202/performance_and_spending/1079/payments_over_500,23-Jan-2023,FINANCE (Inc SIU),WEIGHTMANS LLP,Assistant Chief Executive (Excl SIU),4696.40,Externally Purchased Professional Services ,2223P10_CR00297,30670
Sandwell Metropolitan Borough Council,http://www.sandwell.gov.uk/info/200202/performance_and_spending/1079/payments_over_500,12-Jan-2023,FINANCE (Inc SIU),WEIGHTMANS LLP,Assistant Chief Executive (Excl SIU),5771.90,Externally Purchased Professional Services ,2223P10_CR00298,30670
Sandwell Metropolitan Borough Council,http://www.sandwell.gov.uk/info/200202/performance_and_spending/1079/payments_over_500,05-Jan-2023,FINANCE (Inc SIU),BOND TURNER,Assistant Chief Executive (Excl SIU),5000.00,Insurance,2223P10_CR00299,152400
Sandwell Metropolitan Borough Council,http://www.sandwell.gov.uk/info/200202/performance_and_spending/1079/payments_over_500,18-Jan-2023,FINANCE (Inc SIU),CDW LIMITED,Assistant Chief Executive (Excl SIU),-573.29,ICT ,2223P10_CR00300,140946
Sandwell Metropolitan Borough Council,http://www.sandwell.gov.uk/info/200202/performance_and_spending/1079/payments_over_500,01-Jan-2023,FINANCE (Inc SIU),HAYS SPECIALIST RECRUITMENT LTD,Assistant Chief Executive (Excl SIU),-335126.53,Agency Staff,2223P10_CR00301,80349
Sandwell Metropolitan Borough Council,http://www.sandwell.gov.uk/info/200202/performance_and_spending/1079/payments_over_500,01-Jan-2023,FINANCE (Inc SIU),ZURICH INSURANCE PLC,Assistant Chief Executive (Excl SIU),-29036.87,Insurance,2223P10_CR00302,01749452
Sandwell Metropolitan Borough Council,http://www.sandwell.gov.uk/info/200202/performance_and_spending/1079/payments_over_500,01-Jan-2023,FINANCE (Inc SIU),ADVANCED VISUALISATION TECHNOLOGIES LTD T/A DIGITAL AUTOPSY UK,Assistant Chief Executive (Excl SIU),952.00,Bereavement Expenses,2223P10_CR00303,164897
Sandwell Metropolitan Borough Council,http://www.sandwell.gov.uk/info/200202/performance_and_spending/1079/payments_over_500,01-Jan-2023,FINANCE (Inc SIU),ADVANCED VISUALISATION TECHNOLOGIES LTD T/A DIGITAL AUTOPSY UK,Assistant Chief Executive (Excl SIU),2142.00,Bereavement Expenses,2223P10_CR00304,164897
Sandwell Metropolitan Borough Council,http://www.sandwell.gov.uk/info/200202/performance_and_spending/1079/payments_over_500,01-Jan-2023,FINANCE (Inc SIU),ANALYTICAL SERVICES INTERNATIONAL LTD,Assistant Chief Executive (Excl SIU),8925.00,Bereavement Expenses,2223P10_CR00305,141474
Sandwell Metropolitan Borough Council,http://www.sandwell.gov.uk/info/200202/performance_and_spending/1079/payments_over_500,01-Jan-2023,FINANCE (Inc SIU),BWR RECRUITMENT LTD TA TOTAL SOCIAL,Assistant Chief Executive (Excl SIU),516.00,Agency Staff,2223P10_CR00306,162923
Sandwell Metropolitan Borough Council,http://www.sandwell.gov.uk/info/200202/performance_and_spending/1079/payments_over_500,09-Jan-2023,FINANCE (Inc SIU),BWR RECRUITMENT LTD TA TOTAL SOCIAL,Assistant Chief Executive (Excl SIU),949.90,Agency Staff,2223P10_CR00307,162923
Sandwell Metropolitan Borough Council,http://www.sandwell.gov.uk/info/200202/performance_and_spending/1079/payments_over_500,01-Jan-2023,FINANCE (Inc SIU),BWR RECRUITMENT LTD TA TOTAL SOCIAL,Assistant Chief Executive (Excl SIU),1032.00,Agency Staff,2223P10_CR00308,162923
Sandwell Metropolitan Borough Council,http://www.sandwell.gov.uk/info/200202/performance_and_spending/1079/payments_over_500,01-Jan-2023,FINANCE (Inc SIU),BWR RECRUITMENT LTD TA TOTAL SOCIAL,Assistant Chief Executive (Excl SIU),1191.40,Agency Staff,2223P10_CR00309,162923
Sandwell Metropolitan Borough Council,http://www.sandwell.gov.uk/info/200202/performance_and_spending/1079/payments_over_500,01-Jan-2023,FINANCE (Inc SIU),BWR RECRUITMENT LTD TA TOTAL SOCIAL,Assistant Chief Executive (Excl SIU),1191.40,Agency Staff,2223P10_CR00310,162923
Sandwell Metropolitan Borough Council,http://www.sandwell.gov.uk/info/200202/performance_and_spending/1079/payments_over_500,01-Jan-2023,FINANCE (Inc SIU),CAMMAX LTD,Assistant Chief Executive (Excl SIU),1454.12,Equipment & Furniture ,2223P10_CR00311,140126
Sandwell Metropolitan Borough Council,http://www.sandwell.gov.uk/info/200202/performance_and_spending/1079/payments_over_500,01-Jan-2023,FINANCE (Inc SIU),CAMPBELL TICKELL LTD,Assistant Chief Executive (Excl SIU),12240.00,Agency Staff,2223P10_CR00312,163142
Sandwell Metropolitan Borough Council,http://www.sandwell.gov.uk/info/200202/performance_and_spending/1079/payments_over_500,01-Jan-2023,FINANCE (Inc SIU),CAMPBELL TICKELL LTD,Assistant Chief Executive (Excl SIU),15840.00,Agency Staff,2223P10_CR00313,163142
Sandwell Metropolitan Borough Council,http://www.sandwell.gov.uk/info/200202/performance_and_spending/1079/payments_over_500,01-Jan-2023,FINANCE (Inc SIU),CIPFA BUSINESS LIMITED,Assistant Chief Executive (Excl SIU),3412.50,Staff Development & Training,2223P10_CR00314,01023717
Sandwell Metropolitan Borough Council,http://www.sandwell.gov.uk/info/200202/performance_and_spending/1079/payments_over_500,01-Jan-2023,FINANCE (Inc SIU),CIPFA BUSINESS LIMITED,Assistant Chief Executive (Excl SIU),11700.00,Externally Purchased Professional Services ,2223P10_CR00315,01023717
Sandwell Metropolitan Borough Council,http://www.sandwell.gov.uk/info/200202/performance_and_spending/1079/payments_over_500,01-Jan-2023,FINANCE (Inc SIU),CIPFA C.CO,Assistant Chief Executive (Excl SIU),10000.00,Externally Purchased Professional Services ,2223P10_CR00316,134304
Sandwell Metropolitan Borough Council,http://www.sandwell.gov.uk/info/200202/performance_and_spending/1079/payments_over_500,01-Jan-2023,FINANCE (Inc SIU),CIPFA C.CO,Assistant Chief Executive (Excl SIU),25000.00,Externally Purchased Professional Services ,2223P10_CR00317,134304
Sandwell Metropolitan Borough Council,http://www.sandwell.gov.uk/info/200202/performance_and_spending/1079/payments_over_500,01-Jan-2023,FINANCE (Inc SIU),COMMUNITY PARTNERSHIP PERSONNEL,Assistant Chief Executive (Excl SIU),807.71,Agency Staff,2223P10_CR00318,150003
Sandwell Metropolitan Borough Council,http://www.sandwell.gov.uk/info/200202/performance_and_spending/1079/payments_over_500,01-Jan-2023,FINANCE (Inc SIU),CUSTODIAN GROUP LTD,Childrens Services,525.00,Rents,2223P10_CR00319,151637
Sandwell Metropolitan Borough Council,http://www.sandwell.gov.uk/info/200202/performance_and_spending/1079/payments_over_500,01-Jan-2023,FINANCE (Inc SIU),CUSTODIAN GROUP LTD,Childrens Services,525.00,Rents,2223P10_CR00320,151637
Sandwell Metropolitan Borough Council,http://www.sandwell.gov.uk/info/200202/performance_and_spending/1079/payments_over_500,01-Jan-2023,FINANCE (Inc SIU),CUSTODIAN GROUP LTD,Childrens Services,525.00,Rents,2223P10_CR00321,151637
Sandwell Metropolitan Borough Council,http://www.sandwell.gov.uk/info/200202/performance_and_spending/1079/payments_over_500,01-Jan-2023,FINANCE (Inc SIU),CUSTODIAN GROUP LTD,Childrens Services,525.00,Rents,2223P10_CR00322,151637
Sandwell Metropolitan Borough Council,http://www.sandwell.gov.uk/info/200202/performance_and_spending/1079/payments_over_500,01-Jan-2023,FINANCE (Inc SIU),CUSTODIAN GROUP LTD,Childrens Services,525.00,Rents,2223P10_CR00323,151637
Sandwell Metropolitan Borough Council,http://www.sandwell.gov.uk/info/200202/performance_and_spending/1079/payments_over_500,01-Jan-2023,FINANCE (Inc SIU),CUSTODIAN GROUP LTD,Childrens Services,525.00,Rents,2223P10_CR00324,151637
Sandwell Metropolitan Borough Council,http://www.sandwell.gov.uk/info/200202/performance_and_spending/1079/payments_over_500,01-Jan-2023,FINANCE (Inc SIU),CUSTODIAN GROUP LTD,Childrens Services,525.00,Rents,2223P10_CR00325,151637
Sandwell Metropolitan Borough Council,http://www.sandwell.gov.uk/info/200202/performance_and_spending/1079/payments_over_500,01-Jan-2023,FINANCE (Inc SIU),CUSTODIAN GROUP LTD,Childrens Services,525.00,Rents,2223P10_CR00326,151637
Sandwell Metropolitan Borough Council,http://www.sandwell.gov.uk/info/200202/performance_and_spending/1079/payments_over_500,01-Jan-2023,FINANCE (Inc SIU),CUSTODIAN GROUP LTD,Childrens Services,525.00,Rents,2223P10_CR00327,151637
Sandwell Metropolitan Borough Council,http://www.sandwell.gov.uk/info/200202/performance_and_spending/1079/payments_over_500,01-Jan-2023,FINANCE (Inc SIU),CUSTODIAN GROUP LTD,Childrens Services,525.00,Rents,2223P10_CR00328,151637
Sandwell Metropolitan Borough Council,http://www.sandwell.gov.uk/info/200202/performance_and_spending/1079/payments_over_500,05-Jan-2023,FINANCE (Inc SIU),CUSTODIAN GROUP LTD,Childrens Services,630.00,Rents,2223P10_CR00329,151637
Sandwell Metropolitan Borough Council,http://www.sandwell.gov.uk/info/200202/performance_and_spending/1079/payments_over_500,05-Jan-2023,FINANCE (Inc SIU),CUSTODIAN GROUP LTD,Childrens Services,630.00,Rents,2223P10_CR00330,151637
Sandwell Metropolitan Borough Council,http://www.sandwell.gov.uk/info/200202/performance_and_spending/1079/payments_over_500,05-Jan-2023,FINANCE (Inc SIU),CUSTODIAN GROUP LTD,Childrens Services,630.00,Rents,2223P10_CR00331,151637
Sandwell Metropolitan Borough Council,http://www.sandwell.gov.uk/info/200202/performance_and_spending/1079/payments_over_500,05-Jan-2023,FINANCE (Inc SIU),CUSTODIAN GROUP LTD,Childrens Services,630.00,Rents,2223P10_CR00332,151637
Sandwell Metropolitan Borough Council,http://www.sandwell.gov.uk/info/200202/performance_and_spending/1079/payments_over_500,05-Jan-2023,FINANCE (Inc SIU),CUSTODIAN GROUP LTD,Childrens Services,630.00,Rents,2223P10_CR00333,151637
Sandwell Metropolitan Borough Council,http://www.sandwell.gov.uk/info/200202/performance_and_spending/1079/payments_over_500,26-Jan-2023,FINANCE (Inc SIU),CUSTODIAN GROUP LTD,Childrens Services,630.00,Rents,2223P10_CR00334,151637
Sandwell Metropolitan Borough Council,http://www.sandwell.gov.uk/info/200202/performance_and_spending/1079/payments_over_500,26-Jan-2023,FINANCE (Inc SIU),CUSTODIAN GROUP LTD,Childrens Services,630.00,Rents,2223P10_CR00335,151637
Sandwell Metropolitan Borough Council,http://www.sandwell.gov.uk/info/200202/performance_and_spending/1079/payments_over_500,26-Jan-2023,FINANCE (Inc SIU),CUSTODIAN GROUP LTD,Childrens Services,630.00,Rents,2223P10_CR00336,151637
Sandwell Metropolitan Borough Council,http://www.sandwell.gov.uk/info/200202/performance_and_spending/1079/payments_over_500,26-Jan-2023,FINANCE (Inc SIU),CUSTODIAN GROUP LTD,Childrens Services,630.00,Rents,2223P10_CR00337,151637
Sandwell Metropolitan Borough Council,http://www.sandwell.gov.uk/info/200202/performance_and_spending/1079/payments_over_500,26-Jan-2023,FINANCE (Inc SIU),CUSTODIAN GROUP LTD,Childrens Services,630.00,Rents,2223P10_CR00338,151637
Sandwell Metropolitan Borough Council,http://www.sandwell.gov.uk/info/200202/performance_and_spending/1079/payments_over_500,26-Jan-2023,FINANCE (Inc SIU),CUSTODIAN GROUP LTD,Childrens Services,630.00,Rents,2223P10_CR00339,151637
Sandwell Metropolitan Borough Council,http://www.sandwell.gov.uk/info/200202/performance_and_spending/1079/payments_over_500,26-Jan-2023,FINANCE (Inc SIU),CUSTODIAN GROUP LTD,Childrens Services,630.00,Rents,2223P10_CR00340,151637
Sandwell Metropolitan Borough Council,http://www.sandwell.gov.uk/info/200202/performance_and_spending/1079/payments_over_500,26-Jan-2023,FINANCE (Inc SIU),CUSTODIAN GROUP LTD,Childrens Services,630.00,Rents,2223P10_CR00341,151637
Sandwell Metropolitan Borough Council,http://www.sandwell.gov.uk/info/200202/performance_and_spending/1079/payments_over_500,26-Jan-2023,FINANCE (Inc SIU),CUSTODIAN GROUP LTD,Childrens Services,630.00,Rents,2223P10_CR00342,151637
Sandwell Metropolitan Borough Council,http://www.sandwell.gov.uk/info/200202/performance_and_spending/1079/payments_over_500,26-Jan-2023,FINANCE (Inc SIU),CUSTODIAN GROUP LTD,Childrens Services,630.00,Rents,2223P10_CR00343,151637
Sandwell Metropolitan Borough Council,http://www.sandwell.gov.uk/info/200202/performance_and_spending/1079/payments_over_500,11-Jan-2023,FINANCE (Inc SIU),DSI BILLING SERVICES LIMITED,Assistant Chief Executive (Excl SIU),12740.24,"Printing, Stationery & General Office Expenses",2223P10_CR00344,161962
Sandwell Metropolitan Borough Council,http://www.sandwell.gov.uk/info/200202/performance_and_spending/1079/payments_over_500,01-Jan-2023,FINANCE (Inc SIU),EDEN BROWN LIMITED,Assistant Chief Executive (Excl SIU),972.32,Agency Staff,2223P10_CR00345,47241
Sandwell Metropolitan Borough Council,http://www.sandwell.gov.uk/info/200202/performance_and_spending/1079/payments_over_500,01-Jan-2023,FINANCE (Inc SIU),G4S CASH SOLUTIONS (UK) LTD,Assistant Chief Executive (Excl SIU),528.00,Cash Collections,2223P10_CR00346,01606348
Sandwell Metropolitan Borough Council,http://www.sandwell.gov.uk/info/200202/performance_and_spending/1079/payments_over_500,23-Jan-2023,FINANCE (Inc SIU),GILANI ENTERPRISES LIMITED,Childrens Services,1466.67,Rents,2223P10_CR00347,2696
Sandwell Metropolitan Borough Council,http://www.sandwell.gov.uk/info/200202/performance_and_spending/1079/payments_over_500,01-Jan-2023,FINANCE (Inc SIU),GREENHALGH KERR SOLICITORS LIMITED,Assistant Chief Executive (Excl SIU),1253.00,Externally Purchased Professional Services ,2223P10_CR00348,127273
Sandwell Metropolitan Borough Council,http://www.sandwell.gov.uk/info/200202/performance_and_spending/1079/payments_over_500,18-Jan-2023,FINANCE (Inc SIU),HAWK INCENTIVES LTD,Assistant Chief Executive (Excl SIU),5000.00,Catering Provisions,2223P10_CR00349,148982
Sandwell Metropolitan Borough Council,http://www.sandwell.gov.uk/info/200202/performance_and_spending/1079/payments_over_500,01-Jan-2023,FINANCE (Inc SIU),HAYS SPECIALIST RECRUITMENT LTD,Assistant Chief Executive (Excl SIU),48056.54,Agency Staff,2223P10_CR00350,80349
Sandwell Metropolitan Borough Council,http://www.sandwell.gov.uk/info/200202/performance_and_spending/1079/payments_over_500,01-Jan-2023,FINANCE (Inc SIU),HAYS SPECIALIST RECRUITMENT LTD,Assistant Chief Executive (Excl SIU),96684.31,Agency Staff,2223P10_CR00351,80349
Sandwell Metropolitan Borough Council,http://www.sandwell.gov.uk/info/200202/performance_and_spending/1079/payments_over_500,01-Jan-2023,FINANCE (Inc SIU),HAYS SPECIALIST RECRUITMENT LTD,Assistant Chief Executive (Excl SIU),146780.88,Agency Staff,2223P10_CR00352,80349
Sandwell Metropolitan Borough Council,http://www.sandwell.gov.uk/info/200202/performance_and_spending/1079/payments_over_500,01-Jan-2023,FINANCE (Inc SIU),HAYS SPECIALIST RECRUITMENT LTD,Assistant Chief Executive (Excl SIU),155108.41,Agency Staff,2223P10_CR00353,80349
Sandwell Metropolitan Borough Council,http://www.sandwell.gov.uk/info/200202/performance_and_spending/1079/payments_over_500,01-Jan-2023,FINANCE (Inc SIU),HAYS SPECIALIST RECRUITMENT LTD,Assistant Chief Executive (Excl SIU),213866.66,Agency Staff,2223P10_CR00354,80349
Sandwell Metropolitan Borough Council,http://www.sandwell.gov.uk/info/200202/performance_and_spending/1079/payments_over_500,01-Jan-2023,FINANCE (Inc SIU),HAYS SPECIALIST RECRUITMENT LTD,Assistant Chief Executive (Excl SIU),372342.07,Agency Staff,2223P10_CR00355,80349
Sandwell Metropolitan Borough Council,http://www.sandwell.gov.uk/info/200202/performance_and_spending/1079/payments_over_500,09-Jan-2023,FINANCE (Inc SIU),HESTIA HOUSING & SUPPORT,Childrens Services,1155.93,Rents,2223P10_CR00356,154864
Sandwell Metropolitan Borough Council,http://www.sandwell.gov.uk/info/200202/performance_and_spending/1079/payments_over_500,01-Jan-2023,FINANCE (Inc SIU),HUMMINGBIRD-SOLUTIONS LTD,Assistant Chief Executive (Excl SIU),524.80,Agency Staff,2223P10_CR00357,162921
Sandwell Metropolitan Borough Council,http://www.sandwell.gov.uk/info/200202/performance_and_spending/1079/payments_over_500,01-Jan-2023,FINANCE (Inc SIU),HUMMINGBIRD-SOLUTIONS LTD,Assistant Chief Executive (Excl SIU),532.86,Agency Staff,2223P10_CR00358,162921
Sandwell Metropolitan Borough Council,http://www.sandwell.gov.uk/info/200202/performance_and_spending/1079/payments_over_500,01-Jan-2023,FINANCE (Inc SIU),HUMMINGBIRD-SOLUTIONS LTD,Assistant Chief Executive (Excl SIU),544.15,Agency Staff,2223P10_CR00359,162921
Sandwell Metropolitan Borough Council,http://www.sandwell.gov.uk/info/200202/performance_and_spending/1079/payments_over_500,01-Jan-2023,FINANCE (Inc SIU),HUMMINGBIRD-SOLUTIONS LTD,Assistant Chief Executive (Excl SIU),1111.48,Agency Staff,2223P10_CR00360,162921
Sandwell Metropolitan Borough Council,http://www.sandwell.gov.uk/info/200202/performance_and_spending/1079/payments_over_500,01-Jan-2023,FINANCE (Inc SIU),INFORM CPI LTD,Assistant Chief Executive (Excl SIU),1175.00,Consultancy,2223P10_CR00361,123986
Sandwell Metropolitan Borough Council,http://www.sandwell.gov.uk/info/200202/performance_and_spending/1079/payments_over_500,01-Jan-2023,FINANCE (Inc SIU),INFORM CPI LTD,Assistant Chief Executive (Excl SIU),2900.00,Consultancy,2223P10_CR00362,123986
Sandwell Metropolitan Borough Council,http://www.sandwell.gov.uk/info/200202/performance_and_spending/1079/payments_over_500,01-Jan-2023,FINANCE (Inc SIU),INFOSYS LIMITED,Assistant Chief Executive (Excl SIU),241650.00,Consultancy,2223P10_CR00363,164052
Sandwell Metropolitan Borough Council,http://www.sandwell.gov.uk/info/200202/performance_and_spending/1079/payments_over_500,03-Jan-2023,FINANCE (Inc SIU),IRON MOUNTAIN (UK) LTD,Assistant Chief Executive (Excl SIU),1299.48,ICT ,2223P10_CR00364,01719704
Sandwell Metropolitan Borough Council,http://www.sandwell.gov.uk/info/200202/performance_and_spending/1079/payments_over_500,30-Jan-2023,FINANCE (Inc SIU),IRON MOUNTAIN (UK) LTD,Assistant Chief Executive (Excl SIU),1318.74,ICT ,2223P10_CR00365,01719704
Sandwell Metropolitan Borough Council,http://www.sandwell.gov.uk/info/200202/performance_and_spending/1079/payments_over_500,01-Jan-2023,FINANCE (Inc SIU),JORECRUITMENT LIMITED,Assistant Chief Executive (Excl SIU),540.00,Agency Staff,2223P10_CR00366,154704
Sandwell Metropolitan Borough Council,http://www.sandwell.gov.uk/info/200202/performance_and_spending/1079/payments_over_500,01-Jan-2023,FINANCE (Inc SIU),JORECRUITMENT LIMITED,Assistant Chief Executive (Excl SIU),555.00,Agency Staff,2223P10_CR00367,154704
Sandwell Metropolitan Borough Council,http://www.sandwell.gov.uk/info/200202/performance_and_spending/1079/payments_over_500,01-Jan-2023,FINANCE (Inc SIU),JORECRUITMENT LIMITED,Assistant Chief Executive (Excl SIU),555.00,Agency Staff,2223P10_CR00368,154704
Sandwell Metropolitan Borough Council,http://www.sandwell.gov.uk/info/200202/performance_and_spending/1079/payments_over_500,01-Jan-2023,FINANCE (Inc SIU),JORECRUITMENT LIMITED,Assistant Chief Executive (Excl SIU),562.50,Agency Staff,2223P10_CR00369,154704
Sandwell Metropolitan Borough Council,http://www.sandwell.gov.uk/info/200202/performance_and_spending/1079/payments_over_500,01-Jan-2023,FINANCE (Inc SIU),JORECRUITMENT LIMITED,Assistant Chief Executive (Excl SIU),562.50,Agency Staff,2223P10_CR00370,154704
Sandwell Metropolitan Borough Council,http://www.sandwell.gov.uk/info/200202/performance_and_spending/1079/payments_over_500,01-Jan-2023,FINANCE (Inc SIU),JORECRUITMENT LIMITED,Assistant Chief Executive (Excl SIU),576.00,Agency Staff,2223P10_CR00371,154704
Sandwell Metropolitan Borough Council,http://www.sandwell.gov.uk/info/200202/performance_and_spending/1079/payments_over_500,01-Jan-2023,FINANCE (Inc SIU),JORECRUITMENT LIMITED,Assistant Chief Executive (Excl SIU),608.00,Agency Staff,2223P10_CR00372,154704
Sandwell Metropolitan Borough Council,http://www.sandwell.gov.uk/info/200202/performance_and_spending/1079/payments_over_500,01-Jan-2023,FINANCE (Inc SIU),JORECRUITMENT LIMITED,Assistant Chief Executive (Excl SIU),612.00,Agency Staff,2223P10_CR00373,154704
Sandwell Metropolitan Borough Council,http://www.sandwell.gov.uk/info/200202/performance_and_spending/1079/payments_over_500,01-Jan-2023,FINANCE (Inc SIU),JORECRUITMENT LIMITED,Assistant Chief Executive (Excl SIU),630.00,Agency Staff,2223P10_CR00374,154704
Sandwell Metropolitan Borough Council,http://www.sandwell.gov.uk/info/200202/performance_and_spending/1079/payments_over_500,01-Jan-2023,FINANCE (Inc SIU),JORECRUITMENT LIMITED,Assistant Chief Executive (Excl SIU),664.00,Agency Staff,2223P10_CR00375,154704
Sandwell Metropolitan Borough Council,http://www.sandwell.gov.uk/info/200202/performance_and_spending/1079/payments_over_500,01-Jan-2023,FINANCE (Inc SIU),JORECRUITMENT LIMITED,Assistant Chief Executive (Excl SIU),666.00,Agency Staff,2223P10_CR00376,154704
Sandwell Metropolitan Borough Council,http://www.sandwell.gov.uk/info/200202/performance_and_spending/1079/payments_over_500,01-Jan-2023,FINANCE (Inc SIU),JORECRUITMENT LIMITED,Assistant Chief Executive (Excl SIU),672.00,Agency Staff,2223P10_CR00377,154704
Sandwell Metropolitan Borough Council,http://www.sandwell.gov.uk/info/200202/performance_and_spending/1079/payments_over_500,01-Jan-2023,FINANCE (Inc SIU),JORECRUITMENT LIMITED,Assistant Chief Executive (Excl SIU),672.00,Agency Staff,2223P10_CR00378,154704
Sandwell Metropolitan Borough Council,http://www.sandwell.gov.uk/info/200202/performance_and_spending/1079/payments_over_500,01-Jan-2023,FINANCE (Inc SIU),JORECRUITMENT LIMITED,Assistant Chief Executive (Excl SIU),672.77,Agency Staff,2223P10_CR00379,154704
Sandwell Metropolitan Borough Council,http://www.sandwell.gov.uk/info/200202/performance_and_spending/1079/payments_over_500,01-Jan-2023,FINANCE (Inc SIU),JORECRUITMENT LIMITED,Assistant Chief Executive (Excl SIU),672.77,Agency Staff,2223P10_CR00380,154704
Sandwell Metropolitan Borough Council,http://www.sandwell.gov.uk/info/200202/performance_and_spending/1079/payments_over_500,01-Jan-2023,FINANCE (Inc SIU),JORECRUITMENT LIMITED,Assistant Chief Executive (Excl SIU),680.00,Agency Staff,2223P10_CR00381,154704
Sandwell Metropolitan Borough Council,http://www.sandwell.gov.uk/info/200202/performance_and_spending/1079/payments_over_500,01-Jan-2023,FINANCE (Inc SIU),JORECRUITMENT LIMITED,Assistant Chief Executive (Excl SIU),680.00,Agency Staff,2223P10_CR00382,154704
Sandwell Metropolitan Borough Council,http://www.sandwell.gov.uk/info/200202/performance_and_spending/1079/payments_over_500,01-Jan-2023,FINANCE (Inc SIU),JORECRUITMENT LIMITED,Assistant Chief Executive (Excl SIU),680.00,Agency Staff,2223P10_CR00383,154704
Sandwell Metropolitan Borough Council,http://www.sandwell.gov.uk/info/200202/performance_and_spending/1079/payments_over_500,01-Jan-2023,FINANCE (Inc SIU),JORECRUITMENT LIMITED,Assistant Chief Executive (Excl SIU),735.00,Agency Staff,2223P10_CR00384,154704
Sandwell Metropolitan Borough Council,http://www.sandwell.gov.uk/info/200202/performance_and_spending/1079/payments_over_500,01-Jan-2023,FINANCE (Inc SIU),JORECRUITMENT LIMITED,Assistant Chief Executive (Excl SIU),736.00,Agency Staff,2223P10_CR00385,154704
Sandwell Metropolitan Borough Council,http://www.sandwell.gov.uk/info/200202/performance_and_spending/1079/payments_over_500,01-Jan-2023,FINANCE (Inc SIU),JORECRUITMENT LIMITED,Assistant Chief Executive (Excl SIU),740.00,Agency Staff,2223P10_CR00386,154704
Sandwell Metropolitan Borough Council,http://www.sandwell.gov.uk/info/200202/performance_and_spending/1079/payments_over_500,01-Jan-2023,FINANCE (Inc SIU),JORECRUITMENT LIMITED,Assistant Chief Executive (Excl SIU),887.95,Agency Staff,2223P10_CR00387,154704
Sandwell Metropolitan Borough Council,http://www.sandwell.gov.uk/info/200202/performance_and_spending/1079/payments_over_500,01-Jan-2023,FINANCE (Inc SIU),JORECRUITMENT LIMITED,Assistant Chief Executive (Excl SIU),936.00,Agency Staff,2223P10_CR00388,154704
Sandwell Metropolitan Borough Council,http://www.sandwell.gov.uk/info/200202/performance_and_spending/1079/payments_over_500,01-Jan-2023,FINANCE (Inc SIU),JORECRUITMENT LIMITED,Assistant Chief Executive (Excl SIU),1113.70,Agency Staff,2223P10_CR00389,154704
Sandwell Metropolitan Borough Council,http://www.sandwell.gov.uk/info/200202/performance_and_spending/1079/payments_over_500,01-Jan-2023,FINANCE (Inc SIU),JORECRUITMENT LIMITED,Assistant Chief Executive (Excl SIU),1345.53,Agency Staff,2223P10_CR00390,154704
Sandwell Metropolitan Borough Council,http://www.sandwell.gov.uk/info/200202/performance_and_spending/1079/payments_over_500,01-Jan-2023,FINANCE (Inc SIU),JORECRUITMENT LIMITED,Assistant Chief Executive (Excl SIU),1569.79,Agency Staff,2223P10_CR00391,154704
Sandwell Metropolitan Borough Council,http://www.sandwell.gov.uk/info/200202/performance_and_spending/1079/payments_over_500,01-Jan-2023,FINANCE (Inc SIU),KENYON BLOCK CONSULTANTS LIMITED,Assistant Chief Executive (Excl SIU),720.00,Agency Staff,2223P10_CR00392,119366
Sandwell Metropolitan Borough Council,http://www.sandwell.gov.uk/info/200202/performance_and_spending/1079/payments_over_500,01-Jan-2023,FINANCE (Inc SIU),KENYON BLOCK CONSULTANTS LIMITED,Assistant Chief Executive (Excl SIU),900.00,Agency Staff,2223P10_CR00393,119366
Sandwell Metropolitan Borough Council,http://www.sandwell.gov.uk/info/200202/performance_and_spending/1079/payments_over_500,19-Jan-2023,FINANCE (Inc SIU),KUIPER TECHNOLOGY LIMITED,Assistant Chief Executive (Excl SIU),7916.53,ICT ,2223P10_CR00394,134923
Sandwell Metropolitan Borough Council,http://www.sandwell.gov.uk/info/200202/performance_and_spending/1079/payments_over_500,09-Jan-2023,FINANCE (Inc SIU),LG FUTURES LIMITED,Assistant Chief Executive (Excl SIU),2595.00,Externally Purchased Professional Services ,2223P10_CR00395,102773
Sandwell Metropolitan Borough Council,http://www.sandwell.gov.uk/info/200202/performance_and_spending/1079/payments_over_500,01-Jan-2023,FINANCE (Inc SIU),LG FUTURES LIMITED,Assistant Chief Executive (Excl SIU),42986.00,Externally Purchased Professional Services ,2223P10_CR00396,102773
Sandwell Metropolitan Borough Council,http://www.sandwell.gov.uk/info/200202/performance_and_spending/1079/payments_over_500,09-Jan-2023,FINANCE (Inc SIU),MACILDOWIE ASSOCIATES LTD,Assistant Chief Executive (Excl SIU),2808.00,Agency Staff,2223P10_CR00397,164797
Sandwell Metropolitan Borough Council,http://www.sandwell.gov.uk/info/200202/performance_and_spending/1079/payments_over_500,01-Jan-2023,FINANCE (Inc SIU),MACILDOWIE ASSOCIATES LTD,Assistant Chief Executive (Excl SIU),3510.00,Agency Staff,2223P10_CR00398,164797
Sandwell Metropolitan Borough Council,http://www.sandwell.gov.uk/info/200202/performance_and_spending/1079/payments_over_500,01-Jan-2023,FINANCE (Inc SIU),MACILDOWIE ASSOCIATES LTD,Assistant Chief Executive (Excl SIU),3510.00,Agency Staff,2223P10_CR00399,164797
Sandwell Metropolitan Borough Council,http://www.sandwell.gov.uk/info/200202/performance_and_spending/1079/payments_over_500,01-Jan-2023,FINANCE (Inc SIU),MARSH LIMITED,Assistant Chief Executive (Excl SIU),1392.74,Insurance,2223P10_CR00400,01165486
Sandwell Metropolitan Borough Council,http://www.sandwell.gov.uk/info/200202/performance_and_spending/1079/payments_over_500,12-Jan-2023,FINANCE (Inc SIU),NATIONAL MEDICARE SERVICES LTD,Assistant Chief Executive (Excl SIU),762.00,Agency Staff,2223P10_CR00401,164404
Sandwell Metropolitan Borough Council,http://www.sandwell.gov.uk/info/200202/performance_and_spending/1079/payments_over_500,12-Jan-2023,FINANCE (Inc SIU),NATIONAL MEDICARE SERVICES LTD,Assistant Chief Executive (Excl SIU),802.00,Agency Staff,2223P10_CR00402,164404
Sandwell Metropolitan Borough Council,http://www.sandwell.gov.uk/info/200202/performance_and_spending/1079/payments_over_500,12-Jan-2023,FINANCE (Inc SIU),NATIONAL MEDICARE SERVICES LTD,Assistant Chief Executive (Excl SIU),1131.00,Agency Staff,2223P10_CR00403,164404
Sandwell Metropolitan Borough Council,http://www.sandwell.gov.uk/info/200202/performance_and_spending/1079/payments_over_500,09-Jan-2023,FINANCE (Inc SIU),NATIONAL WESTMINSTER BANK PLC,Assistant Chief Executive (Excl SIU),2047.00,Other Agency Payments,2223P10_CR00404,120965
Sandwell Metropolitan Borough Council,http://www.sandwell.gov.uk/info/200202/performance_and_spending/1079/payments_over_500,12-Jan-2023,FINANCE (Inc SIU),NATIONAL WESTMINSTER BANK PLC,Assistant Chief Executive (Excl SIU),2870.00,Other Agency Payments,2223P10_CR00405,120965
Sandwell Metropolitan Borough Council,http://www.sandwell.gov.uk/info/200202/performance_and_spending/1079/payments_over_500,04-Jan-2023,FINANCE (Inc SIU),NATIONAL WESTMINSTER BANK PLC,Assistant Chief Executive (Excl SIU),3175.00,Other Agency Payments,2223P10_CR00406,120965
Sandwell Metropolitan Borough Council,http://www.sandwell.gov.uk/info/200202/performance_and_spending/1079/payments_over_500,30-Jan-2023,FINANCE (Inc SIU),NATIONAL WESTMINSTER BANK PLC,Assistant Chief Executive (Excl SIU),4888.00,Other Agency Payments,2223P10_CR00407,120965
Sandwell Metropolitan Borough Council,http://www.sandwell.gov.uk/info/200202/performance_and_spending/1079/payments_over_500,01-Jan-2023,FINANCE (Inc SIU),NEC SOFTWARE SOLUTIONS UK LTD,Assistant Chief Executive (Excl SIU),850.00,Private Contractors,2223P10_CR00408,56043
Sandwell Metropolitan Borough Council,http://www.sandwell.gov.uk/info/200202/performance_and_spending/1079/payments_over_500,01-Jan-2023,FINANCE (Inc SIU),NEC SOFTWARE SOLUTIONS UK LTD,Assistant Chief Executive (Excl SIU),1520.00,Private Contractors,2223P10_CR00409,56043
Sandwell Metropolitan Borough Council,http://www.sandwell.gov.uk/info/200202/performance_and_spending/1079/payments_over_500,03-Jan-2023,FINANCE (Inc SIU),NEC SOFTWARE SOLUTIONS UK LTD,Assistant Chief Executive (Excl SIU),3200.00,Private Contractors,2223P10_CR00410,56043
Sandwell Metropolitan Borough Council,http://www.sandwell.gov.uk/info/200202/performance_and_spending/1079/payments_over_500,09-Jan-2023,FINANCE (Inc SIU),NEC SOFTWARE SOLUTIONS UK LTD,Assistant Chief Executive (Excl SIU),6320.00,Private Contractors,2223P10_CR00411,56043
Sandwell Metropolitan Borough Council,http://www.sandwell.gov.uk/info/200202/performance_and_spending/1079/payments_over_500,01-Jan-2023,FINANCE (Inc SIU),NEC SOFTWARE SOLUTIONS UK LTD,Assistant Chief Executive (Excl SIU),6720.00,Private Contractors,2223P10_CR00412,56043
Sandwell Metropolitan Borough Council,http://www.sandwell.gov.uk/info/200202/performance_and_spending/1079/payments_over_500,01-Jan-2023,FINANCE (Inc SIU),ORACLE CORPORATION UK LTD,Assistant Chief Executive (Excl SIU),2361.00,Externally Purchased Professional Services ,2223P10_CR00413,01539742
Sandwell Metropolitan Borough Council,http://www.sandwell.gov.uk/info/200202/performance_and_spending/1079/payments_over_500,17-Jan-2023,FINANCE (Inc SIU),ORACLE CORPORATION UK LTD,Assistant Chief Executive (Excl SIU),8559.00,Externally Purchased Professional Services ,2223P10_CR00414,01539742
Sandwell Metropolitan Borough Council,http://www.sandwell.gov.uk/info/200202/performance_and_spending/1079/payments_over_500,03-Jan-2023,FINANCE (Inc SIU),PAYPOINT PLC,Assistant Chief Executive (Excl SIU),2515.00,Fuel ,2223P10_CR00415,112333
Sandwell Metropolitan Borough Council,http://www.sandwell.gov.uk/info/200202/performance_and_spending/1079/payments_over_500,09-Jan-2023,FINANCE (Inc SIU),PAYPOINT PLC,Assistant Chief Executive (Excl SIU),4216.00,Fuel ,2223P10_CR00416,112333
Sandwell Metropolitan Borough Council,http://www.sandwell.gov.uk/info/200202/performance_and_spending/1079/payments_over_500,31-Jan-2023,FINANCE (Inc SIU),PAYPOINT PLC,Assistant Chief Executive (Excl SIU),4629.00,Fuel ,2223P10_CR00417,112333
Sandwell Metropolitan Borough Council,http://www.sandwell.gov.uk/info/200202/performance_and_spending/1079/payments_over_500,25-Jan-2023,FINANCE (Inc SIU),PAYPOINT PLC,Assistant Chief Executive (Excl SIU),5283.10,Fuel ,2223P10_CR00418,112333
Sandwell Metropolitan Borough Council,http://www.sandwell.gov.uk/info/200202/performance_and_spending/1079/payments_over_500,16-Jan-2023,FINANCE (Inc SIU),PAYPOINT PLC,Assistant Chief Executive (Excl SIU),5351.10,Fuel ,2223P10_CR00419,112333
Sandwell Metropolitan Borough Council,http://www.sandwell.gov.uk/info/200202/performance_and_spending/1079/payments_over_500,03-Jan-2023,FINANCE (Inc SIU),PAYPOINT PLC,Assistant Chief Executive (Excl SIU),5403.40,Fuel ,2223P10_CR00420,112333
Sandwell Metropolitan Borough Council,http://www.sandwell.gov.uk/info/200202/performance_and_spending/1079/payments_over_500,04-Jan-2023,FINANCE (Inc SIU),POST OFFICE LTD,Assistant Chief Executive (Excl SIU),273480.00,Grant Payments,2223P10_CR00421,01663387
Sandwell Metropolitan Borough Council,http://www.sandwell.gov.uk/info/200202/performance_and_spending/1079/payments_over_500,12-Jan-2023,FINANCE (Inc SIU),PROVISION HOUSE,Assistant Chief Executive (Excl SIU),15206.00,Equipment & Furniture ,2223P10_CR00422,163600
Sandwell Metropolitan Borough Council,http://www.sandwell.gov.uk/info/200202/performance_and_spending/1079/payments_over_500,01-Jan-2023,FINANCE (Inc SIU),PROVISION HOUSE,Assistant Chief Executive (Excl SIU),23021.00,Equipment & Furniture ,2223P10_CR00423,163600
Sandwell Metropolitan Borough Council,http://www.sandwell.gov.uk/info/200202/performance_and_spending/1079/payments_over_500,01-Jan-2023,FINANCE (Inc SIU),RESTORE SCAN LIMITED,Total Adult Social Care,826.64,ICT ,2223P10_CR00424,13549
Sandwell Metropolitan Borough Council,http://www.sandwell.gov.uk/info/200202/performance_and_spending/1079/payments_over_500,03-Jan-2023,FINANCE (Inc SIU),ROC TECHNOLOGIES LTD,Assistant Chief Executive (Excl SIU),975.00,Externally Purchased Professional Services ,2223P10_CR00425,161921
Sandwell Metropolitan Borough Council,http://www.sandwell.gov.uk/info/200202/performance_and_spending/1079/payments_over_500,01-Jan-2023,FINANCE (Inc SIU),SELLICK PARTNERSHIP GROUP LIMITED,Assistant Chief Executive (Excl SIU),2109.00,Agency Staff,2223P10_CR00426,63607
Sandwell Metropolitan Borough Council,http://www.sandwell.gov.uk/info/200202/performance_and_spending/1079/payments_over_500,01-Jan-2023,FINANCE (Inc SIU),SELLICK PARTNERSHIP GROUP LIMITED,Assistant Chief Executive (Excl SIU),2109.00,Agency Staff,2223P10_CR00427,63607
Sandwell Metropolitan Borough Council,http://www.sandwell.gov.uk/info/200202/performance_and_spending/1079/payments_over_500,09-Jan-2023,FINANCE (Inc SIU),SELLICK PARTNERSHIP GROUP LIMITED,Assistant Chief Executive (Excl SIU),2109.00,Agency Staff,2223P10_CR00428,63607
Sandwell Metropolitan Borough Council,http://www.sandwell.gov.uk/info/200202/performance_and_spending/1079/payments_over_500,01-Jan-2023,FINANCE (Inc SIU),SELLICK PARTNERSHIP GROUP LIMITED,Assistant Chief Executive (Excl SIU),2109.00,Agency Staff,2223P10_CR00429,63607
Sandwell Metropolitan Borough Council,http://www.sandwell.gov.uk/info/200202/performance_and_spending/1079/payments_over_500,09-Jan-2023,FINANCE (Inc SIU),SERVICE CARE SOLUTIONS,Assistant Chief Executive (Excl SIU),512.12,Agency Staff,2223P10_CR00430,123856
Sandwell Metropolitan Borough Council,http://www.sandwell.gov.uk/info/200202/performance_and_spending/1079/payments_over_500,01-Jan-2023,FINANCE (Inc SIU),SERVICE CARE SOLUTIONS,Assistant Chief Executive (Excl SIU),548.70,Agency Staff,2223P10_CR00431,123856
Sandwell Metropolitan Borough Council,http://www.sandwell.gov.uk/info/200202/performance_and_spending/1079/payments_over_500,01-Jan-2023,FINANCE (Inc SIU),SERVICE CARE SOLUTIONS,Assistant Chief Executive (Excl SIU),658.44,Agency Staff,2223P10_CR00432,123856
Sandwell Metropolitan Borough Council,http://www.sandwell.gov.uk/info/200202/performance_and_spending/1079/payments_over_500,01-Jan-2023,FINANCE (Inc SIU),SERVICE CARE SOLUTIONS,Assistant Chief Executive (Excl SIU),834.75,Agency Staff,2223P10_CR00433,123856
Sandwell Metropolitan Borough Council,http://www.sandwell.gov.uk/info/200202/performance_and_spending/1079/payments_over_500,01-Jan-2023,FINANCE (Inc SIU),SERVICE CARE SOLUTIONS,Assistant Chief Executive (Excl SIU),929.25,Agency Staff,2223P10_CR00434,123856
Sandwell Metropolitan Borough Council,http://www.sandwell.gov.uk/info/200202/performance_and_spending/1079/payments_over_500,01-Jan-2023,FINANCE (Inc SIU),SERVICE CARE SOLUTIONS,Assistant Chief Executive (Excl SIU),945.00,Agency Staff,2223P10_CR00435,123856
Sandwell Metropolitan Borough Council,http://www.sandwell.gov.uk/info/200202/performance_and_spending/1079/payments_over_500,09-Jan-2023,FINANCE (Inc SIU),SERVICE CARE SOLUTIONS,Assistant Chief Executive (Excl SIU),945.00,Agency Staff,2223P10_CR00436,123856
Sandwell Metropolitan Borough Council,http://www.sandwell.gov.uk/info/200202/performance_and_spending/1079/payments_over_500,09-Jan-2023,FINANCE (Inc SIU),SHEFFIELD TEACHING HOSPITALS NHS FOUNDATION TRUST,Assistant Chief Executive (Excl SIU),646.66,Bereavement Expenses,2223P10_CR00437,12998
Sandwell Metropolitan Borough Council,http://www.sandwell.gov.uk/info/200202/performance_and_spending/1079/payments_over_500,04-Jan-2023,FINANCE (Inc SIU),SOCITM ADVISORY LTD,Assistant Chief Executive (Excl SIU),5605.00,Consultancy,2223P10_CR00438,162370
Sandwell Metropolitan Borough Council,http://www.sandwell.gov.uk/info/200202/performance_and_spending/1079/payments_over_500,04-Jan-2023,FINANCE (Inc SIU),SOLACE IN BUSINESS LTD,Assistant Chief Executive (Excl SIU),12045.00,Externally Purchased Professional Services ,2223P10_CR00439,129445
Sandwell Metropolitan Borough Council,http://www.sandwell.gov.uk/info/200202/performance_and_spending/1079/payments_over_500,04-Jan-2023,FINANCE (Inc SIU),SOLACE IN BUSINESS LTD,Assistant Chief Executive (Excl SIU),20400.00,Externally Purchased Professional Services ,2223P10_CR00440,129445
Sandwell Metropolitan Borough Council,http://www.sandwell.gov.uk/info/200202/performance_and_spending/1079/payments_over_500,09-Jan-2023,FINANCE (Inc SIU),THE OYSTER PARTNERSHIP LTD,Assistant Chief Executive (Excl SIU),792.55,Agency Staff,2223P10_CR00441,148917
Sandwell Metropolitan Borough Council,http://www.sandwell.gov.uk/info/200202/performance_and_spending/1079/payments_over_500,01-Jan-2023,FINANCE (Inc SIU),THE OYSTER PARTNERSHIP LTD,Assistant Chief Executive (Excl SIU),1040.05,Agency Staff,2223P10_CR00442,148917
Sandwell Metropolitan Borough Council,http://www.sandwell.gov.uk/info/200202/performance_and_spending/1079/payments_over_500,01-Jan-2023,FINANCE (Inc SIU),THE OYSTER PARTNERSHIP LTD,Assistant Chief Executive (Excl SIU),1041.40,Agency Staff,2223P10_CR00443,148917
Sandwell Metropolitan Borough Council,http://www.sandwell.gov.uk/info/200202/performance_and_spending/1079/payments_over_500,09-Jan-2023,FINANCE (Inc SIU),THE OYSTER PARTNERSHIP LTD,Assistant Chief Executive (Excl SIU),1350.00,Agency Staff,2223P10_CR00444,148917
Sandwell Metropolitan Borough Council,http://www.sandwell.gov.uk/info/200202/performance_and_spending/1079/payments_over_500,01-Jan-2023,FINANCE (Inc SIU),THE OYSTER PARTNERSHIP LTD,Assistant Chief Executive (Excl SIU),1665.00,Agency Staff,2223P10_CR00445,148917
Sandwell Metropolitan Borough Council,http://www.sandwell.gov.uk/info/200202/performance_and_spending/1079/payments_over_500,01-Jan-2023,FINANCE (Inc SIU),THE OYSTER PARTNERSHIP LTD,Assistant Chief Executive (Excl SIU),1665.00,Agency Staff,2223P10_CR00446,148917
Sandwell Metropolitan Borough Council,http://www.sandwell.gov.uk/info/200202/performance_and_spending/1079/payments_over_500,01-Jan-2023,FINANCE (Inc SIU),TOTAL SUPPORT RECRUITMENT LTD,Assistant Chief Executive (Excl SIU),543.67,Agency Staff,2223P10_CR00447,162092
Sandwell Metropolitan Borough Council,http://www.sandwell.gov.uk/info/200202/performance_and_spending/1079/payments_over_500,01-Jan-2023,FINANCE (Inc SIU),TOTAL SUPPORT RECRUITMENT LTD,Assistant Chief Executive (Excl SIU),726.30,Agency Staff,2223P10_CR00448,162092
Sandwell Metropolitan Borough Council,http://www.sandwell.gov.uk/info/200202/performance_and_spending/1079/payments_over_500,01-Jan-2023,FINANCE (Inc SIU),TOTAL SUPPORT RECRUITMENT LTD,Assistant Chief Executive (Excl SIU),883.56,Agency Staff,2223P10_CR00449,162092
Sandwell Metropolitan Borough Council,http://www.sandwell.gov.uk/info/200202/performance_and_spending/1079/payments_over_500,01-Jan-2023,FINANCE (Inc SIU),TOTAL SUPPORT RECRUITMENT LTD,Assistant Chief Executive (Excl SIU),883.56,Agency Staff,2223P10_CR00450,162092
Sandwell Metropolitan Borough Council,http://www.sandwell.gov.uk/info/200202/performance_and_spending/1079/payments_over_500,01-Jan-2023,FINANCE (Inc SIU),TOTAL SUPPORT RECRUITMENT LTD,Assistant Chief Executive (Excl SIU),916.23,Agency Staff,2223P10_CR00451,162092
Sandwell Metropolitan Borough Council,http://www.sandwell.gov.uk/info/200202/performance_and_spending/1079/payments_over_500,09-Jan-2023,FINANCE (Inc SIU),TOTAL SUPPORT RECRUITMENT LTD,Assistant Chief Executive (Excl SIU),1026.25,Agency Staff,2223P10_CR00452,162092
Sandwell Metropolitan Borough Council,http://www.sandwell.gov.uk/info/200202/performance_and_spending/1079/payments_over_500,01-Jan-2023,FINANCE (Inc SIU),TOTAL SUPPORT RECRUITMENT LTD,Assistant Chief Executive (Excl SIU),1564.16,Agency Staff,2223P10_CR00453,162092
Sandwell Metropolitan Borough Council,http://www.sandwell.gov.uk/info/200202/performance_and_spending/1079/payments_over_500,05-Jan-2023,FINANCE (Inc SIU),TRINITY FUNERAL SERVICES LTD,Assistant Chief Executive (Excl SIU),2150.00,Bereavement Expenses,2223P10_CR00454,75803
Sandwell Metropolitan Borough Council,http://www.sandwell.gov.uk/info/200202/performance_and_spending/1079/payments_over_500,01-Jan-2023,FINANCE (Inc SIU),VENN GROUP LTD,Assistant Chief Executive (Excl SIU),562.54,Agency Staff,2223P10_CR00455,49728
Sandwell Metropolitan Borough Council,http://www.sandwell.gov.uk/info/200202/performance_and_spending/1079/payments_over_500,01-Jan-2023,FINANCE (Inc SIU),VENN GROUP LTD,Assistant Chief Executive (Excl SIU),575.25,Agency Staff,2223P10_CR00456,49728
Sandwell Metropolitan Borough Council,http://www.sandwell.gov.uk/info/200202/performance_and_spending/1079/payments_over_500,01-Jan-2023,FINANCE (Inc SIU),VENN GROUP LTD,Assistant Chief Executive (Excl SIU),592.08,Agency Staff,2223P10_CR00457,49728
Sandwell Metropolitan Borough Council,http://www.sandwell.gov.uk/info/200202/performance_and_spending/1079/payments_over_500,01-Jan-2023,FINANCE (Inc SIU),VENN GROUP LTD,Assistant Chief Executive (Excl SIU),604.50,Agency Staff,2223P10_CR00458,49728
Sandwell Metropolitan Borough Council,http://www.sandwell.gov.uk/info/200202/performance_and_spending/1079/payments_over_500,01-Jan-2023,FINANCE (Inc SIU),VENN GROUP LTD,Assistant Chief Executive (Excl SIU),636.00,Agency Staff,2223P10_CR00459,49728
Sandwell Metropolitan Borough Council,http://www.sandwell.gov.uk/info/200202/performance_and_spending/1079/payments_over_500,01-Jan-2023,FINANCE (Inc SIU),VENN GROUP LTD,Assistant Chief Executive (Excl SIU),638.97,Agency Staff,2223P10_CR00460,49728
Sandwell Metropolitan Borough Council,http://www.sandwell.gov.uk/info/200202/performance_and_spending/1079/payments_over_500,01-Jan-2023,FINANCE (Inc SIU),VENN GROUP LTD,Assistant Chief Executive (Excl SIU),643.50,Agency Staff,2223P10_CR00461,49728
Sandwell Metropolitan Borough Council,http://www.sandwell.gov.uk/info/200202/performance_and_spending/1079/payments_over_500,01-Jan-2023,FINANCE (Inc SIU),VENN GROUP LTD,Assistant Chief Executive (Excl SIU),650.10,Agency Staff,2223P10_CR00462,49728
Sandwell Metropolitan Borough Council,http://www.sandwell.gov.uk/info/200202/performance_and_spending/1079/payments_over_500,01-Jan-2023,FINANCE (Inc SIU),VENN GROUP LTD,Assistant Chief Executive (Excl SIU),655.80,Agency Staff,2223P10_CR00463,49728
Sandwell Metropolitan Borough Council,http://www.sandwell.gov.uk/info/200202/performance_and_spending/1079/payments_over_500,01-Jan-2023,FINANCE (Inc SIU),VENN GROUP LTD,Assistant Chief Executive (Excl SIU),655.80,Agency Staff,2223P10_CR00464,49728
Sandwell Metropolitan Borough Council,http://www.sandwell.gov.uk/info/200202/performance_and_spending/1079/payments_over_500,01-Jan-2023,FINANCE (Inc SIU),VENN GROUP LTD,Assistant Chief Executive (Excl SIU),662.28,Agency Staff,2223P10_CR00465,49728
Sandwell Metropolitan Borough Council,http://www.sandwell.gov.uk/info/200202/performance_and_spending/1079/payments_over_500,01-Jan-2023,FINANCE (Inc SIU),VENN GROUP LTD,Assistant Chief Executive (Excl SIU),663.00,Agency Staff,2223P10_CR00466,49728
Sandwell Metropolitan Borough Council,http://www.sandwell.gov.uk/info/200202/performance_and_spending/1079/payments_over_500,01-Jan-2023,FINANCE (Inc SIU),VENN GROUP LTD,Assistant Chief Executive (Excl SIU),716.63,Agency Staff,2223P10_CR00467,49728
Sandwell Metropolitan Borough Council,http://www.sandwell.gov.uk/info/200202/performance_and_spending/1079/payments_over_500,01-Jan-2023,FINANCE (Inc SIU),VENN GROUP LTD,Assistant Chief Executive (Excl SIU),724.08,Agency Staff,2223P10_CR00468,49728
Sandwell Metropolitan Borough Council,http://www.sandwell.gov.uk/info/200202/performance_and_spending/1079/payments_over_500,01-Jan-2023,FINANCE (Inc SIU),VENN GROUP LTD,Assistant Chief Executive (Excl SIU),745.55,Agency Staff,2223P10_CR00469,49728
Sandwell Metropolitan Borough Council,http://www.sandwell.gov.uk/info/200202/performance_and_spending/1079/payments_over_500,01-Jan-2023,FINANCE (Inc SIU),VENN GROUP LTD,Assistant Chief Executive (Excl SIU),745.55,Agency Staff,2223P10_CR00470,49728
Sandwell Metropolitan Borough Council,http://www.sandwell.gov.uk/info/200202/performance_and_spending/1079/payments_over_500,01-Jan-2023,FINANCE (Inc SIU),VENN GROUP LTD,Assistant Chief Executive (Excl SIU),758.15,Agency Staff,2223P10_CR00471,49728
Sandwell Metropolitan Borough Council,http://www.sandwell.gov.uk/info/200202/performance_and_spending/1079/payments_over_500,01-Jan-2023,FINANCE (Inc SIU),VENN GROUP LTD,Assistant Chief Executive (Excl SIU),801.79,Agency Staff,2223P10_CR00472,49728
Sandwell Metropolitan Borough Council,http://www.sandwell.gov.uk/info/200202/performance_and_spending/1079/payments_over_500,01-Jan-2023,FINANCE (Inc SIU),VENN GROUP LTD,Assistant Chief Executive (Excl SIU),801.79,Agency Staff,2223P10_CR00473,49728
Sandwell Metropolitan Borough Council,http://www.sandwell.gov.uk/info/200202/performance_and_spending/1079/payments_over_500,01-Jan-2023,FINANCE (Inc SIU),VENN GROUP LTD,Assistant Chief Executive (Excl SIU),808.82,Agency Staff,2223P10_CR00474,49728
Sandwell Metropolitan Borough Council,http://www.sandwell.gov.uk/info/200202/performance_and_spending/1079/payments_over_500,01-Jan-2023,FINANCE (Inc SIU),VENN GROUP LTD,Assistant Chief Executive (Excl SIU),828.75,Agency Staff,2223P10_CR00475,49728
Sandwell Metropolitan Borough Council,http://www.sandwell.gov.uk/info/200202/performance_and_spending/1079/payments_over_500,01-Jan-2023,FINANCE (Inc SIU),VENN GROUP LTD,Assistant Chief Executive (Excl SIU),828.75,Agency Staff,2223P10_CR00476,49728
Sandwell Metropolitan Borough Council,http://www.sandwell.gov.uk/info/200202/performance_and_spending/1079/payments_over_500,01-Jan-2023,FINANCE (Inc SIU),VENN GROUP LTD,Assistant Chief Executive (Excl SIU),828.75,Agency Staff,2223P10_CR00477,49728
Sandwell Metropolitan Borough Council,http://www.sandwell.gov.uk/info/200202/performance_and_spending/1079/payments_over_500,01-Jan-2023,FINANCE (Inc SIU),VENN GROUP LTD,Assistant Chief Executive (Excl SIU),830.65,Agency Staff,2223P10_CR00478,49728
Sandwell Metropolitan Borough Council,http://www.sandwell.gov.uk/info/200202/performance_and_spending/1079/payments_over_500,01-Jan-2023,FINANCE (Inc SIU),VENN GROUP LTD,Assistant Chief Executive (Excl SIU),830.65,Agency Staff,2223P10_CR00479,49728
Sandwell Metropolitan Borough Council,http://www.sandwell.gov.uk/info/200202/performance_and_spending/1079/payments_over_500,01-Jan-2023,FINANCE (Inc SIU),VENN GROUP LTD,Assistant Chief Executive (Excl SIU),845.70,Agency Staff,2223P10_CR00480,49728
Sandwell Metropolitan Borough Council,http://www.sandwell.gov.uk/info/200202/performance_and_spending/1079/payments_over_500,01-Jan-2023,FINANCE (Inc SIU),VENN GROUP LTD,Assistant Chief Executive (Excl SIU),845.70,Agency Staff,2223P10_CR00481,49728
Sandwell Metropolitan Borough Council,http://www.sandwell.gov.uk/info/200202/performance_and_spending/1079/payments_over_500,01-Jan-2023,FINANCE (Inc SIU),VENN GROUP LTD,Assistant Chief Executive (Excl SIU),864.00,Agency Staff,2223P10_CR00482,49728
Sandwell Metropolitan Borough Council,http://www.sandwell.gov.uk/info/200202/performance_and_spending/1079/payments_over_500,01-Jan-2023,FINANCE (Inc SIU),VENN GROUP LTD,Assistant Chief Executive (Excl SIU),948.46,Agency Staff,2223P10_CR00483,49728
Sandwell Metropolitan Borough Council,http://www.sandwell.gov.uk/info/200202/performance_and_spending/1079/payments_over_500,01-Jan-2023,FINANCE (Inc SIU),VENN GROUP LTD,Assistant Chief Executive (Excl SIU),960.00,Agency Staff,2223P10_CR00484,49728
Sandwell Metropolitan Borough Council,http://www.sandwell.gov.uk/info/200202/performance_and_spending/1079/payments_over_500,01-Jan-2023,FINANCE (Inc SIU),VENN GROUP LTD,Assistant Chief Executive (Excl SIU),966.13,Agency Staff,2223P10_CR00485,49728
Sandwell Metropolitan Borough Council,http://www.sandwell.gov.uk/info/200202/performance_and_spending/1079/payments_over_500,01-Jan-2023,FINANCE (Inc SIU),VENN GROUP LTD,Assistant Chief Executive (Excl SIU),996.00,Agency Staff,2223P10_CR00486,49728
Sandwell Metropolitan Borough Council,http://www.sandwell.gov.uk/info/200202/performance_and_spending/1079/payments_over_500,01-Jan-2023,FINANCE (Inc SIU),VENN GROUP LTD,Assistant Chief Executive (Excl SIU),1023.12,Agency Staff,2223P10_CR00487,49728
Sandwell Metropolitan Borough Council,http://www.sandwell.gov.uk/info/200202/performance_and_spending/1079/payments_over_500,01-Jan-2023,FINANCE (Inc SIU),VENN GROUP LTD,Assistant Chief Executive (Excl SIU),1031.93,Agency Staff,2223P10_CR00488,49728
Sandwell Metropolitan Borough Council,http://www.sandwell.gov.uk/info/200202/performance_and_spending/1079/payments_over_500,01-Jan-2023,FINANCE (Inc SIU),VENN GROUP LTD,Assistant Chief Executive (Excl SIU),1043.03,Agency Staff,2223P10_CR00489,49728
Sandwell Metropolitan Borough Council,http://www.sandwell.gov.uk/info/200202/performance_and_spending/1079/payments_over_500,01-Jan-2023,FINANCE (Inc SIU),VENN GROUP LTD,Assistant Chief Executive (Excl SIU),1058.40,Agency Staff,2223P10_CR00490,49728
Sandwell Metropolitan Borough Council,http://www.sandwell.gov.uk/info/200202/performance_and_spending/1079/payments_over_500,01-Jan-2023,FINANCE (Inc SIU),VENN GROUP LTD,Assistant Chief Executive (Excl SIU),1200.00,Agency Staff,2223P10_CR00491,49728
Sandwell Metropolitan Borough Council,http://www.sandwell.gov.uk/info/200202/performance_and_spending/1079/payments_over_500,01-Jan-2023,FINANCE (Inc SIU),VENN GROUP LTD,Assistant Chief Executive (Excl SIU),1200.00,Agency Staff,2223P10_CR00492,49728
Sandwell Metropolitan Borough Council,http://www.sandwell.gov.uk/info/200202/performance_and_spending/1079/payments_over_500,01-Jan-2023,FINANCE (Inc SIU),VENN GROUP LTD,Assistant Chief Executive (Excl SIU),1211.75,Agency Staff,2223P10_CR00493,49728
Sandwell Metropolitan Borough Council,http://www.sandwell.gov.uk/info/200202/performance_and_spending/1079/payments_over_500,01-Jan-2023,FINANCE (Inc SIU),VENN GROUP LTD,Assistant Chief Executive (Excl SIU),1211.75,Agency Staff,2223P10_CR00494,49728
Sandwell Metropolitan Borough Council,http://www.sandwell.gov.uk/info/200202/performance_and_spending/1079/payments_over_500,01-Jan-2023,FINANCE (Inc SIU),VENN GROUP LTD,Assistant Chief Executive (Excl SIU),1305.36,Agency Staff,2223P10_CR00495,49728
Sandwell Metropolitan Borough Council,http://www.sandwell.gov.uk/info/200202/performance_and_spending/1079/payments_over_500,01-Jan-2023,FINANCE (Inc SIU),VENN GROUP LTD,Assistant Chief Executive (Excl SIU),1399.92,Agency Staff,2223P10_CR00496,49728
Sandwell Metropolitan Borough Council,http://www.sandwell.gov.uk/info/200202/performance_and_spending/1079/payments_over_500,01-Jan-2023,FINANCE (Inc SIU),VENN GROUP LTD,Assistant Chief Executive (Excl SIU),1437.21,Agency Staff,2223P10_CR00497,49728
Sandwell Metropolitan Borough Council,http://www.sandwell.gov.uk/info/200202/performance_and_spending/1079/payments_over_500,01-Jan-2023,FINANCE (Inc SIU),VENN GROUP LTD,Assistant Chief Executive (Excl SIU),1484.00,Agency Staff,2223P10_CR00498,49728
Sandwell Metropolitan Borough Council,http://www.sandwell.gov.uk/info/200202/performance_and_spending/1079/payments_over_500,01-Jan-2023,FINANCE (Inc SIU),VENN GROUP LTD,Assistant Chief Executive (Excl SIU),1485.00,Agency Staff,2223P10_CR00499,49728
Sandwell Metropolitan Borough Council,http://www.sandwell.gov.uk/info/200202/performance_and_spending/1079/payments_over_500,01-Jan-2023,FINANCE (Inc SIU),VENN GROUP LTD,Assistant Chief Executive (Excl SIU),1574.08,Agency Staff,2223P10_CR00500,49728
Sandwell Metropolitan Borough Council,http://www.sandwell.gov.uk/info/200202/performance_and_spending/1079/payments_over_500,01-Jan-2023,FINANCE (Inc SIU),VENN GROUP LTD,Assistant Chief Executive (Excl SIU),1696.00,Agency Staff,2223P10_CR00501,49728
Sandwell Metropolitan Borough Council,http://www.sandwell.gov.uk/info/200202/performance_and_spending/1079/payments_over_500,01-Jan-2023,FINANCE (Inc SIU),VENN GROUP LTD,Assistant Chief Executive (Excl SIU),1750.10,Agency Staff,2223P10_CR00502,49728
Sandwell Metropolitan Borough Council,http://www.sandwell.gov.uk/info/200202/performance_and_spending/1079/payments_over_500,01-Jan-2023,FINANCE (Inc SIU),VENN GROUP LTD,Assistant Chief Executive (Excl SIU),1777.53,Agency Staff,2223P10_CR00503,49728
Sandwell Metropolitan Borough Council,http://www.sandwell.gov.uk/info/200202/performance_and_spending/1079/payments_over_500,01-Jan-2023,FINANCE (Inc SIU),VENN GROUP LTD,Assistant Chief Executive (Excl SIU),1850.33,Agency Staff,2223P10_CR00504,49728
Sandwell Metropolitan Borough Council,http://www.sandwell.gov.uk/info/200202/performance_and_spending/1079/payments_over_500,01-Jan-2023,FINANCE (Inc SIU),VENN GROUP LTD,Assistant Chief Executive (Excl SIU),1855.00,Agency Staff,2223P10_CR00505,49728
Sandwell Metropolitan Borough Council,http://www.sandwell.gov.uk/info/200202/performance_and_spending/1079/payments_over_500,01-Jan-2023,FINANCE (Inc SIU),VENN GROUP LTD,Assistant Chief Executive (Excl SIU),1967.60,Agency Staff,2223P10_CR00506,49728
Sandwell Metropolitan Borough Council,http://www.sandwell.gov.uk/info/200202/performance_and_spending/1079/payments_over_500,01-Jan-2023,FINANCE (Inc SIU),VENN GROUP LTD,Assistant Chief Executive (Excl SIU),1967.60,Agency Staff,2223P10_CR00507,49728
Sandwell Metropolitan Borough Council,http://www.sandwell.gov.uk/info/200202/performance_and_spending/1079/payments_over_500,01-Jan-2023,FINANCE (Inc SIU),VENN GROUP LTD,Assistant Chief Executive (Excl SIU),2283.64,Agency Staff,2223P10_CR00508,49728
Sandwell Metropolitan Borough Council,http://www.sandwell.gov.uk/info/200202/performance_and_spending/1079/payments_over_500,01-Jan-2023,FINANCE (Inc SIU),VENN GROUP LTD,Assistant Chief Executive (Excl SIU),2421.96,Agency Staff,2223P10_CR00509,49728
Sandwell Metropolitan Borough Council,http://www.sandwell.gov.uk/info/200202/performance_and_spending/1079/payments_over_500,01-Jan-2023,FINANCE (Inc SIU),VENN GROUP LTD,Assistant Chief Executive (Excl SIU),3027.45,Agency Staff,2223P10_CR00510,49728
Sandwell Metropolitan Borough Council,http://www.sandwell.gov.uk/info/200202/performance_and_spending/1079/payments_over_500,01-Jan-2023,FINANCE (Inc SIU),VENN GROUP LTD,Assistant Chief Executive (Excl SIU),3027.45,Agency Staff,2223P10_CR00511,49728
Sandwell Metropolitan Borough Council,http://www.sandwell.gov.uk/info/200202/performance_and_spending/1079/payments_over_500,01-Jan-2023,FINANCE (Inc SIU),VENN GROUP LTD,Assistant Chief Executive (Excl SIU),3540.13,Agency Staff,2223P10_CR00512,49728
Sandwell Metropolitan Borough Council,http://www.sandwell.gov.uk/info/200202/performance_and_spending/1079/payments_over_500,01-Jan-2023,FINANCE (Inc SIU),VIVID RESOURCING,Assistant Chief Executive (Excl SIU),1687.50,Agency Staff,2223P10_CR00513,150562
Sandwell Metropolitan Borough Council,http://www.sandwell.gov.uk/info/200202/performance_and_spending/1079/payments_over_500,01-Jan-2023,FINANCE (Inc SIU),VIVID RESOURCING,Assistant Chief Executive (Excl SIU),1687.50,Agency Staff,2223P10_CR00514,150562
Sandwell Metropolitan Borough Council,http://www.sandwell.gov.uk/info/200202/performance_and_spending/1079/payments_over_500,01-Jan-2023,FINANCE (Inc SIU),VIVID RESOURCING,Assistant Chief Executive (Excl SIU),1687.50,Agency Staff,2223P10_CR00515,150562
Sandwell Metropolitan Borough Council,http://www.sandwell.gov.uk/info/200202/performance_and_spending/1079/payments_over_500,01-Jan-2023,FINANCE (Inc SIU),XEROX FINANCE LTD,Total Adult Social Care,619.25,"Printing, Stationery & General Office Expenses",2223P10_CR00516,2269
Sandwell Metropolitan Borough Council,http://www.sandwell.gov.uk/info/200202/performance_and_spending/1079/payments_over_500,01-Jan-2023,FINANCE (Inc SIU),ZURICH INSURANCE PLC,Assistant Chief Executive (Excl SIU),9796.93,Insurance,2223P10_CR00517,01749452
Sandwell Metropolitan Borough Council,http://www.sandwell.gov.uk/info/200202/performance_and_spending/1079/payments_over_500,17-Jan-2023,FINANCE (Inc SIU),ZURICH INSURANCE PLC,Assistant Chief Executive (Excl SIU),15000.00,Insurance,2223P10_CR00518,01749452
Sandwell Metropolitan Borough Council,http://www.sandwell.gov.uk/info/200202/performance_and_spending/1079/payments_over_500,01-Jan-2023,FINANCE (Inc SIU),ZURICH INSURANCE PLC,Assistant Chief Executive (Excl SIU),25388.38,Insurance,2223P10_CR00519,01749452
Sandwell Metropolitan Borough Council,http://www.sandwell.gov.uk/info/200202/performance_and_spending/1079/payments_over_500,01-Jan-2023,FINANCE (Inc SIU),REDACTED PERSONAL DATA,Total Adult Social Care,650.00,Fees & Charges,2223P10_CR00520,REDACTED PERSONAL DATA
Sandwell Metropolitan Borough Council,http://www.sandwell.gov.uk/info/200202/performance_and_spending/1079/payments_over_500,01-Jan-2023,FINANCE (Inc SIU),REDACTED PERSONAL DATA,Total Adult Social Care,650.00,Fees & Charges,2223P10_CR00521,REDACTED PERSONAL DATA
Sandwell Metropolitan Borough Council,http://www.sandwell.gov.uk/info/200202/performance_and_spending/1079/payments_over_500,03-Jan-2023,FINANCE (Inc SIU),REDACTED PERSONAL DATA,Total Adult Social Care,650.00,Fees & Charges,2223P10_CR00522,REDACTED PERSONAL DATA
Sandwell Metropolitan Borough Council,http://www.sandwell.gov.uk/info/200202/performance_and_spending/1079/payments_over_500,03-Jan-2023,FINANCE (Inc SIU),REDACTED PERSONAL DATA,Total Adult Social Care,650.00,Fees & Charges,2223P10_CR00523,REDACTED PERSONAL DATA
Sandwell Metropolitan Borough Council,http://www.sandwell.gov.uk/info/200202/performance_and_spending/1079/payments_over_500,01-Jan-2023,FINANCE (Inc SIU),REDACTED PERSONAL DATA,Total Adult Social Care,650.00,Fees & Charges,2223P10_CR00524,REDACTED PERSONAL DATA
Sandwell Metropolitan Borough Council,http://www.sandwell.gov.uk/info/200202/performance_and_spending/1079/payments_over_500,01-Jan-2023,FINANCE (Inc SIU),ABIGAIL PUGH,Assistant Chief Executive (Excl SIU),974.00,Bereavement Expenses,2223P10_CR00525,149492
Sandwell Metropolitan Borough Council,http://www.sandwell.gov.uk/info/200202/performance_and_spending/1079/payments_over_500,01-Jan-2023,FINANCE (Inc SIU),DR MANEL MANGALIKA,Assistant Chief Executive (Excl SIU),1258.40,Bereavement Expenses,2223P10_CR00526,149491
Sandwell Metropolitan Borough Council,http://www.sandwell.gov.uk/info/200202/performance_and_spending/1079/payments_over_500,01-Jan-2023,FINANCE (Inc SIU),DR SMITA DESHPANDE,Assistant Chief Executive (Excl SIU),1606.00,Bereavement Expenses,2223P10_CR00527,149599
Sandwell Metropolitan Borough Council,http://www.sandwell.gov.uk/info/200202/performance_and_spending/1079/payments_over_500,01-Jan-2023,FINANCE (Inc SIU),DR SWAPNA GHOSH,Assistant Chief Executive (Excl SIU),2323.20,Bereavement Expenses,2223P10_CR00528,149696
Sandwell Metropolitan Borough Council,http://www.sandwell.gov.uk/info/200202/performance_and_spending/1079/payments_over_500,14-Jan-2023,FINANCE (Inc SIU),DR SWAPNA GHOSH,Assistant Chief Executive (Excl SIU),3678.40,Bereavement Expenses,2223P10_CR00529,149696
Sandwell Metropolitan Borough Council,http://www.sandwell.gov.uk/info/200202/performance_and_spending/1079/payments_over_500,18-Jan-2023,FINANCE (Inc SIU),MONICA AHLUWALIA,Assistant Chief Executive (Excl SIU),1244.90,Bereavement Expenses,2223P10_CR00530,132440
Sandwell Metropolitan Borough Council,http://www.sandwell.gov.uk/info/200202/performance_and_spending/1079/payments_over_500,18-Jan-2023,FINANCE (Inc SIU),MONICA AHLUWALIA,Assistant Chief Executive (Excl SIU),8468.30,Bereavement Expenses,2223P10_CR00531,132440
Sandwell Metropolitan Borough Council,http://www.sandwell.gov.uk/info/200202/performance_and_spending/1079/payments_over_500,11-Jan-2023,FINANCE (Inc SIU),ABBEY INFANT SCHOOL            ,Assistant Chief Executive (Excl SIU),1367.09,Grant Payments,2223P10_CR00532,60959
Sandwell Metropolitan Borough Council,http://www.sandwell.gov.uk/info/200202/performance_and_spending/1079/payments_over_500,11-Jan-2023,FINANCE (Inc SIU),ABBEY JUNIOR SCHOOL            ,Assistant Chief Executive (Excl SIU),1868.53,Grant Payments,2223P10_CR00533,60961
Sandwell Metropolitan Borough Council,http://www.sandwell.gov.uk/info/200202/performance_and_spending/1079/payments_over_500,11-Jan-2023,FINANCE (Inc SIU),ALBERT PRITCHARD INFANT SCHOOL       ,Assistant Chief Executive (Excl SIU),1235.13,Grant Payments,2223P10_CR00534,60962
Sandwell Metropolitan Borough Council,http://www.sandwell.gov.uk/info/200202/performance_and_spending/1079/payments_over_500,11-Jan-2023,FINANCE (Inc SIU),ALL SAINTS CE PRIMARY SCHOOL    ,Assistant Chief Executive (Excl SIU),2164.12,Grant Payments,2223P10_CR00535,60964
Sandwell Metropolitan Borough Council,http://www.sandwell.gov.uk/info/200202/performance_and_spending/1079/payments_over_500,11-Jan-2023,FINANCE (Inc SIU),BEARWOOD PRIMARY SCHOOL  ,Assistant Chief Executive (Excl SIU),2148.30,Grant Payments,2223P10_CR00536,60967
Sandwell Metropolitan Borough Council,http://www.sandwell.gov.uk/info/200202/performance_and_spending/1079/payments_over_500,11-Jan-2023,FINANCE (Inc SIU),BLACKHEATH PRIMARY SCHOOL     ,Assistant Chief Executive (Excl SIU),2359.42,Grant Payments,2223P10_CR00537,60968
Sandwell Metropolitan Borough Council,http://www.sandwell.gov.uk/info/200202/performance_and_spending/1079/payments_over_500,11-Jan-2023,FINANCE (Inc SIU),BLEAKHOUSE PRIMARY SCHOOL.,Assistant Chief Executive (Excl SIU),2100.78,Grant Payments,2223P10_CR00538,60969
Sandwell Metropolitan Borough Council,http://www.sandwell.gov.uk/info/200202/performance_and_spending/1079/payments_over_500,11-Jan-2023,FINANCE (Inc SIU),BRANDHALL PRIMARY SCHOOL   ,Assistant Chief Executive (Excl SIU),2137.73,Grant Payments,2223P10_CR00539,60971
Sandwell Metropolitan Borough Council,http://www.sandwell.gov.uk/info/200202/performance_and_spending/1079/payments_over_500,11-Jan-2023,FINANCE (Inc SIU),BRICKHOUSE PRIMARY SCHOOL          ,Assistant Chief Executive (Excl SIU),1092.62,Grant Payments,2223P10_CR00540,60973
Sandwell Metropolitan Borough Council,http://www.sandwell.gov.uk/info/200202/performance_and_spending/1079/payments_over_500,11-Jan-2023,FINANCE (Inc SIU),BRISTNALL HALL ACADEMY,Assistant Chief Executive (Excl SIU),5505.31,Grant Payments,2223P10_CR00541,107471
Sandwell Metropolitan Borough Council,http://www.sandwell.gov.uk/info/200202/performance_and_spending/1079/payments_over_500,11-Jan-2023,FINANCE (Inc SIU),BURNT TREE PRIMARY SCHOOL     ,Assistant Chief Executive (Excl SIU),1952.99,Grant Payments,2223P10_CR00542,60974
Sandwell Metropolitan Borough Council,http://www.sandwell.gov.uk/info/200202/performance_and_spending/1079/payments_over_500,11-Jan-2023,FINANCE (Inc SIU),CAPE PRIMARY SCHOOL,Assistant Chief Executive (Excl SIU),2845.04,Grant Payments,2223P10_CR00543,01672537
Sandwell Metropolitan Borough Council,http://www.sandwell.gov.uk/info/200202/performance_and_spending/1079/payments_over_500,11-Jan-2023,FINANCE (Inc SIU),CAUSEWAY GREEN PRIMARY SCHOOL       ,Assistant Chief Executive (Excl SIU),2174.69,Grant Payments,2223P10_CR00544,60976
Sandwell Metropolitan Borough Council,http://www.sandwell.gov.uk/info/200202/performance_and_spending/1079/payments_over_500,11-Jan-2023,FINANCE (Inc SIU),CHRIST CHURCH CE PRIMARY       ,Assistant Chief Executive (Excl SIU),2063.83,Grant Payments,2223P10_CR00545,60978
Sandwell Metropolitan Borough Council,http://www.sandwell.gov.uk/info/200202/performance_and_spending/1079/payments_over_500,11-Jan-2023,FINANCE (Inc SIU),CORNGREAVES ACADEMY,Assistant Chief Executive (Excl SIU),1103.17,Grant Payments,2223P10_CR00546,112862
Sandwell Metropolitan Borough Council,http://www.sandwell.gov.uk/info/200202/performance_and_spending/1079/payments_over_500,11-Jan-2023,FINANCE (Inc SIU),CROCKETTS LANE COMMUNITY PRIMARY SCHOOL ,Assistant Chief Executive (Excl SIU),2264.41,Grant Payments,2223P10_CR00547,60980
Sandwell Metropolitan Borough Council,http://www.sandwell.gov.uk/info/200202/performance_and_spending/1079/payments_over_500,11-Jan-2023,FINANCE (Inc SIU),DEVONSHIRE INFANTS ACADEMY,Assistant Chief Executive (Excl SIU),1425.15,Grant Payments,2223P10_CR00548,118366
Sandwell Metropolitan Borough Council,http://www.sandwell.gov.uk/info/200202/performance_and_spending/1079/payments_over_500,11-Jan-2023,FINANCE (Inc SIU),DEVONSHIRE JUNIOR ACADEMY,Assistant Chief Executive (Excl SIU),1910.76,Grant Payments,2223P10_CR00549,118367
Sandwell Metropolitan Borough Council,http://www.sandwell.gov.uk/info/200202/performance_and_spending/1079/payments_over_500,11-Jan-2023,FINANCE (Inc SIU),EATON VALLEY PRIMARY SCHOOL,Assistant Chief Executive (Excl SIU),2174.68,Grant Payments,2223P10_CR00550,60981
Sandwell Metropolitan Borough Council,http://www.sandwell.gov.uk/info/200202/performance_and_spending/1079/payments_over_500,11-Jan-2023,FINANCE (Inc SIU),FERNDALE PRIMARY SCHOOL    ,Assistant Chief Executive (Excl SIU),2961.16,Grant Payments,2223P10_CR00551,60987
Sandwell Metropolitan Borough Council,http://www.sandwell.gov.uk/info/200202/performance_and_spending/1079/payments_over_500,11-Jan-2023,FINANCE (Inc SIU),GALTON VALLEY PRIMARY SCHOOL    ,Assistant Chief Executive (Excl SIU),2222.19,Grant Payments,2223P10_CR00552,73124
Sandwell Metropolitan Borough Council,http://www.sandwell.gov.uk/info/200202/performance_and_spending/1079/payments_over_500,11-Jan-2023,FINANCE (Inc SIU),GEORGE BETTS PRIMARY ACADEMY,Assistant Chief Executive (Excl SIU),2153.56,Grant Payments,2223P10_CR00553,113420
Sandwell Metropolitan Borough Council,http://www.sandwell.gov.uk/info/200202/performance_and_spending/1079/payments_over_500,11-Jan-2023,FINANCE (Inc SIU),GEORGE SALTER COLLEGIATE ACADEMY ORMISTON ACADEMIES TRUST,Assistant Chief Executive (Excl SIU),6476.53,Grant Payments,2223P10_CR00554,01217798
Sandwell Metropolitan Borough Council,http://www.sandwell.gov.uk/info/200202/performance_and_spending/1079/payments_over_500,11-Jan-2023,FINANCE (Inc SIU),GLEBEFIELDS PRIMARY SCHOOL    ,Assistant Chief Executive (Excl SIU),1916.05,Grant Payments,2223P10_CR00555,60989
Sandwell Metropolitan Borough Council,http://www.sandwell.gov.uk/info/200202/performance_and_spending/1079/payments_over_500,11-Jan-2023,FINANCE (Inc SIU),GOSPEL OAK SCHOOL,Assistant Chief Executive (Excl SIU),6212.61,Grant Payments,2223P10_CR00556,60952
Sandwell Metropolitan Borough Council,http://www.sandwell.gov.uk/info/200202/performance_and_spending/1079/payments_over_500,11-Jan-2023,FINANCE (Inc SIU),GRACE MARY PRIMARY SCHOOL                 ,Assistant Chief Executive (Excl SIU),1203.46,Grant Payments,2223P10_CR00557,60991
Sandwell Metropolitan Borough Council,http://www.sandwell.gov.uk/info/200202/performance_and_spending/1079/payments_over_500,11-Jan-2023,FINANCE (Inc SIU),GREAT BRIDGE PRIMARY SCHOOL       ,Assistant Chief Executive (Excl SIU),2216.91,Grant Payments,2223P10_CR00558,42484
Sandwell Metropolitan Borough Council,http://www.sandwell.gov.uk/info/200202/performance_and_spending/1079/payments_over_500,11-Jan-2023,FINANCE (Inc SIU),GROVE VALE PRIMARY SCHOOL,Assistant Chief Executive (Excl SIU),2222.18,Grant Payments,2223P10_CR00559,60993
Sandwell Metropolitan Borough Council,http://www.sandwell.gov.uk/info/200202/performance_and_spending/1079/payments_over_500,11-Jan-2023,FINANCE (Inc SIU),HALL GREEN PRIMARY SCHOOL           ,Assistant Chief Executive (Excl SIU),2179.96,Grant Payments,2223P10_CR00560,60996
Sandwell Metropolitan Borough Council,http://www.sandwell.gov.uk/info/200202/performance_and_spending/1079/payments_over_500,11-Jan-2023,FINANCE (Inc SIU),HAMSTEAD INFANT SCHOOL   ,Assistant Chief Executive (Excl SIU),913.15,Grant Payments,2223P10_CR00561,60997
Sandwell Metropolitan Borough Council,http://www.sandwell.gov.uk/info/200202/performance_and_spending/1079/payments_over_500,11-Jan-2023,FINANCE (Inc SIU),HAMSTEAD JUNIOR SCHOOL               ,Assistant Chief Executive (Excl SIU),1245.69,Grant Payments,2223P10_CR00562,60998
Sandwell Metropolitan Borough Council,http://www.sandwell.gov.uk/info/200202/performance_and_spending/1079/payments_over_500,11-Jan-2023,FINANCE (Inc SIU),HANBURY PRIMARY SCHOOL                                  ,Assistant Chief Executive (Excl SIU),2232.74,Grant Payments,2223P10_CR00563,60995
Sandwell Metropolitan Borough Council,http://www.sandwell.gov.uk/info/200202/performance_and_spending/1079/payments_over_500,11-Jan-2023,FINANCE (Inc SIU),HARGATE PRIMARY SCHOOL   ,Assistant Chief Executive (Excl SIU),2227.46,Grant Payments,2223P10_CR00564,60999
Sandwell Metropolitan Borough Council,http://www.sandwell.gov.uk/info/200202/performance_and_spending/1079/payments_over_500,11-Jan-2023,FINANCE (Inc SIU),HARVILLS HAWTHORN PRIMARY SCHOOL     ,Assistant Chief Executive (Excl SIU),2238.02,Grant Payments,2223P10_CR00565,01782074
Sandwell Metropolitan Borough Council,http://www.sandwell.gov.uk/info/200202/performance_and_spending/1079/payments_over_500,11-Jan-2023,FINANCE (Inc SIU),HATELEY HEATH PRIMARY ACADEMY     ,Assistant Chief Executive (Excl SIU),2132.45,Grant Payments,2223P10_CR00566,61000
Sandwell Metropolitan Borough Council,http://www.sandwell.gov.uk/info/200202/performance_and_spending/1079/payments_over_500,11-Jan-2023,FINANCE (Inc SIU),HIGHFIELDS PRIMARY SCHOOL     ,Assistant Chief Executive (Excl SIU),2201.07,Grant Payments,2223P10_CR00567,01782118
Sandwell Metropolitan Borough Council,http://www.sandwell.gov.uk/info/200202/performance_and_spending/1079/payments_over_500,11-Jan-2023,FINANCE (Inc SIU),HOLLY LODGE FOUNDATION HIGH SCHOOL,Assistant Chief Executive (Excl SIU),7484.69,Grant Payments,2223P10_CR00568,60942
Sandwell Metropolitan Borough Council,http://www.sandwell.gov.uk/info/200202/performance_and_spending/1079/payments_over_500,11-Jan-2023,FINANCE (Inc SIU),HOLY NAME CATHOLIC PRIMARY,Assistant Chief Executive (Excl SIU),1129.57,Grant Payments,2223P10_CR00569,92683
Sandwell Metropolitan Borough Council,http://www.sandwell.gov.uk/info/200202/performance_and_spending/1079/payments_over_500,11-Jan-2023,FINANCE (Inc SIU),HOLY TRINITY CE PRIMARY   ,Assistant Chief Executive (Excl SIU),2211.63,Grant Payments,2223P10_CR00570,61004
Sandwell Metropolitan Borough Council,http://www.sandwell.gov.uk/info/200202/performance_and_spending/1079/payments_over_500,11-Jan-2023,FINANCE (Inc SIU),HOLYHEAD PRIMARY ACADEMY   ,Assistant Chief Executive (Excl SIU),1002.89,Grant Payments,2223P10_CR00571,61005
Sandwell Metropolitan Borough Council,http://www.sandwell.gov.uk/info/200202/performance_and_spending/1079/payments_over_500,11-Jan-2023,FINANCE (Inc SIU),JOSEPH TURNER PRIMARY SCHOOL   ,Assistant Chief Executive (Excl SIU),2201.07,Grant Payments,2223P10_CR00572,61006
Sandwell Metropolitan Borough Council,http://www.sandwell.gov.uk/info/200202/performance_and_spending/1079/payments_over_500,11-Jan-2023,FINANCE (Inc SIU),JUBILEE PARK ACADEMY TRUST,Assistant Chief Executive (Excl SIU),955.38,Grant Payments,2223P10_CR00573,113377
Sandwell Metropolitan Borough Council,http://www.sandwell.gov.uk/info/200202/performance_and_spending/1079/payments_over_500,11-Jan-2023,FINANCE (Inc SIU),KING GEORGE V PRIMARY SCHOOL       ,Assistant Chief Executive (Excl SIU),1103.17,Grant Payments,2223P10_CR00574,61009
Sandwell Metropolitan Borough Council,http://www.sandwell.gov.uk/info/200202/performance_and_spending/1079/payments_over_500,11-Jan-2023,FINANCE (Inc SIU),LANGLEY PRIMARY SCHOOL   ,Assistant Chief Executive (Excl SIU),2127.17,Grant Payments,2223P10_CR00575,61011
Sandwell Metropolitan Borough Council,http://www.sandwell.gov.uk/info/200202/performance_and_spending/1079/payments_over_500,11-Jan-2023,FINANCE (Inc SIU),LIGHTWOODS PRIMARY ACADEMY .,Assistant Chief Executive (Excl SIU),2201.07,Grant Payments,2223P10_CR00576,61012
Sandwell Metropolitan Borough Council,http://www.sandwell.gov.uk/info/200202/performance_and_spending/1079/payments_over_500,11-Jan-2023,FINANCE (Inc SIU),LODGE PRIMARY SCHOOL    ,Assistant Chief Executive (Excl SIU),2111.34,Grant Payments,2223P10_CR00577,61015
Sandwell Metropolitan Borough Council,http://www.sandwell.gov.uk/info/200202/performance_and_spending/1079/payments_over_500,11-Jan-2023,FINANCE (Inc SIU),LYNG PRIMARY SCHOOL     ,Assistant Chief Executive (Excl SIU),2290.80,Grant Payments,2223P10_CR00578,61026
Sandwell Metropolitan Borough Council,http://www.sandwell.gov.uk/info/200202/performance_and_spending/1079/payments_over_500,11-Jan-2023,FINANCE (Inc SIU),MESTY CROFT ACADEMY,Assistant Chief Executive (Excl SIU),2106.06,Grant Payments,2223P10_CR00579,106208
Sandwell Metropolitan Borough Council,http://www.sandwell.gov.uk/info/200202/performance_and_spending/1079/payments_over_500,11-Jan-2023,FINANCE (Inc SIU),MOAT FARM INFANTS SCHOOL     ,Assistant Chief Executive (Excl SIU),1900.20,Grant Payments,2223P10_CR00580,61031
Sandwell Metropolitan Borough Council,http://www.sandwell.gov.uk/info/200202/performance_and_spending/1079/payments_over_500,11-Jan-2023,FINANCE (Inc SIU),MOAT FARM JUNIOR SCHOOL     ,Assistant Chief Executive (Excl SIU),2528.33,Grant Payments,2223P10_CR00581,61032
Sandwell Metropolitan Borough Council,http://www.sandwell.gov.uk/info/200202/performance_and_spending/1079/payments_over_500,11-Jan-2023,FINANCE (Inc SIU),MOORLANDS PRIMARY SCHOOL  ,Assistant Chief Executive (Excl SIU),1097.90,Grant Payments,2223P10_CR00582,04036544
Sandwell Metropolitan Borough Council,http://www.sandwell.gov.uk/info/200202/performance_and_spending/1079/payments_over_500,11-Jan-2023,FINANCE (Inc SIU),NEWTOWN PRIMARY ACADEMY   ,Assistant Chief Executive (Excl SIU),1060.95,Grant Payments,2223P10_CR00583,61034
Sandwell Metropolitan Borough Council,http://www.sandwell.gov.uk/info/200202/performance_and_spending/1079/payments_over_500,11-Jan-2023,FINANCE (Inc SIU),OAKHAM PRIMARY SCHOOL   ,Assistant Chief Executive (Excl SIU),2227.46,Grant Payments,2223P10_CR00584,61035
Sandwell Metropolitan Borough Council,http://www.sandwell.gov.uk/info/200202/performance_and_spending/1079/payments_over_500,11-Jan-2023,FINANCE (Inc SIU),OCKER HILL ACADEMY,Assistant Chief Executive (Excl SIU),1314.31,Grant Payments,2223P10_CR00585,113691
Sandwell Metropolitan Borough Council,http://www.sandwell.gov.uk/info/200202/performance_and_spending/1079/payments_over_500,11-Jan-2023,FINANCE (Inc SIU),OCKER HILL INFANT SCHOOL   ,Assistant Chief Executive (Excl SIU),960.66,Grant Payments,2223P10_CR00586,61036
Sandwell Metropolitan Borough Council,http://www.sandwell.gov.uk/info/200202/performance_and_spending/1079/payments_over_500,11-Jan-2023,FINANCE (Inc SIU),OLD HILL PRIMARY SCHOOL     ,Assistant Chief Executive (Excl SIU),1066.23,Grant Payments,2223P10_CR00587,61038
Sandwell Metropolitan Borough Council,http://www.sandwell.gov.uk/info/200202/performance_and_spending/1079/payments_over_500,11-Jan-2023,FINANCE (Inc SIU),OLD PARK PRIMARY SCHOOL     ,Assistant Chief Executive (Excl SIU),2195.79,Grant Payments,2223P10_CR00588,61039
Sandwell Metropolitan Borough Council,http://www.sandwell.gov.uk/info/200202/performance_and_spending/1079/payments_over_500,11-Jan-2023,FINANCE (Inc SIU),OLDBURY ACADEMY,Assistant Chief Executive (Excl SIU),7495.25,Grant Payments,2223P10_CR00589,69241
Sandwell Metropolitan Borough Council,http://www.sandwell.gov.uk/info/200202/performance_and_spending/1079/payments_over_500,11-Jan-2023,FINANCE (Inc SIU),ORMISTON FORGE ACADEMY,Assistant Chief Executive (Excl SIU),8070.59,Grant Payments,2223P10_CR00590,60941
Sandwell Metropolitan Borough Council,http://www.sandwell.gov.uk/info/200202/performance_and_spending/1079/payments_over_500,11-Jan-2023,FINANCE (Inc SIU),ORMISTON SANDWELL COMMUNITY ACADEMY   ,Assistant Chief Executive (Excl SIU),6043.70,Grant Payments,2223P10_CR00591,60950
Sandwell Metropolitan Borough Council,http://www.sandwell.gov.uk/info/200202/performance_and_spending/1079/payments_over_500,11-Jan-2023,FINANCE (Inc SIU),OUR LADY AND ST HUBERTS CATHOLIC PRIMARY SCHOOL        ,Assistant Chief Executive (Excl SIU),2195.79,Grant Payments,2223P10_CR00592,61053
Sandwell Metropolitan Borough Council,http://www.sandwell.gov.uk/info/200202/performance_and_spending/1079/payments_over_500,11-Jan-2023,FINANCE (Inc SIU),PARK HILL PRIMARY SCHOOL     ,Assistant Chief Executive (Excl SIU),1119.01,Grant Payments,2223P10_CR00593,61040
Sandwell Metropolitan Borough Council,http://www.sandwell.gov.uk/info/200202/performance_and_spending/1079/payments_over_500,11-Jan-2023,FINANCE (Inc SIU),PENNYHILL PRIMARY,Assistant Chief Executive (Excl SIU),3151.17,Grant Payments,2223P10_CR00594,73125
Sandwell Metropolitan Borough Council,http://www.sandwell.gov.uk/info/200202/performance_and_spending/1079/payments_over_500,11-Jan-2023,FINANCE (Inc SIU),PERRYFIELDS HIGH SCHOOL          ,Assistant Chief Executive (Excl SIU),5246.67,Grant Payments,2223P10_CR00595,60946
Sandwell Metropolitan Borough Council,http://www.sandwell.gov.uk/info/200202/performance_and_spending/1079/payments_over_500,11-Jan-2023,FINANCE (Inc SIU),PERRYFIELDS PRIMARY SCHOOL        ,Assistant Chief Executive (Excl SIU),1810.47,Grant Payments,2223P10_CR00596,61042
Sandwell Metropolitan Borough Council,http://www.sandwell.gov.uk/info/200202/performance_and_spending/1079/payments_over_500,11-Jan-2023,FINANCE (Inc SIU),PHOENIX COLLEGIATE COLLEGE,Assistant Chief Executive (Excl SIU),9068.20,Grant Payments,2223P10_CR00597,95444
Sandwell Metropolitan Borough Council,http://www.sandwell.gov.uk/info/200202/performance_and_spending/1079/payments_over_500,11-Jan-2023,FINANCE (Inc SIU),Q3 ACADEMY LANGLEY,Assistant Chief Executive (Excl SIU),6972.69,Grant Payments,2223P10_CR00598,128009
Sandwell Metropolitan Borough Council,http://www.sandwell.gov.uk/info/200202/performance_and_spending/1079/payments_over_500,11-Jan-2023,FINANCE (Inc SIU),Q3 ACADEMY TIPTON,Assistant Chief Executive (Excl SIU),7579.70,Grant Payments,2223P10_CR00599,112047
Sandwell Metropolitan Borough Council,http://www.sandwell.gov.uk/info/200202/performance_and_spending/1079/payments_over_500,11-Jan-2023,FINANCE (Inc SIU),QUAERERE ACADEMY TRUST           ,Assistant Chief Executive (Excl SIU),5637.27,Grant Payments,2223P10_CR00600,60939
Sandwell Metropolitan Borough Council,http://www.sandwell.gov.uk/info/200202/performance_and_spending/1079/payments_over_500,11-Jan-2023,FINANCE (Inc SIU),REDDAL HILL PRIMARY SCHOOL,Assistant Chief Executive (Excl SIU),2100.78,Grant Payments,2223P10_CR00601,61043
Sandwell Metropolitan Borough Council,http://www.sandwell.gov.uk/info/200202/performance_and_spending/1079/payments_over_500,11-Jan-2023,FINANCE (Inc SIU),ROOD END PRIMARY SCHOOL             ,Assistant Chief Executive (Excl SIU),2470.27,Grant Payments,2223P10_CR00602,61044
Sandwell Metropolitan Borough Council,http://www.sandwell.gov.uk/info/200202/performance_and_spending/1079/payments_over_500,11-Jan-2023,FINANCE (Inc SIU),ROUNDS GREEN PRIMARY ACADEMY     ,Assistant Chief Executive (Excl SIU),1857.98,Grant Payments,2223P10_CR00603,61045
Sandwell Metropolitan Borough Council,http://www.sandwell.gov.uk/info/200202/performance_and_spending/1079/payments_over_500,11-Jan-2023,FINANCE (Inc SIU),ROWLEY HALL PRIMARY SCHOOL    ,Assistant Chief Executive (Excl SIU),3177.56,Grant Payments,2223P10_CR00604,61046
Sandwell Metropolitan Borough Council,http://www.sandwell.gov.uk/info/200202/performance_and_spending/1079/payments_over_500,11-Jan-2023,FINANCE (Inc SIU),RYDERS GREEN PRIMARY SCHOOL    ,Assistant Chief Executive (Excl SIU),2222.18,Grant Payments,2223P10_CR00605,61047
Sandwell Metropolitan Borough Council,http://www.sandwell.gov.uk/info/200202/performance_and_spending/1079/payments_over_500,11-Jan-2023,FINANCE (Inc SIU),SACRED HEART PRIMARY SCHOOL      ,Assistant Chief Executive (Excl SIU),2153.56,Grant Payments,2223P10_CR00606,61048
Sandwell Metropolitan Borough Council,http://www.sandwell.gov.uk/info/200202/performance_and_spending/1079/payments_over_500,11-Jan-2023,FINANCE (Inc SIU),SANDWELL ACADEMY TRUST LTD.,Assistant Chief Executive (Excl SIU),5304.74,Grant Payments,2223P10_CR00607,126137
Sandwell Metropolitan Borough Council,http://www.sandwell.gov.uk/info/200202/performance_and_spending/1079/payments_over_500,11-Jan-2023,FINANCE (Inc SIU),SHIRELAND BIOMEDICAL UTC,Assistant Chief Executive (Excl SIU),633.40,Grant Payments,2223P10_CR00608,128174
Sandwell Metropolitan Borough Council,http://www.sandwell.gov.uk/info/200202/performance_and_spending/1079/payments_over_500,11-Jan-2023,FINANCE (Inc SIU),SHIRELAND COLLEGIATE ACADEMY      ,Assistant Chief Executive (Excl SIU),6914.63,Grant Payments,2223P10_CR00609,60947
Sandwell Metropolitan Borough Council,http://www.sandwell.gov.uk/info/200202/performance_and_spending/1079/payments_over_500,11-Jan-2023,FINANCE (Inc SIU),SHIRELAND COLLEGIATE ACADEMY TRUST T/A TAMESIDE,Assistant Chief Executive (Excl SIU),2301.36,Grant Payments,2223P10_CR00610,61064
Sandwell Metropolitan Borough Council,http://www.sandwell.gov.uk/info/200202/performance_and_spending/1079/payments_over_500,11-Jan-2023,FINANCE (Inc SIU),SHIRELAND HALL PRIMARY ACADEMY,Assistant Chief Executive (Excl SIU),3335.91,Grant Payments,2223P10_CR00611,15209
Sandwell Metropolitan Borough Council,http://www.sandwell.gov.uk/info/200202/performance_and_spending/1079/payments_over_500,11-Jan-2023,FINANCE (Inc SIU),SHIRELAND TECHNOLOGY PRIMARY SCHOOL,Assistant Chief Executive (Excl SIU),1404.04,Grant Payments,2223P10_CR00612,148598
Sandwell Metropolitan Borough Council,http://www.sandwell.gov.uk/info/200202/performance_and_spending/1079/payments_over_500,11-Jan-2023,FINANCE (Inc SIU),SILVERTREES ACADEMY TRUST,Assistant Chief Executive (Excl SIU),1361.81,Grant Payments,2223P10_CR00613,113719
Sandwell Metropolitan Borough Council,http://www.sandwell.gov.uk/info/200202/performance_and_spending/1079/payments_over_500,11-Jan-2023,FINANCE (Inc SIU),SPRINGFIELD PRIMARY SCHOOL ,Assistant Chief Executive (Excl SIU),2185.23,Grant Payments,2223P10_CR00614,61050
Sandwell Metropolitan Borough Council,http://www.sandwell.gov.uk/info/200202/performance_and_spending/1079/payments_over_500,11-Jan-2023,FINANCE (Inc SIU),ST CATHERINE OF SIENA MULTI ACADEMY COMPANY ,Assistant Chief Executive (Excl SIU),1272.08,Grant Payments,2223P10_CR00615,61052
Sandwell Metropolitan Borough Council,http://www.sandwell.gov.uk/info/200202/performance_and_spending/1079/payments_over_500,11-Jan-2023,FINANCE (Inc SIU),ST FRANCIS XAVIER CATHOLIC PRIMARY,Assistant Chief Executive (Excl SIU),1066.23,Grant Payments,2223P10_CR00616,61051
Sandwell Metropolitan Borough Council,http://www.sandwell.gov.uk/info/200202/performance_and_spending/1079/payments_over_500,11-Jan-2023,FINANCE (Inc SIU),ST JAMES C OF E PRIMARY SCHOOL,Assistant Chief Executive (Excl SIU),2190.51,Grant Payments,2223P10_CR00617,61054
Sandwell Metropolitan Borough Council,http://www.sandwell.gov.uk/info/200202/performance_and_spending/1079/payments_over_500,11-Jan-2023,FINANCE (Inc SIU),ST JOHN BOSCO RC PRIMARY SCHOOL           ,Assistant Chief Executive (Excl SIU),1108.45,Grant Payments,2223P10_CR00618,61055
Sandwell Metropolitan Borough Council,http://www.sandwell.gov.uk/info/200202/performance_and_spending/1079/payments_over_500,11-Jan-2023,FINANCE (Inc SIU),ST JOHNS C OF E PRIMARY ACADEMY,Assistant Chief Executive (Excl SIU),1050.39,Grant Payments,2223P10_CR00619,61056
Sandwell Metropolitan Borough Council,http://www.sandwell.gov.uk/info/200202/performance_and_spending/1079/payments_over_500,11-Jan-2023,FINANCE (Inc SIU),ST MARGARETS C OF E PRIMARY SCHOOL,Assistant Chief Executive (Excl SIU),1060.95,Grant Payments,2223P10_CR00620,61057
Sandwell Metropolitan Borough Council,http://www.sandwell.gov.uk/info/200202/performance_and_spending/1079/payments_over_500,11-Jan-2023,FINANCE (Inc SIU),ST MARTINS CE PRIMARY SCHOOL,Assistant Chief Executive (Excl SIU),1103.17,Grant Payments,2223P10_CR00621,61058
Sandwell Metropolitan Borough Council,http://www.sandwell.gov.uk/info/200202/performance_and_spending/1079/payments_over_500,11-Jan-2023,FINANCE (Inc SIU),ST MARY MAGDALENE CE PRIMARY SCHOOL        ,Assistant Chief Executive (Excl SIU),1113.73,Grant Payments,2223P10_CR00622,61059
Sandwell Metropolitan Borough Council,http://www.sandwell.gov.uk/info/200202/performance_and_spending/1079/payments_over_500,11-Jan-2023,FINANCE (Inc SIU),ST MARYS RC PRIMARY SCHOOL                   ,Assistant Chief Executive (Excl SIU),1108.45,Grant Payments,2223P10_CR00623,61060
Sandwell Metropolitan Borough Council,http://www.sandwell.gov.uk/info/200202/performance_and_spending/1079/payments_over_500,11-Jan-2023,FINANCE (Inc SIU),ST MATTHEWS CE PRIMARY SCHOOL         ,Assistant Chief Executive (Excl SIU),2032.16,Grant Payments,2223P10_CR00624,61061
Sandwell Metropolitan Borough Council,http://www.sandwell.gov.uk/info/200202/performance_and_spending/1079/payments_over_500,11-Jan-2023,FINANCE (Inc SIU),ST MICHAELS CE HIGH SCHOOL,Assistant Chief Executive (Excl SIU),6481.81,Grant Payments,2223P10_CR00625,60948
Sandwell Metropolitan Borough Council,http://www.sandwell.gov.uk/info/200202/performance_and_spending/1079/payments_over_500,11-Jan-2023,FINANCE (Inc SIU),ST PAULS C OF E ACADEMY,Assistant Chief Executive (Excl SIU),1071.50,Grant Payments,2223P10_CR00626,118126
Sandwell Metropolitan Borough Council,http://www.sandwell.gov.uk/info/200202/performance_and_spending/1079/payments_over_500,11-Jan-2023,FINANCE (Inc SIU),ST PHILIPS CATHOLIC PRIMARY   ,Assistant Chief Executive (Excl SIU),1082.06,Grant Payments,2223P10_CR00627,61063
Sandwell Metropolitan Borough Council,http://www.sandwell.gov.uk/info/200202/performance_and_spending/1079/payments_over_500,11-Jan-2023,FINANCE (Inc SIU),STUART BATHURST CATHOLIC HIGH SCHOOL    ,Assistant Chief Executive (Excl SIU),3911.25,Grant Payments,2223P10_CR00628,60949
Sandwell Metropolitan Borough Council,http://www.sandwell.gov.uk/info/200202/performance_and_spending/1079/payments_over_500,11-Jan-2023,FINANCE (Inc SIU),TEMPLE MEADOW PRIMARY SCHOOL      ,Assistant Chief Executive (Excl SIU),1931.87,Grant Payments,2223P10_CR00629,61065
Sandwell Metropolitan Borough Council,http://www.sandwell.gov.uk/info/200202/performance_and_spending/1079/payments_over_500,11-Jan-2023,FINANCE (Inc SIU),THE PRIORY PRIMARY                       02,Assistant Chief Executive (Excl SIU),2174.68,Grant Payments,2223P10_CR00630,61066
Sandwell Metropolitan Borough Council,http://www.sandwell.gov.uk/info/200202/performance_and_spending/1079/payments_over_500,11-Jan-2023,FINANCE (Inc SIU),THE RIVERS MULTI ACADEMY TRUST,Assistant Chief Executive (Excl SIU),3979.87,Grant Payments,2223P10_CR00631,61014
Sandwell Metropolitan Borough Council,http://www.sandwell.gov.uk/info/200202/performance_and_spending/1079/payments_over_500,11-Jan-2023,FINANCE (Inc SIU),TIMBERTREE (ACADEMY) PRIMARY SCHOOL,Assistant Chief Executive (Excl SIU),1082.06,Grant Payments,2223P10_CR00632,112804
Sandwell Metropolitan Borough Council,http://www.sandwell.gov.uk/info/200202/performance_and_spending/1079/payments_over_500,11-Jan-2023,FINANCE (Inc SIU),TIPTON GREEN JUNIOR SCHOOL,Assistant Chief Executive (Excl SIU),1873.81,Grant Payments,2223P10_CR00633,61068
Sandwell Metropolitan Borough Council,http://www.sandwell.gov.uk/info/200202/performance_and_spending/1079/payments_over_500,11-Jan-2023,FINANCE (Inc SIU),TIVIDALE COMMUNITY PRIMARY   ,Assistant Chief Executive (Excl SIU),2195.79,Grant Payments,2223P10_CR00634,61069
Sandwell Metropolitan Borough Council,http://www.sandwell.gov.uk/info/200202/performance_and_spending/1079/payments_over_500,11-Jan-2023,FINANCE (Inc SIU),TIVIDALE HALL PRIMARY SCHOOL      ,Assistant Chief Executive (Excl SIU),2121.89,Grant Payments,2223P10_CR00635,61070
Sandwell Metropolitan Borough Council,http://www.sandwell.gov.uk/info/200202/performance_and_spending/1079/payments_over_500,11-Jan-2023,FINANCE (Inc SIU),UPLANDS MANOR PRIMARY   ,Assistant Chief Executive (Excl SIU),4022.10,Grant Payments,2223P10_CR00636,61071
Sandwell Metropolitan Borough Council,http://www.sandwell.gov.uk/info/200202/performance_and_spending/1079/payments_over_500,11-Jan-2023,FINANCE (Inc SIU),VICTORIA PARK PRIMARY ACADEMY,Assistant Chief Executive (Excl SIU),3203.96,Grant Payments,2223P10_CR00637,106209
Sandwell Metropolitan Borough Council,http://www.sandwell.gov.uk/info/200202/performance_and_spending/1079/payments_over_500,11-Jan-2023,FINANCE (Inc SIU),WEDNESBURY OAK ACADEMY,Assistant Chief Executive (Excl SIU),2201.07,Grant Payments,2223P10_CR00638,116882
Sandwell Metropolitan Borough Council,http://www.sandwell.gov.uk/info/200202/performance_and_spending/1079/payments_over_500,11-Jan-2023,FINANCE (Inc SIU),WEST BROMWICH COLLEGIATE ACADEMY,Assistant Chief Executive (Excl SIU),3399.25,Grant Payments,2223P10_CR00639,137780
Sandwell Metropolitan Borough Council,http://www.sandwell.gov.uk/info/200202/performance_and_spending/1079/payments_over_500,11-Jan-2023,FINANCE (Inc SIU),WHITECREST PRIMARY SCHOOL         ,Assistant Chief Executive (Excl SIU),1097.90,Grant Payments,2223P10_CR00640,61075
Sandwell Metropolitan Borough Council,http://www.sandwell.gov.uk/info/200202/performance_and_spending/1079/payments_over_500,11-Jan-2023,FINANCE (Inc SIU),WODENSBOROUGH ORMISTON ACADEMY,Assistant Chief Executive (Excl SIU),6170.38,Grant Payments,2223P10_CR00641,115040
Sandwell Metropolitan Borough Council,http://www.sandwell.gov.uk/info/200202/performance_and_spending/1079/payments_over_500,11-Jan-2023,FINANCE (Inc SIU),WOOD GREEN ACADEMY         ,Assistant Chief Executive (Excl SIU),6835.46,Grant Payments,2223P10_CR00642,100125
Sandwell Metropolitan Borough Council,http://www.sandwell.gov.uk/info/200202/performance_and_spending/1079/payments_over_500,11-Jan-2023,FINANCE (Inc SIU),WOOD GREEN JUNIOR SCHOOL      ,Assistant Chief Executive (Excl SIU),1815.75,Grant Payments,2223P10_CR00643,61076
Sandwell Metropolitan Borough Council,http://www.sandwell.gov.uk/info/200202/performance_and_spending/1079/payments_over_500,11-Jan-2023,FINANCE (Inc SIU),YEW TREE PRIMARY SCHOOL    ,Assistant Chief Executive (Excl SIU),3246.18,Grant Payments,2223P10_CR00644,61078
Sandwell Metropolitan Borough Council,http://www.sandwell.gov.uk/info/200202/performance_and_spending/1079/payments_over_500,11-Jan-2023,FINANCE (Inc SIU),ANNIE LENNARD INFANT SCHOOL,Assistant Chief Executive (Excl SIU),1055.67,Grant Payments,2223P10_CR00645,60966
Sandwell Metropolitan Borough Council,http://www.sandwell.gov.uk/info/200202/performance_and_spending/1079/payments_over_500,12-Jan-2023,Housing & Assets Total,ANYWHERE CARE LIMITED,Corporate Management,1500.00,Telephones,2223P10_CR00646,132781
Sandwell Metropolitan Borough Council,http://www.sandwell.gov.uk/info/200202/performance_and_spending/1079/payments_over_500,01-Jan-2023,Housing & Assets Total,CERTAS ENERGY LIMITED,Corporate Management,789.89,Oil,2223P10_CR00647,80421
Sandwell Metropolitan Borough Council,http://www.sandwell.gov.uk/info/200202/performance_and_spending/1079/payments_over_500,01-Jan-2023,Housing & Assets Total,CERTAS ENERGY LIMITED,Corporate Management,2279.10,Oil,2223P10_CR00648,80421
Sandwell Metropolitan Borough Council,http://www.sandwell.gov.uk/info/200202/performance_and_spending/1079/payments_over_500,03-Jan-2023,Housing & Assets Total,CHILD POVERTY ACTION GROUP,Corporate Management,900.00,Externally Purchased Professional Services ,2223P10_CR00649,01610718
Sandwell Metropolitan Borough Council,http://www.sandwell.gov.uk/info/200202/performance_and_spending/1079/payments_over_500,01-Jan-2023,Housing & Assets Total,CKP LTD T/A HAGLEY HOTEL,Corporate Management,1120.00,Rents,2223P10_CR00650,143677
Sandwell Metropolitan Borough Council,http://www.sandwell.gov.uk/info/200202/performance_and_spending/1079/payments_over_500,01-Jan-2023,Housing & Assets Total,CKP LTD T/A HAGLEY HOTEL,Corporate Management,1650.00,Rents,2223P10_CR00651,143677
Sandwell Metropolitan Borough Council,http://www.sandwell.gov.uk/info/200202/performance_and_spending/1079/payments_over_500,25-Jan-2023,Housing & Assets Total,CKP LTD T/A HAGLEY HOTEL,Corporate Management,2310.00,Rents,2223P10_CR00652,143677
Sandwell Metropolitan Borough Council,http://www.sandwell.gov.uk/info/200202/performance_and_spending/1079/payments_over_500,01-Jan-2023,Housing & Assets Total,CLEANSING SERVICE GROUP LTD,Corporate Management,790.00,Contract Cleaning,2223P10_CR00653,01591528
Sandwell Metropolitan Borough Council,http://www.sandwell.gov.uk/info/200202/performance_and_spending/1079/payments_over_500,05-Jan-2023,Housing & Assets Total,CONTRACT LETTINGS LTD,Corporate Management,541.80,Rents,2223P10_CR00654,76625
Sandwell Metropolitan Borough Council,http://www.sandwell.gov.uk/info/200202/performance_and_spending/1079/payments_over_500,05-Jan-2023,Housing & Assets Total,CONTRACT LETTINGS LTD,Corporate Management,541.80,Rents,2223P10_CR00655,76625
Sandwell Metropolitan Borough Council,http://www.sandwell.gov.uk/info/200202/performance_and_spending/1079/payments_over_500,01-Jan-2023,Housing & Assets Total,CONTRACT LETTINGS LTD,Corporate Management,678.60,Rents,2223P10_CR00656,76625
Sandwell Metropolitan Borough Council,http://www.sandwell.gov.uk/info/200202/performance_and_spending/1079/payments_over_500,05-Jan-2023,Housing & Assets Total,CONTRACT LETTINGS LTD,Corporate Management,678.60,Rents,2223P10_CR00657,76625
Sandwell Metropolitan Borough Council,http://www.sandwell.gov.uk/info/200202/performance_and_spending/1079/payments_over_500,01-Jan-2023,Housing & Assets Total,CONTRACT LETTINGS LTD,Corporate Management,738.60,Rents,2223P10_CR00658,76625
Sandwell Metropolitan Borough Council,http://www.sandwell.gov.uk/info/200202/performance_and_spending/1079/payments_over_500,05-Jan-2023,Housing & Assets Total,CONTRACT LETTINGS LTD,Corporate Management,738.60,Rents,2223P10_CR00659,76625
Sandwell Metropolitan Borough Council,http://www.sandwell.gov.uk/info/200202/performance_and_spending/1079/payments_over_500,01-Jan-2023,Housing & Assets Total,DLM BUILDING & MAINTENANCE LTD,Total Adult Social Care,34423.76,Building Maintenance & Improvements,2223P10_CR00660,137596
Sandwell Metropolitan Borough Council,http://www.sandwell.gov.uk/info/200202/performance_and_spending/1079/payments_over_500,01-Jan-2023,Housing & Assets Total,DORMY HOTEL,Corporate Management,4730.25,Rents,2223P10_CR00661,01737052
Sandwell Metropolitan Borough Council,http://www.sandwell.gov.uk/info/200202/performance_and_spending/1079/payments_over_500,01-Jan-2023,Housing & Assets Total,DORMY HOTEL,Corporate Management,4730.25,Rents,2223P10_CR00662,01737052
Sandwell Metropolitan Borough Council,http://www.sandwell.gov.uk/info/200202/performance_and_spending/1079/payments_over_500,01-Jan-2023,Housing & Assets Total,DORO CARE LTD,Corporate Management,1860.00,Equipment & Furniture ,2223P10_CR00663,123316
Sandwell Metropolitan Borough Council,http://www.sandwell.gov.uk/info/200202/performance_and_spending/1079/payments_over_500,01-Jan-2023,Housing & Assets Total,EUROPEAN'S WELFARE ASSOCIATION CIC,Housing & Assets Total,506.00,Grant Payments,2223P10_CR00664,123703
Sandwell Metropolitan Borough Council,http://www.sandwell.gov.uk/info/200202/performance_and_spending/1079/payments_over_500,11-Jan-2023,Housing & Assets Total,EUROPEAN'S WELFARE ASSOCIATION CIC,Housing & Assets Total,598.00,Grant Payments,2223P10_CR00665,123703
Sandwell Metropolitan Borough Council,http://www.sandwell.gov.uk/info/200202/performance_and_spending/1079/payments_over_500,01-Jan-2023,Housing & Assets Total,GILANI ENTERPRISES LIMITED,Corporate Management,666.67,Rents,2223P10_CR00666,2696
Sandwell Metropolitan Borough Council,http://www.sandwell.gov.uk/info/200202/performance_and_spending/1079/payments_over_500,01-Jan-2023,Housing & Assets Total,GILANI ENTERPRISES LIMITED,Corporate Management,791.67,Rents,2223P10_CR00667,2696
Sandwell Metropolitan Borough Council,http://www.sandwell.gov.uk/info/200202/performance_and_spending/1079/payments_over_500,01-Jan-2023,Housing & Assets Total,GILANI ENTERPRISES LIMITED,Corporate Management,800.00,Rents,2223P10_CR00668,2696
Sandwell Metropolitan Borough Council,http://www.sandwell.gov.uk/info/200202/performance_and_spending/1079/payments_over_500,01-Jan-2023,Housing & Assets Total,GILANI ENTERPRISES LIMITED,Corporate Management,933.33,Rents,2223P10_CR00669,2696
Sandwell Metropolitan Borough Council,http://www.sandwell.gov.uk/info/200202/performance_and_spending/1079/payments_over_500,01-Jan-2023,Housing & Assets Total,GILANI ENTERPRISES LIMITED,Corporate Management,1100.00,Rents,2223P10_CR00670,2696
Sandwell Metropolitan Borough Council,http://www.sandwell.gov.uk/info/200202/performance_and_spending/1079/payments_over_500,01-Jan-2023,Housing & Assets Total,GILANI ENTERPRISES LIMITED,Corporate Management,1100.00,Rents,2223P10_CR00671,2696
Sandwell Metropolitan Borough Council,http://www.sandwell.gov.uk/info/200202/performance_and_spending/1079/payments_over_500,01-Jan-2023,Housing & Assets Total,GILANI ENTERPRISES LIMITED,Corporate Management,1458.33,Rents,2223P10_CR00672,2696
Sandwell Metropolitan Borough Council,http://www.sandwell.gov.uk/info/200202/performance_and_spending/1079/payments_over_500,01-Jan-2023,Housing & Assets Total,GILANI ENTERPRISES LIMITED,Corporate Management,1733.33,Rents,2223P10_CR00673,2696
Sandwell Metropolitan Borough Council,http://www.sandwell.gov.uk/info/200202/performance_and_spending/1079/payments_over_500,01-Jan-2023,Housing & Assets Total,GILANI ENTERPRISES LIMITED,Corporate Management,1800.00,Rents,2223P10_CR00674,2696
Sandwell Metropolitan Borough Council,http://www.sandwell.gov.uk/info/200202/performance_and_spending/1079/payments_over_500,01-Jan-2023,Housing & Assets Total,GILANI ENTERPRISES LIMITED,Corporate Management,1866.67,Rents,2223P10_CR00675,2696
Sandwell Metropolitan Borough Council,http://www.sandwell.gov.uk/info/200202/performance_and_spending/1079/payments_over_500,01-Jan-2023,Housing & Assets Total,GILANI ENTERPRISES LIMITED,Corporate Management,1900.00,Rents,2223P10_CR00676,2696
Sandwell Metropolitan Borough Council,http://www.sandwell.gov.uk/info/200202/performance_and_spending/1079/payments_over_500,01-Jan-2023,Housing & Assets Total,GILANI ENTERPRISES LIMITED,Corporate Management,1900.00,Rents,2223P10_CR00677,2696
Sandwell Metropolitan Borough Council,http://www.sandwell.gov.uk/info/200202/performance_and_spending/1079/payments_over_500,01-Jan-2023,Housing & Assets Total,GILANI ENTERPRISES LIMITED,Corporate Management,1983.33,Rents,2223P10_CR00678,2696
Sandwell Metropolitan Borough Council,http://www.sandwell.gov.uk/info/200202/performance_and_spending/1079/payments_over_500,01-Jan-2023,Housing & Assets Total,GILANI ENTERPRISES LIMITED,Corporate Management,2666.67,Rents,2223P10_CR00679,2696
Sandwell Metropolitan Borough Council,http://www.sandwell.gov.uk/info/200202/performance_and_spending/1079/payments_over_500,01-Jan-2023,Housing & Assets Total,GILANI ENTERPRISES LIMITED,Corporate Management,2733.33,Rents,2223P10_CR00680,2696
Sandwell Metropolitan Borough Council,http://www.sandwell.gov.uk/info/200202/performance_and_spending/1079/payments_over_500,01-Jan-2023,Housing & Assets Total,GILANI ENTERPRISES LIMITED,Corporate Management,3733.33,Rents,2223P10_CR00681,2696
Sandwell Metropolitan Borough Council,http://www.sandwell.gov.uk/info/200202/performance_and_spending/1079/payments_over_500,16-Jan-2023,Housing & Assets Total,"HIGHFIELD HOUSE HOTEL,",Corporate Management,900.00,Rents,2223P10_CR00682,162756
Sandwell Metropolitan Borough Council,http://www.sandwell.gov.uk/info/200202/performance_and_spending/1079/payments_over_500,01-Jan-2023,Housing & Assets Total,"HIGHFIELD HOUSE HOTEL,",Corporate Management,2520.00,Rents,2223P10_CR00683,162756
Sandwell Metropolitan Borough Council,http://www.sandwell.gov.uk/info/200202/performance_and_spending/1079/payments_over_500,01-Jan-2023,Housing & Assets Total,"HIGHFIELD HOUSE HOTEL,",Corporate Management,2600.00,Rents,2223P10_CR00684,162756
Sandwell Metropolitan Borough Council,http://www.sandwell.gov.uk/info/200202/performance_and_spending/1079/payments_over_500,01-Jan-2023,Housing & Assets Total,"HIGHFIELD HOUSE HOTEL,",Corporate Management,6900.00,Rents,2223P10_CR00685,162756
Sandwell Metropolitan Borough Council,http://www.sandwell.gov.uk/info/200202/performance_and_spending/1079/payments_over_500,16-Dec-2022,Housing & Assets Total,HILL INTERIOR CONTRACTS LTD,Corporate Management,1620.00,Rents,2223P10_CR00686,17158
Sandwell Metropolitan Borough Council,http://www.sandwell.gov.uk/info/200202/performance_and_spending/1079/payments_over_500,01-Jan-2023,Housing & Assets Total,PROFILE SECURITY SERVICES LTD,Corporate Management,10866.40,Security,2223P10_CR00687,131253
Sandwell Metropolitan Borough Council,http://www.sandwell.gov.uk/info/200202/performance_and_spending/1079/payments_over_500,01-Jan-2023,Housing & Assets Total,PROFILE SECURITY SERVICES LTD,Corporate Management,10866.40,Security,2223P10_CR00688,131253
Sandwell Metropolitan Borough Council,http://www.sandwell.gov.uk/info/200202/performance_and_spending/1079/payments_over_500,01-Jan-2023,Housing & Assets Total,RIGHT TO CARE LTD.,Corporate Management,1217.86,Rents,2223P10_CR00689,133426
Sandwell Metropolitan Borough Council,http://www.sandwell.gov.uk/info/200202/performance_and_spending/1079/payments_over_500,01-Jan-2023,Housing & Assets Total,RIGHT TO CARE LTD.,Corporate Management,1550.00,Rents,2223P10_CR00690,133426
Sandwell Metropolitan Borough Council,http://www.sandwell.gov.uk/info/200202/performance_and_spending/1079/payments_over_500,01-Jan-2023,Housing & Assets Total,SAFFRON HOTEL,Corporate Management,59865.00,Rents,2223P10_CR00691,164316
Sandwell Metropolitan Borough Council,http://www.sandwell.gov.uk/info/200202/performance_and_spending/1079/payments_over_500,01-Jan-2023,Housing & Assets Total,SAFFRON HOTEL,Corporate Management,66900.00,Rents,2223P10_CR00692,164316
Sandwell Metropolitan Borough Council,http://www.sandwell.gov.uk/info/200202/performance_and_spending/1079/payments_over_500,01-Jan-2023,Housing & Assets Total,SAVILLS UK LTD,Corporate Management,527.16,Water Services,2223P10_CR00693,122760
Sandwell Metropolitan Borough Council,http://www.sandwell.gov.uk/info/200202/performance_and_spending/1079/payments_over_500,01-Jan-2023,Housing & Assets Total,SHARP,Corporate Management,2795.20,Rents,2223P10_CR00694,08280972
Sandwell Metropolitan Borough Council,http://www.sandwell.gov.uk/info/200202/performance_and_spending/1079/payments_over_500,01-Jan-2023,Housing & Assets Total,TOTALENERGIES GAS & POWER LTD,Corporate Management,502.46,Gas,2223P10_CR00695,107605
Sandwell Metropolitan Borough Council,http://www.sandwell.gov.uk/info/200202/performance_and_spending/1079/payments_over_500,01-Jan-2023,Housing & Assets Total,TOTALENERGIES GAS & POWER LTD,Corporate Management,751.04,Electricity,2223P10_CR00696,107605
Sandwell Metropolitan Borough Council,http://www.sandwell.gov.uk/info/200202/performance_and_spending/1079/payments_over_500,01-Jan-2023,Housing & Assets Total,TOTALENERGIES GAS & POWER LTD,Corporate Management,874.81,Electricity,2223P10_CR00697,107605
Sandwell Metropolitan Borough Council,http://www.sandwell.gov.uk/info/200202/performance_and_spending/1079/payments_over_500,01-Jan-2023,Housing & Assets Total,TRH WALSALL LTD,Corporate Management,700.14,Rents,2223P10_CR00698,85648
Sandwell Metropolitan Borough Council,http://www.sandwell.gov.uk/info/200202/performance_and_spending/1079/payments_over_500,01-Jan-2023,Housing & Assets Total,BAILY GARNER,Corporate Management,4750.00,Externally Purchased Professional Services ,2223P10_CR00699,01629732
Sandwell Metropolitan Borough Council,http://www.sandwell.gov.uk/info/200202/performance_and_spending/1079/payments_over_500,03-Jan-2023,Housing & Assets Total,REDACTED PERSONAL DATA,Housing & Assets Total,2650.00,Rents,2223P10_CR00700,REDACTED PERSONAL DATA
Sandwell Metropolitan Borough Council,http://www.sandwell.gov.uk/info/200202/performance_and_spending/1079/payments_over_500,03-Jan-2023,Housing & Assets Total,REDACTED PERSONAL DATA,Housing & Assets Total,2100.00,Rents,2223P10_CR00701,REDACTED PERSONAL DATA
Sandwell Metropolitan Borough Council,http://www.sandwell.gov.uk/info/200202/performance_and_spending/1079/payments_over_500,27-Jan-2023,Housing & Assets Total,BALIJIT KAUR,Corporate Management,500.00,Rents,2223P10_CR00702,101860
Sandwell Metropolitan Borough Council,http://www.sandwell.gov.uk/info/200202/performance_and_spending/1079/payments_over_500,27-Jan-2023,Housing & Assets Total,BALWANT SINGH,Corporate Management,500.00,Rents,2223P10_CR00703,84433
Sandwell Metropolitan Borough Council,http://www.sandwell.gov.uk/info/200202/performance_and_spending/1079/payments_over_500,27-Jan-2023,Housing & Assets Total,CHRISTINE ANN CADDEN,Corporate Management,500.00,Rents,2223P10_CR00704,112728
Sandwell Metropolitan Borough Council,http://www.sandwell.gov.uk/info/200202/performance_and_spending/1079/payments_over_500,27-Jan-2023,Housing & Assets Total,ELEANOR MCGEE,Corporate Management,550.00,Rents,2223P10_CR00705,109162
Sandwell Metropolitan Borough Council,http://www.sandwell.gov.uk/info/200202/performance_and_spending/1079/payments_over_500,27-Jan-2023,Housing & Assets Total,NARINDER SINGH ,Corporate Management,500.00,Rents,2223P10_CR00706,114091
Sandwell Metropolitan Borough Council,http://www.sandwell.gov.uk/info/200202/performance_and_spending/1079/payments_over_500,27-Jan-2023,Housing & Assets Total,SAKANDAR SINGH,Corporate Management,500.00,Rents,2223P10_CR00707,117913
Sandwell Metropolitan Borough Council,http://www.sandwell.gov.uk/info/200202/performance_and_spending/1079/payments_over_500,27-Jan-2023,Housing & Assets Total,A PRASHER,Corporate Management,500.00,Rents,2223P10_CR00708,112229
Sandwell Metropolitan Borough Council,http://www.sandwell.gov.uk/info/200202/performance_and_spending/1079/payments_over_500,04-Jan-2023,Housing & Assets Total,BRUSHSTROKES,Corporate Management,24000.00,Grant Payments,2223P10_CR00709,21029374
Sandwell Metropolitan Borough Council,http://www.sandwell.gov.uk/info/200202/performance_and_spending/1079/payments_over_500,17-Jan-2023,Housing & Assets Total,WARLEY COMMUNITY GYM,Corporate Management,4183.25,Grant Payments,2223P10_CR00710,01705613
Sandwell Metropolitan Borough Council,http://www.sandwell.gov.uk/info/200202/performance_and_spending/1079/payments_over_500,01-Jan-2023,Housing & Communities,COMMUNITY FIRST PARTNERSHIP LIMITED,Housing & Communities,5000.00,Externally Purchased Professional Services ,2223P10_CR00711,34777
Sandwell Metropolitan Borough Council,http://www.sandwell.gov.uk/info/200202/performance_and_spending/1079/payments_over_500,04-Jan-2023,Housing & Communities,COMMUNITY FIRST PARTNERSHIP LIMITED,Housing & Communities,5000.00,Externally Purchased Professional Services ,2223P10_CR00712,34777
Sandwell Metropolitan Borough Council,http://www.sandwell.gov.uk/info/200202/performance_and_spending/1079/payments_over_500,01-Jan-2023,Housing & Communities,DATA POWER LTD,Housing & Communities,587.50,Building Maintenance & Improvements,2223P10_CR00713,78780
Sandwell Metropolitan Borough Council,http://www.sandwell.gov.uk/info/200202/performance_and_spending/1079/payments_over_500,01-Jan-2023,Housing & Communities,DATA POWER LTD,Housing & Communities,7469.10,Externally Purchased Professional Services ,2223P10_CR00714,78780
Sandwell Metropolitan Borough Council,http://www.sandwell.gov.uk/info/200202/performance_and_spending/1079/payments_over_500,01-Jan-2023,Housing & Communities,HOARE LEA LLP,Housing & Communities,3750.00,"CIP - New Construction,Conversion, Enhancement & Reno",2223P10_CR00715,137607
Sandwell Metropolitan Borough Council,http://www.sandwell.gov.uk/info/200202/performance_and_spending/1079/payments_over_500,01-Jan-2023,Housing & Communities,P CASEY LTD,Housing & Communities,71986.66,"CIP - New Construction,Conversion, Enhancement & Reno",2223P10_CR00716,149276
Sandwell Metropolitan Borough Council,http://www.sandwell.gov.uk/info/200202/performance_and_spending/1079/payments_over_500,04-Jan-2023,Housing & Communities,SANDWELL LEISURE TRUST,Housing & Communities,1940.49,Protective Clothing & Uniforms,2223P10_CR00717,23305
Sandwell Metropolitan Borough Council,http://www.sandwell.gov.uk/info/200202/performance_and_spending/1079/payments_over_500,03-Jan-2023,Housing & Communities,SANDWELL LEISURE TRUST,Housing & Communities,5111.00,Externally Purchased Professional Services ,2223P10_CR00718,23305
Sandwell Metropolitan Borough Council,http://www.sandwell.gov.uk/info/200202/performance_and_spending/1079/payments_over_500,25-Jan-2023,Housing & Communities,WATES CONSTRUCTION LTD   ,Housing & Communities,349185.94,"CIP - New Construction,Conversion, Enhancement & Reno",2223P10_CR00719,77000882
Sandwell Metropolitan Borough Council,http://www.sandwell.gov.uk/info/200202/performance_and_spending/1079/payments_over_500,05-Jan-2023,Housing & Communities,WATES CONSTRUCTION LTD    ,Housing & Communities,273306.49,"CIP - New Construction,Conversion, Enhancement & Reno",2223P10_CR00720,77000882
Sandwell Metropolitan Borough Council,http://www.sandwell.gov.uk/info/200202/performance_and_spending/1079/payments_over_500,09-Jan-2023,Housing Revenue Account Capital,AA PROJECTS LIMITED,Housing Revenue Account Capital,500.00,Deferred Charges/Grant Payments,2223P10_CR00721,116074
Sandwell Metropolitan Borough Council,http://www.sandwell.gov.uk/info/200202/performance_and_spending/1079/payments_over_500,01-Jan-2023,Housing Revenue Account Capital,AXIS EUROPE PLC ,Housing Revenue Account Capital,4918.35,Deferred Charges/Grant Payments,2223P10_CR00722,64946
Sandwell Metropolitan Borough Council,http://www.sandwell.gov.uk/info/200202/performance_and_spending/1079/payments_over_500,01-Jan-2023,Housing Revenue Account Capital,AXIS EUROPE PLC ,Housing Revenue Account Capital,5939.99,Deferred Charges/Grant Payments,2223P10_CR00723,64946
Sandwell Metropolitan Borough Council,http://www.sandwell.gov.uk/info/200202/performance_and_spending/1079/payments_over_500,01-Jan-2023,Housing Revenue Account Capital,AXIS EUROPE PLC ,Housing Revenue Account Capital,5995.89,Deferred Charges/Grant Payments,2223P10_CR00724,64946
Sandwell Metropolitan Borough Council,http://www.sandwell.gov.uk/info/200202/performance_and_spending/1079/payments_over_500,01-Jan-2023,Housing Revenue Account Capital,AXIS EUROPE PLC ,Housing Revenue Account Capital,6453.26,Deferred Charges/Grant Payments,2223P10_CR00725,64946
Sandwell Metropolitan Borough Council,http://www.sandwell.gov.uk/info/200202/performance_and_spending/1079/payments_over_500,01-Jan-2023,Housing Revenue Account Capital,AXIS EUROPE PLC ,Housing Revenue Account Capital,6477.47,Deferred Charges/Grant Payments,2223P10_CR00726,64946
Sandwell Metropolitan Borough Council,http://www.sandwell.gov.uk/info/200202/performance_and_spending/1079/payments_over_500,01-Jan-2023,Housing Revenue Account Capital,AXIS EUROPE PLC ,Housing Revenue Account Capital,6596.02,Deferred Charges/Grant Payments,2223P10_CR00727,64946
Sandwell Metropolitan Borough Council,http://www.sandwell.gov.uk/info/200202/performance_and_spending/1079/payments_over_500,01-Jan-2023,Housing Revenue Account Capital,AXIS EUROPE PLC ,Housing Revenue Account Capital,6670.14,Deferred Charges/Grant Payments,2223P10_CR00728,64946
Sandwell Metropolitan Borough Council,http://www.sandwell.gov.uk/info/200202/performance_and_spending/1079/payments_over_500,01-Jan-2023,Housing Revenue Account Capital,AXIS EUROPE PLC ,Housing Revenue Account Capital,6751.04,Deferred Charges/Grant Payments,2223P10_CR00729,64946
Sandwell Metropolitan Borough Council,http://www.sandwell.gov.uk/info/200202/performance_and_spending/1079/payments_over_500,01-Jan-2023,Housing Revenue Account Capital,AXIS EUROPE PLC ,Housing Revenue Account Capital,6878.20,Deferred Charges/Grant Payments,2223P10_CR00730,64946
Sandwell Metropolitan Borough Council,http://www.sandwell.gov.uk/info/200202/performance_and_spending/1079/payments_over_500,01-Jan-2023,Housing Revenue Account Capital,AXIS EUROPE PLC ,Housing Revenue Account Capital,7050.31,Deferred Charges/Grant Payments,2223P10_CR00731,64946
Sandwell Metropolitan Borough Council,http://www.sandwell.gov.uk/info/200202/performance_and_spending/1079/payments_over_500,01-Jan-2023,Housing Revenue Account Capital,AXIS EUROPE PLC ,Housing Revenue Account Capital,7227.37,Deferred Charges/Grant Payments,2223P10_CR00732,64946
Sandwell Metropolitan Borough Council,http://www.sandwell.gov.uk/info/200202/performance_and_spending/1079/payments_over_500,01-Jan-2023,Housing Revenue Account Capital,AXIS EUROPE PLC ,Housing Revenue Account Capital,11341.73,Deferred Charges/Grant Payments,2223P10_CR00733,64946
Sandwell Metropolitan Borough Council,http://www.sandwell.gov.uk/info/200202/performance_and_spending/1079/payments_over_500,01-Jan-2023,Housing Revenue Account Capital,AXIS EUROPE PLC ,Housing Revenue Account Capital,11620.05,Deferred Charges/Grant Payments,2223P10_CR00734,64946
Sandwell Metropolitan Borough Council,http://www.sandwell.gov.uk/info/200202/performance_and_spending/1079/payments_over_500,26-Jan-2023,Housing Revenue Account Capital,AXIS EUROPE PLC ,Housing Revenue Account Capital,54890.98,Deferred Charges/Grant Payments,2223P10_CR00735,64946
Sandwell Metropolitan Borough Council,http://www.sandwell.gov.uk/info/200202/performance_and_spending/1079/payments_over_500,01-Jan-2023,Housing Revenue Account Capital,DOLPHIN LIFTS MIDLANDS LTD,Housing Revenue Account Capital,2995.00,Deferred Charges/Grant Payments,2223P10_CR00736,123852
Sandwell Metropolitan Borough Council,http://www.sandwell.gov.uk/info/200202/performance_and_spending/1079/payments_over_500,01-Jan-2023,Housing Revenue Account Capital,J A BEDWARD & SON     ,Housing Revenue Account Capital,2245.69,Deferred Charges/Grant Payments,2223P10_CR00737,77001727
Sandwell Metropolitan Borough Council,http://www.sandwell.gov.uk/info/200202/performance_and_spending/1079/payments_over_500,11-Jan-2023,Housing Revenue Account Capital,J.HARPER & SONS (LEOMINSTER) LIMITED,Housing Revenue Account Capital,107415.91,"CIP - New Construction,Conversion, Enhancement & Reno",2223P10_CR00738,111814
Sandwell Metropolitan Borough Council,http://www.sandwell.gov.uk/info/200202/performance_and_spending/1079/payments_over_500,01-Jan-2023,Housing Revenue Account Capital,LIFT & ENGINEERING SERVICES LTD,Housing Revenue Account Capital,1220.55,CIP - Fixtures & Fittings,2223P10_CR00739,77003962
Sandwell Metropolitan Borough Council,http://www.sandwell.gov.uk/info/200202/performance_and_spending/1079/payments_over_500,01-Jan-2023,Housing Revenue Account Capital,LIFT & ENGINEERING SERVICES LTD,Housing Revenue Account Capital,1220.55,CIP - Fixtures & Fittings,2223P10_CR00740,77003962
Sandwell Metropolitan Borough Council,http://www.sandwell.gov.uk/info/200202/performance_and_spending/1079/payments_over_500,01-Jan-2023,Housing Revenue Account Capital,LOVELL PARTNERSHIPS  LTD,Housing Revenue Account Capital,267876.14,"CIP - New Construction,Conversion, Enhancement & Reno",2223P10_CR00741,77007398
Sandwell Metropolitan Borough Council,http://www.sandwell.gov.uk/info/200202/performance_and_spending/1079/payments_over_500,17-Jan-2023,Housing Revenue Account Capital,NATIONWIDE WINDOWS LIMITED,Housing Revenue Account Capital,111871.54,"CIP - New Construction,Conversion, Enhancement & Reno",2223P10_CR00742,108316
Sandwell Metropolitan Borough Council,http://www.sandwell.gov.uk/info/200202/performance_and_spending/1079/payments_over_500,01-Jan-2023,Housing Revenue Account Capital,PARCOR LTD,Housing Revenue Account Capital,2640.00,"CIP - New Construction,Conversion, Enhancement & Reno",2223P10_CR00743,163117
Sandwell Metropolitan Borough Council,http://www.sandwell.gov.uk/info/200202/performance_and_spending/1079/payments_over_500,01-Jan-2023,Housing Revenue Account Capital,PHOENIX GAS SERVICES LIMITED,Housing Revenue Account Capital,2133.85,Contract Payments,2223P10_CR00744,126729
Sandwell Metropolitan Borough Council,http://www.sandwell.gov.uk/info/200202/performance_and_spending/1079/payments_over_500,01-Jan-2023,Housing Revenue Account Capital,PHOENIX GAS SERVICES LIMITED,Housing Revenue Account Capital,3210.40,Contract Payments,2223P10_CR00745,126729
Sandwell Metropolitan Borough Council,http://www.sandwell.gov.uk/info/200202/performance_and_spending/1079/payments_over_500,01-Jan-2023,Housing Revenue Account Capital,PHOENIX GAS SERVICES LIMITED,Housing Revenue Account Capital,4320.40,Contract Payments,2223P10_CR00746,126729
Sandwell Metropolitan Borough Council,http://www.sandwell.gov.uk/info/200202/performance_and_spending/1079/payments_over_500,01-Jan-2023,Housing Revenue Account Capital,PHOENIX GAS SERVICES LIMITED,Housing Revenue Account Capital,4586.26,Contract Payments,2223P10_CR00747,126729
Sandwell Metropolitan Borough Council,http://www.sandwell.gov.uk/info/200202/performance_and_spending/1079/payments_over_500,01-Jan-2023,Housing Revenue Account Capital,PHOENIX GAS SERVICES LIMITED,Housing Revenue Account Capital,4637.40,Contract Payments,2223P10_CR00748,126729
Sandwell Metropolitan Borough Council,http://www.sandwell.gov.uk/info/200202/performance_and_spending/1079/payments_over_500,01-Jan-2023,Housing Revenue Account Capital,PHOENIX GAS SERVICES LIMITED,Housing Revenue Account Capital,4908.33,Contract Payments,2223P10_CR00749,126729
Sandwell Metropolitan Borough Council,http://www.sandwell.gov.uk/info/200202/performance_and_spending/1079/payments_over_500,01-Jan-2023,Housing Revenue Account Capital,POWRED HEATING COMPONENTS LIMITED,Housing Revenue Account Capital,724.11,Materials & Consumables,2223P10_CR00750,133978
Sandwell Metropolitan Borough Council,http://www.sandwell.gov.uk/info/200202/performance_and_spending/1079/payments_over_500,14-Jan-2023,Housing Revenue Account Capital,POWRED HEATING COMPONENTS LIMITED,Housing Revenue Account Capital,839.55,Materials & Consumables,2223P10_CR00751,133978
Sandwell Metropolitan Borough Council,http://www.sandwell.gov.uk/info/200202/performance_and_spending/1079/payments_over_500,01-Jan-2023,Housing Revenue Account Capital,PR PROPERTY MAINTENANCE,Housing Revenue Account Capital,3991.48,Deferred Charges/Grant Payments,2223P10_CR00752,33836
